Workbook

Sheet Main
B10: 2022-11-16
B12: Sheet No. | C12: Template Name | D12: Summary
B13: 1 | C13: Future Intra | D13: For Intraday trading in F&O segment
B14: 2 | C14: Cash Intra | D14: For Intraday trading in cash market segment
B15: 3 | C15: Mid-cap Intra | D15: For Intraday trading in Mid-cap stocks
B16: 4 | C16: Bulk Deals | D16: Reveals Bulk Deals carried on NSE & BSE
B17: 5 | C17: Call Tracker
K27: `

Sheet Future Intra
M5: Back to Main Page
A6: FOR INTRA DAY TRADING | L6: =Main!B10 -> 2022-11-16
A9: Sr.no | B9: Sector | C9: Scrip | D9: Expiry Date | E9: CLOSE RATE | F9: Pivot Point | G9: Supports | J9: Resistances
E10: Point | F10: Point | G10: S1 | H10: S2 | I10: S3 | J10: R1 | K10: R2 | L10: R3 | M10: HIGH | N10: LOW | O10: OI | P10: % Change in OI
A11: 1 | B11: Index | C11: NIFTY | D11: 2022-11-24 | E11: 18462.05 | F11: 18431.02 | G11: 18373.23 | H11: 18284.42 | I11: 18226.63 | J11: 18519.83 | K11: 18577.62 | L11: 18666.43 | M11: 18488.8 | N11: 18342.2 | O11: 14351150 | P11: 1.64%
A12: 2 | B12: Index | C12: BANKNIFTY | D12: 2022-11-24 | E12: 42483.70 | F12: 42423.58 | G12: 42286.12 | H12: 42088.53 | I12: 41951.07 | J12: 42621.17 | K12: 42758.63 | L12: 42956.22 | M12: 42561.05 | N12: 42226 | O12: 3272400 | P12: 13.34%
A13: 3 | B13: Index | C13: FINNIFTY | D13: 2022-11-29 | E13: 19114.15 | F13: 19087.97 | G13: 19044.03 | H13: 18973.92 | I13: 18929.98 | J13: 19158.08 | K13: 19202.02 | L13: 19272.13 | M13: 19131.9 | N13: 19017.85 | O13: 10440 | P13: 9.21%
A14: 4 | B14: Index | C14: MIDCPNIFTY | D14: 2022-11-29 | E14: 7448.00 | F14: 2482.67 | G14: 4965.33 | H14: 2482.67 | I14: 4965.33 | J14: 4965.33 | K14: 2482.67 | L14: 4965.33 | M14: 0 | N14: 0 | O14: 75 | P14: 0.00%
A15: 5 | B15: Chemical | C15: AARTIIND | D15: 2022-11-24 | E15: 709.20 | F15: 702.08 | G15: 686.87 | H15: 664.53 | I15: 649.32 | J15: 724.42 | K15: 739.63 | L15: 761.97 | M15: 717.3 | N15: 679.75 | O15: 1834300 | P15: -4.51%
A16: 6 | B16: Capital_Goods | C16: ABB | D16: 2022-11-24 | E16: 3042.35 | F16: 3053.27 | G16: 3019.08 | H16: 2995.82 | I16: 2961.63 | J16: 3076.53 | K16: 3110.72 | L16: 3133.98 | M16: 3087.45 | N16: 3030 | O16: 1733500 | P16: -1.01%
A17: 7 | B17: Pharma | C17: ABBOTINDIA | D17: 2022-11-24 | E17: 19748.60 | F17: 19850.25 | G17: 19497.60 | H17: 19246.60 | I17: 18893.95 | J17: 20101.25 | K17: 20453.90 | L17: 20704.90 | M17: 20202.9 | N17: 19599.25 | O17: 56920 | P17: -3.98%
A18: 8 | B18: Others | C18: ABCAPITAL | D18: 2022-11-24 | E18: 128.90 | F18: 129.38 | G18: 127.47 | H18: 126.03 | I18: 124.12 | J18: 130.82 | K18: 132.73 | L18: 134.17 | M18: 131.3 | N18: 127.95 | O18: 25498800 | P18: 3.19%
A19: 9 | B19: Textile | C19: ABFRL | D19: 2022-11-24 | E19: 314.65 | F19: 314.72 | G19: 312.38 | H19: 310.12 | I19: 307.78 | J19: 316.98 | K19: 319.32 | L19: 321.58 | M19: 317.05 | N19: 312.45 | O19: 13288600 | P19: 3.40%
A20: 10 | B20: Cement | C20: ACC | D20: 2022-11-24 | E20: 2485.40 | F20: 2488.03 | G20: 2448.77 | H20: 2412.13 | I20: 2372.87 | J20: 2524.67 | K20: 2563.93 | L20: 2600.57 | M20: 2527.3 | N20: 2451.4 | O20: 3962500 | P20: 0.49%
A21: 11 | B21: Others | C21: ADANIENT | D21: 2022-11-24 | E21: 4075.65 | F21: 4065.67 | G21: 4047.98 | H21: 4020.32 | I21: 4002.63 | J21: 4093.33 | K21: 4111.02 | L21: 4138.68 | M21: 4083.35 | N21: 4038 | O21: 14414750 | P21: 2.50%
A22: 12 | B22: Others | C22: ADANIPORTS | D22: 2022-11-24 | E22: 910.45 | F22: 909.13 | G22: 899.52 | H22: 888.58 | I22: 878.97 | J22: 920.07 | K22: 929.68 | L22: 940.62 | M22: 918.75 | N22: 898.2 | O22: 74392500 | P22: -0.55%
A23: 13 | B23: Pharma | C23: ALKEM | D23: 2022-11-24 | E23: 3141.55 | F23: 3147.67 | G23: 3110.38 | H23: 3079.22 | I23: 3041.93 | J23: 3178.83 | K23: 3216.12 | L23: 3247.28 | M23: 3184.95 | N23: 3116.5 | O23: 323800 | P23: -2.06%
A24: 14 | B24: Automobile | C24: AMARAJABAT | D24: 2022-11-24 | E24: 629.85 | F24: 627.28 | G24: 623.47 | H24: 617.08 | I24: 613.27 | J24: 633.67 | K24: 637.48 | L24: 643.87 | M24: 631.1 | N24: 620.9 | O24: 7233000 | P24: -0.22%
A25: 15 | B25: Cement | C25: AMBUJACEM | D25: 2022-11-24 | E25: 588.30 | F25: 587.12 | G25: 578.38 | H25: 568.47 | I25: 559.73 | J25: 597.03 | K25: 605.77 | L25: 615.68 | M25: 595.85 | N25: 577.2 | O25: 72588600 | P25: 0.74%
A26: 16 | B26: Others | C26: APOLLOHOSP | D26: 2022-11-24 | E26: 4626.25 | F26: 4605.75 | G26: 4566.50 | H26: 4506.75 | I26: 4467.50 | J26: 4665.50 | K26: 4704.75 | L26: 4764.50 | M26: 4645 | N26: 4546 | O26: 1929500 | P26: -2.96%
A27: 17 | B27: Automobile | C27: APOLLOTYRE | D27: 2022-11-24 | E27: 299.60 | F27: 298.52 | G27: 292.48 | H27: 285.37 | I27: 279.33 | J27: 305.63 | K27: 311.67 | L27: 318.78 | M27: 304.55 | N27: 291.4 | O27: 17206000 | P27: 8.26%
A28: 18 | B28: Automobile | C28: ASHOKLEY | D28: 2022-11-24 | E28: 150.80 | F28: 151.48 | G28: 149.32 | H28: 147.83 | I28: 145.67 | J28: 152.97 | K28: 155.13 | L28: 156.62 | M28: 153.65 | N28: 150 | O28: 77000000 | P28: -0.79%
A29: 19 | B29: FMCG | C29: ASIANPAINT | D29: 2022-11-24 | E29: 3093.50 | F29: 3084.92 | G29: 3066.78 | H29: 3040.07 | I29: 3021.93 | J29: 3111.63 | K29: 3129.77 | L29: 3156.48 | M29: 3103.05 | N29: 3058.2 | O29: 6639000 | P29: 0.04%
A30: 20 | B30: Others | C30: ASTRAL | D30: 2022-11-24 | E30: 1946.05 | F30: 1960.37 | G30: 1920.23 | H30: 1894.42 | I30: 1854.28 | J30: 1986.18 | K30: 2026.32 | L30: 2052.13 | M30: 2000.5 | N30: 1934.55 | O30: 1202575 | P30: -2.58%
A31: 21 | B31: Others | C31: ATUL | D31: 2022-11-24 | E31: 8328.40 | F31: 8324.45 | G31: 8263.90 | H31: 8199.40 | I31: 8138.85 | J31: 8388.95 | K31: 8449.50 | L31: 8514.00 | M31: 8385 | N31: 8259.95 | O31: 139350 | P31: 0.76%
A32: 22 | B32: Banking | C32: AUBANK | D32: 2022-11-24 | E32: 631.75 | F32: 632.85 | G32: 627.30 | H32: 622.85 | I32: 617.30 | J32: 637.30 | K32: 642.85 | L32: 647.30 | M32: 638.4 | N32: 628.4 | O32: 8075000 | P32: 1.08%
A33: 23 | B33: Pharma | C33: AUROPHARMA | D33: 2022-11-24 | E33: 493.80 | F33: 490.47 | G33: 484.63 | H33: 475.47 | I33: 469.63 | J33: 499.63 | K33: 505.47 | L33: 514.63 | M33: 496.3 | N33: 481.3 | O33: 14156000 | P33: -0.26%
A34: 24 | B34: Banking | C34: AXISBANK | D34: 2022-11-24 | E34: 863.25 | F34: 859.88 | G34: 855.37 | H34: 847.48 | I34: 842.97 | J34: 867.77 | K34: 872.28 | L34: 880.17 | M34: 864.4 | N34: 852 | O34: 59118000 | P34: 1.32%
A35: 25 | B35: Automobile | C35: BAJAJ-AUTO | D35: 2022-11-24 | E35: 3784.60 | F35: 3780.72 | G35: 3763.83 | H35: 3743.07 | I35: 3726.18 | J35: 3801.48 | K35: 3818.37 | L35: 3839.13 | M35: 3797.6 | N35: 3759.95 | O35: 1293500 | P35: -2.03%
A36: 26 | B36: Finance | C36: BAJAJFINSV | D36: 2022-11-24 | E36: 1718.55 | F36: 1720.53 | G36: 1704.17 | H36: 1689.78 | I36: 1673.42 | J36: 1734.92 | K36: 1751.28 | L36: 1765.67 | M36: 1736.9 | N36: 1706.15 | O36: 6712500 | P36: 1.16%
A37: 27 | B37: Finance | C37: BAJFINANCE | D37: 2022-11-24 | E37: 7066.40 | F37: 7059.37 | G37: 7019.78 | H37: 6973.17 | I37: 6933.58 | J37: 7105.98 | K37: 7145.57 | L37: 7192.18 | M37: 7098.95 | N37: 7012.75 | O37: 4891375 | P37: 0.41%
A38: 28 | B38: Automobile | C38: BALKRISIND | D38: 2022-11-24 | E38: 1967.80 | F38: 1919.88 | G38: 1851.77 | H38: 1735.73 | I38: 1667.62 | J38: 2035.92 | K38: 2104.03 | L38: 2220.07 | M38: 1988 | N38: 1803.85 | O38: 2471100 | P38: -5.21%
A39: 29 | B39: Others | C39: BALRAMCHIN | D39: 2022-11-24 | E39: 348.35 | F39: 345.50 | G39: 341.50 | H39: 334.65 | I39: 330.65 | J39: 352.35 | K39: 356.35 | L39: 363.20 | M39: 349.5 | N39: 338.65 | O39: 10180800 | P39: -0.06%
A40: 30 | B40: Banking | C40: BANDHANBNK | D40: 2022-11-24 | E40: 230.15 | F40: 229.27 | G40: 227.83 | H40: 225.52 | I40: 224.08 | J40: 231.58 | K40: 233.02 | L40: 235.33 | M40: 230.7 | N40: 226.95 | O40: 57598200 | P40: 0.66%
A41: 31 | B41: Banking | C41: BANKBARODA | D41: 2022-11-24 | E41: 163.80 | F41: 164.10 | G41: 162.35 | H41: 160.90 | I41: 159.15 | J41: 165.55 | K41: 167.30 | L41: 168.75 | M41: 165.85 | N41: 162.65 | O41: 88820550 | P41: -2.01%
A42: 32 | B42: FMCG | C42: BATAINDIA | D42: 2022-11-24 | E42: 1711.45 | F42: 1718.38 | G42: 1685.57 | H42: 1659.68 | I42: 1626.87 | J42: 1744.27 | K42: 1777.08 | L42: 1802.97 | M42: 1751.2 | N42: 1692.5 | O42: 2085325 | P42: 7.42%
A43: 33 | B43: Capital_Goods | C43: BEL | D43: 2022-11-24 | E43: 107.65 | F43: 107.28 | G43: 106.52 | H43: 105.38 | I43: 104.62 | J43: 108.42 | K43: 109.18 | L43: 110.32 | M43: 108.05 | N43: 106.15 | O43: 82461900 | P43: 0.72%
A44: 34 | B44: FMCG | C44: BERGEPAINT | D44: 2022-11-24 | E44: 610.75 | F44: 607.15 | G44: 602.50 | H44: 594.25 | I44: 589.60 | J44: 615.40 | K44: 620.05 | L44: 628.30 | M44: 611.8 | N44: 598.9 | O44: 7165400 | P44: -0.99%
A45: 35 | B45: Automobile | C45: BHARATFORG | D45: 2022-11-24 | E45: 854.00 | F45: 850.17 | G45: 842.33 | H45: 830.67 | I45: 822.83 | J45: 861.83 | K45: 869.67 | L45: 881.33 | M45: 858 | N45: 838.5 | O45: 9155000 | P45: -1.73%
A46: 36 | B46: Telecom | C46: BHARTIARTL | D46: 2022-11-24 | E46: 838.10 | F46: 834.50 | G46: 829.25 | H46: 820.40 | I46: 815.15 | J46: 843.35 | K46: 848.60 | L46: 857.45 | M46: 839.75 | N46: 825.65 | O46: 41016250 | P46: 2.57%
A47: 37 | B47: Capital_Goods | C47: BHEL | D47: 2022-11-24 | E47: 70.55 | F47: 70.75 | G47: 70.00 | H47: 69.45 | I47: 68.70 | J47: 71.30 | K47: 72.05 | L47: 72.60 | M47: 71.5 | N47: 70.2 | O47: 120361500 | P47: -4.45%
A48: 38 | B48: Pharma | C48: BIOCON | D48: 2022-11-24 | E48: 285.10 | F48: 283.87 | G48: 280.13 | H48: 275.17 | I48: 271.43 | J48: 288.83 | K48: 292.57 | L48: 297.53 | M48: 287.6 | N48: 278.9 | O48: 24014300 | P48: -2.56%
A49: 39 | B49: Automobile | C49: BOSCHLTD | D49: 2022-11-24 | E49: 16967.10 | F49: 17001.23 | G49: 16867.47 | H49: 16767.83 | I49: 16634.07 | J49: 17100.87 | K49: 17234.63 | L49: 17334.27 | M49: 17135 | N49: 16901.6 | O49: 167550 | P49: -1.61%
A50: 40 | B50: Oil_Gas | C50: BPCL | D50: 2022-11-24 | E50: 310.15 | F50: 309.47 | G50: 308.18 | H50: 306.22 | I50: 304.93 | J50: 311.43 | K50: 312.72 | L50: 314.68 | M50: 310.75 | N50: 307.5 | O50: 20295000 | P50: 1.21%
A51: 41 | B51: FMCG | C51: BRITANNIA | D51: 2022-11-24 | E51: 4156.75 | F51: 4142.63 | G51: 4118.17 | H51: 4079.58 | I51: 4055.12 | J51: 4181.22 | K51: 4205.68 | L51: 4244.27 | M51: 4167.1 | N51: 4104.05 | O51: 1790000 | P51: -2.22%
A52: 42 | B52: Technology | C52: BSOFT | D52: 2022-11-24 | E52: 284.15 | F52: 284.15 | G52: 280.50 | H52: 276.85 | I52: 273.20 | J52: 287.80 | K52: 291.45 | L52: 295.10 | M52: 287.8 | N52: 280.5 | O52: 11144600 | P52: 1.48%
A53: 43 | B53: Banking | C53: CANBK | D53: 2022-11-24 | E53: 310.15 | F53: 308.50 | G53: 305.95 | H53: 301.75 | I53: 299.20 | J53: 312.70 | K53: 315.25 | L53: 319.45 | M53: 311.05 | N53: 304.3 | O53: 39746700 | P53: -1.34%
A54: 44 | B54: Finance | C54: CANFINHOME | D54: 2022-11-24 | E54: 539.05 | F54: 538.80 | G54: 535.40 | H54: 531.75 | I54: 528.35 | J54: 542.45 | K54: 545.85 | L54: 549.50 | M54: 542.2 | N54: 535.15 | O54: 4430400 | P54: -0.83%
A55: 45 | B55: Others | C55: CHAMBLFERT | D55: 2022-11-24 | E55: 296.75 | F55: 295.27 | G55: 292.98 | H55: 289.22 | I55: 286.93 | J55: 299.03 | K55: 301.32 | L55: 305.08 | M55: 297.55 | N55: 291.5 | O55: 7306500 | P55: -1.48%
A56: 46 | B56: Finance | C56: CHOLAFIN | D56: 2022-11-24 | E56: 723.60 | F56: 722.67 | G56: 718.13 | H56: 712.67 | I56: 708.13 | J56: 728.13 | K56: 732.67 | L56: 738.13 | M56: 727.2 | N56: 717.2 | O56: 7832500 | P56: -0.63%
A57: 47 | B57: Pharma | C57: CIPLA | D57: 2022-11-24 | E57: 1125.45 | F57: 1126.25 | G57: 1115.20 | H57: 1104.95 | I57: 1093.90 | J57: 1136.50 | K57: 1147.55 | L57: 1157.80 | M57: 1137.3 | N57: 1116 | O57: 8817900 | P57: 0.27%
A58: 48 | B58: Others | C58: COALINDIA | D58: 2022-11-24 | E58: 233.35 | F58: 234.53 | G58: 230.47 | H58: 227.58 | I58: 223.52 | J58: 237.42 | K58: 241.48 | L58: 244.37 | M58: 238.6 | N58: 231.65 | O58: 38820600 | P58: 2.13%
A59: 49 | B59: Technology | C59: COFORGE | D59: 2022-11-24 | E59: 3956.20 | F59: 3960.38 | G59: 3890.82 | H59: 3825.43 | I59: 3755.87 | J59: 4025.77 | K59: 4095.33 | L59: 4160.72 | M59: 4029.95 | N59: 3895 | O59: 899550 | P59: 0.28%
A60: 50 | B60: FMCG | C60: COLPAL | D60: 2022-11-24 | E60: 1585.85 | F60: 1583.72 | G60: 1575.28 | H60: 1564.72 | I60: 1556.28 | J60: 1594.28 | K60: 1602.72 | L60: 1613.28 | M60: 1592.15 | N60: 1573.15 | O60: 2095450 | P60: -0.22%
A61: 51 | B61: Others | C61: CONCOR | D61: 2022-11-24 | E61: 764.45 | F61: 763.75 | G61: 759.55 | H61: 754.65 | I61: 750.45 | J61: 768.65 | K61: 772.85 | L61: 777.75 | M61: 767.95 | N61: 758.85 | O61: 8922000 | P61: -3.32%
A62: 52 | B62: Others | C62: COROMANDEL | D62: 2022-11-24 | E62: 926.95 | F62: 926.98 | G62: 922.97 | H62: 918.98 | I62: 914.97 | J62: 930.97 | K62: 934.98 | L62: 938.97 | M62: 931 | N62: 923 | O62: 2690100 | P62: 1.34%
A63: 53 | B63: Capital_Goods | C63: CROMPTON | D63: 2022-11-24 | E63: 366.90 | F63: 365.72 | G63: 362.18 | H63: 357.47 | I63: 353.93 | J63: 370.43 | K63: 373.97 | L63: 378.68 | M63: 369.25 | N63: 361 | O63: 4975500 | P63: -7.32%
A64: 54 | B64: Banking | C64: CUB | D64: 2022-11-24 | E64: 190.40 | F64: 188.83 | G64: 186.47 | H64: 182.53 | I64: 180.17 | J64: 192.77 | K64: 195.13 | L64: 199.07 | M64: 191.2 | N64: 184.9 | O64: 9720000 | P64: -4.24%
A65: 55 | B65: Capital_Goods | C65: CUMMINSIND | D65: 2022-11-24 | E65: 1377.30 | F65: 1365.73 | G65: 1350.57 | H65: 1323.83 | I65: 1308.67 | J65: 1392.47 | K65: 1407.63 | L65: 1434.37 | M65: 1380.9 | N65: 1339 | O65: 2628000 | P65: 9.53%
A66: 56 | B66: FMCG | C66: DABUR | D66: 2022-11-24 | E66: 552.40 | F66: 551.23 | G66: 545.82 | H66: 539.23 | I66: 533.82 | J66: 557.82 | K66: 563.23 | L66: 569.82 | M66: 556.65 | N66: 544.65 | O66: 13641250 | P66: -1.49%
A67: 57 | B67: Cement | C67: DALBHARAT | D67: 2022-11-24 | E67: 1689.25 | F67: 1695.78 | G67: 1669.57 | H67: 1649.88 | I67: 1623.67 | J67: 1715.47 | K67: 1741.68 | L67: 1761.37 | M67: 1722 | N67: 1676.1 | O67: 1466000 | P67: -0.81%
A68: 58 | B68: Chemical | C68: DEEPAKNTR | D68: 2022-11-24 | E68: 2191.60 | F68: 2180.35 | G68: 2153.90 | H68: 2116.20 | I68: 2089.75 | J68: 2218.05 | K68: 2244.50 | L68: 2282.20 | M68: 2206.8 | N68: 2142.65 | O68: 2104500 | P68: -8.47%
A69: 59 | B69: Others | C69: DELTACORP | D69: 2022-11-24 | E69: 228.60 | F69: 228.62 | G69: 223.78 | H69: 218.97 | I69: 214.13 | J69: 233.43 | K69: 238.27 | L69: 243.08 | M69: 233.45 | N69: 223.8 | O69: 22221500 | P69: 28.81%
A70: 60 | B70: Pharma | C70: DIVISLAB | D70: 2022-11-24 | E70: 3339.95 | F70: 3326.37 | G70: 3308.73 | H70: 3277.52 | I70: 3259.88 | J70: 3357.58 | K70: 3375.22 | L70: 3406.43 | M70: 3344 | N70: 3295.15 | O70: 3723000 | P70: -3.87%
A71: 61 | B71: Others | C71: DIXON | D71: 2022-11-24 | E71: 4604.00 | F71: 4624.90 | G71: 4571.30 | H71: 4538.60 | I71: 4485.00 | J71: 4657.60 | K71: 4711.20 | L71: 4743.90 | M71: 4678.5 | N71: 4592.2 | O71: 605625 | P71: 4.49%
A72: 62 | B72: Realty | C72: DLF | D72: 2022-11-24 | E72: 407.40 | F72: 407.57 | G72: 403.53 | H72: 399.67 | I72: 395.63 | J72: 411.43 | K72: 415.47 | L72: 419.33 | M72: 411.6 | N72: 403.7 | O72: 42716850 | P72: -0.53%
A73: 63 | B73: Pharma | C73: DRREDDY | D73: 2022-11-24 | E73: 4447.10 | F73: 4426.53 | G73: 4398.82 | H73: 4350.53 | I73: 4322.82 | J73: 4474.82 | K73: 4502.53 | L73: 4550.82 | M73: 4454.25 | N73: 4378.25 | O73: 1979375 | P73: -6.50%
A74: 64 | B74: Automobile | C74: EICHERMOT | D74: 2022-11-24 | E74: 3513.40 | F74: 3521.45 | G74: 3492.90 | H74: 3472.40 | I74: 3443.85 | J74: 3541.95 | K74: 3570.50 | L74: 3591.00 | M74: 3550 | N74: 3500.95 | O74: 4095700 | P74: -1.50%
A75: 65 | B75: Automobile | C75: ESCORTS | D75: 2022-11-24 | E75: 2025.15 | F75: 2017.12 | G75: 1995.23 | H75: 1965.32 | I75: 1943.43 | J75: 2047.03 | K75: 2068.92 | L75: 2098.83 | M75: 2039 | N75: 1987.2 | O75: 1150600 | P75: 0.00%
A76: 66 | B76: Automobile | C76: EXIDEIND | D76: 2022-11-24 | E76: 182.95 | F76: 182.53 | G76: 179.12 | H76: 175.28 | I76: 171.87 | J76: 186.37 | K76: 189.78 | L76: 193.62 | M76: 185.95 | N76: 178.7 | O76: 30121200 | P76: 4.24%
A77: 67 | B77: Banking | C77: FEDERALBNK | D77: 2022-11-24 | E77: 136.40 | F77: 136.40 | G77: 135.70 | H77: 135.00 | I77: 134.30 | J77: 137.10 | K77: 137.80 | L77: 138.50 | M77: 137.1 | N77: 135.7 | O77: 77475000 | P77: -0.87%
A78: 68 | B78: Technology | C78: FSL | D78: 2022-11-24 | E78: 110.95 | F78: 110.32 | G78: 109.23 | H78: 107.52 | I78: 106.43 | J78: 112.03 | K78: 113.12 | L78: 114.83 | M78: 111.4 | N78: 108.6 | O78: 16941600 | P78: 1.12%
A79: 69 | B79: Oil_Gas | C79: GAIL | D79: 2022-11-24 | E79: 90.35 | F79: 89.78 | G79: 89.12 | H79: 87.88 | I79: 87.22 | J79: 91.02 | K79: 91.68 | L79: 92.92 | M79: 90.45 | N79: 88.55 | O79: 62393850 | P79: 1.99%
A80: 70 | B80: Pharma | C80: GLENMARK | D80: 2022-11-24 | E80: 437.40 | F80: 433.92 | G80: 429.63 | H80: 421.87 | I80: 417.58 | J80: 441.68 | K80: 445.97 | L80: 453.73 | M80: 438.2 | N80: 426.15 | O80: 7968650 | P80: -1.23%
A81: 71 | B81: Infrastructure | C81: GMRINFRA | D81: 2022-11-24 | E81: 37.25 | F81: 37.53 | G81: 36.42 | H81: 35.58 | I81: 34.47 | J81: 38.37 | K81: 39.48 | L81: 40.32 | M81: 38.65 | N81: 36.7 | O81: 130792500 | P81: 4.64%
A82: 72 | B82: Others | C82: GNFC | D82: 2022-11-24 | E82: 579.55 | F82: 585.18 | G82: 569.37 | H82: 559.18 | I82: 543.37 | J82: 595.37 | K82: 611.18 | L82: 621.37 | M82: 601 | N82: 575 | O82: 8780200 | P82: -3.24%
A83: 73 | B83: FMCG | C83: GODREJCP | D83: 2022-11-24 | E83: 851.20 | F83: 848.18 | G83: 840.42 | H83: 829.63 | I83: 821.87 | J83: 858.97 | K83: 866.73 | L83: 877.52 | M83: 855.95 | N83: 837.4 | O83: 6915000 | P83: -1.68%
A84: 74 | B84: Realty | C84: GODREJPROP | D84: 2022-11-24 | E84: 1316.45 | F84: 1313.40 | G84: 1302.80 | H84: 1289.15 | I84: 1278.55 | J84: 1327.05 | K84: 1337.65 | L84: 1351.30 | M84: 1324 | N84: 1299.75 | O84: 4596050 | P84: -0.28%
A85: 75 | B85: Pharma | C85: GRANULES | D85: 2022-11-24 | E85: 371.75 | F85: 370.62 | G85: 367.03 | H85: 362.32 | I85: 358.73 | J85: 375.33 | K85: 378.92 | L85: 383.63 | M85: 374.2 | N85: 365.9 | O85: 7438000 | P85: 0.43%
A86: 76 | B86: Cement | C86: GRASIM | D86: 2022-11-24 | E86: 1743.55 | F86: 1742.80 | G86: 1721.60 | H86: 1699.65 | I86: 1678.45 | J86: 1764.75 | K86: 1785.95 | L86: 1807.90 | M86: 1764 | N86: 1720.85 | O86: 7727775 | P86: -2.31%
A87: 77 | B87: Oil_Gas | C87: GSPL | D87: 2022-11-24 | E87: 254.20 | F87: 253.07 | G87: 246.88 | H87: 239.57 | I87: 233.38 | J87: 260.38 | K87: 266.57 | L87: 273.88 | M87: 259.25 | N87: 245.75 | O87: 5840000 | P87: 19.86%
A88: 78 | B88: Oil_Gas | C88: GUJGASLTD | D88: 2022-11-24 | E88: 514.60 | F88: 504.77 | G88: 493.98 | H88: 473.37 | I88: 462.58 | J88: 525.38 | K88: 536.17 | L88: 556.78 | M88: 515.55 | N88: 484.15 | O88: 3956250 | P88: -10.87%
A89: 79 | B89: Others | C89: HAL | D89: 2022-11-24 | E89: 2517.25 | F89: 2499.42 | G89: 2473.83 | H89: 2430.42 | I89: 2404.83 | J89: 2542.83 | K89: 2568.42 | L89: 2611.83 | M89: 2525 | N89: 2456 | O89: 4065750 | P89: -1.30%
A90: 80 | B90: Capital_Goods | C90: HAVELLS | D90: 2022-11-24 | E90: 1242.70 | F90: 1243.77 | G90: 1233.93 | H90: 1225.17 | I90: 1215.33 | J90: 1252.53 | K90: 1262.37 | L90: 1271.13 | M90: 1253.6 | N90: 1235 | O90: 4371500 | P90: -0.64%
A91: 81 | B91: Technology | C91: HCLTECH | D91: 2022-11-24 | E91: 1107.35 | F91: 1102.93 | G91: 1096.62 | H91: 1085.88 | I91: 1079.57 | J91: 1113.67 | K91: 1119.98 | L91: 1130.72 | M91: 1109.25 | N91: 1092.2 | O91: 14971600 | P91: -0.32%
A92: 82 | B92: Finance | C92: HDFC | D92: 2022-11-24 | E92: 2683.00 | F92: 2673.78 | G92: 2659.72 | H92: 2636.43 | I92: 2622.37 | J92: 2697.07 | K92: 2711.13 | L92: 2734.42 | M92: 2687.85 | N92: 2650.5 | O92: 17351700 | P92: -0.21%
A93: 83 | B93: Finance | C93: HDFCAMC | D93: 2022-11-24 | E93: 2091.10 | F93: 2086.55 | G93: 2075.55 | H93: 2060.00 | I93: 2049.00 | J93: 2102.10 | K93: 2113.10 | L93: 2128.65 | M93: 2097.55 | N93: 2071 | O93: 1871700 | P93: -0.21%
A94: 84 | B94: Banking | C94: HDFCBANK | D94: 2022-11-24 | E94: 1626.75 | F94: 1622.98 | G94: 1615.62 | H94: 1604.48 | I94: 1597.12 | J94: 1634.12 | K94: 1641.48 | L94: 1652.62 | M94: 1630.35 | N94: 1611.85 | O94: 67695650 | P94: 0.65%
A95: 85 | B95: Finance | C95: HDFCLIFE | D95: 2022-11-24 | E95: 535.65 | F95: 536.90 | G95: 530.85 | H95: 526.05 | I95: 520.00 | J95: 541.70 | K95: 547.75 | L95: 552.55 | M95: 542.95 | N95: 532.1 | O95: 23261700 | P95: 4.00%
A96: 86 | B96: Automobile | C96: HEROMOTOCO | D96: 2022-11-24 | E96: 2727.25 | F96: 2717.55 | G96: 2695.15 | H96: 2663.05 | I96: 2640.65 | J96: 2749.65 | K96: 2772.05 | L96: 2804.15 | M96: 2739.95 | N96: 2685.45 | O96: 2772900 | P96: 6.87%
A97: 87 | B97: Metals | C97: HINDALCO | D97: 2022-11-24 | E97: 458.80 | F97: 456.78 | G97: 452.17 | H97: 445.53 | I97: 440.92 | J97: 463.42 | K97: 468.03 | L97: 474.67 | M97: 461.4 | N97: 450.15 | O97: 28194600 | P97: -5.45%
A98: 88 | B98: Metals | C98: HINDCOPPER | D98: 2022-11-24 | E98: 119.85 | F98: 118.70 | G98: 117.15 | H98: 114.45 | I98: 112.90 | J98: 121.40 | K98: 122.95 | L98: 125.65 | M98: 120.25 | N98: 116 | O98: 20270600 | P98: 7.12%
A99: 89 | B99: Oil_Gas | C99: HINDPETRO | D99: 2022-11-24 | E99: 210.95 | F99: 210.13 | G99: 209.02 | H99: 207.08 | I99: 205.97 | J99: 212.07 | K99: 213.18 | L99: 215.12 | M99: 211.25 | N99: 208.2 | O99: 20179800 | P99: 1.01%
A100: 90 | B100: FMCG | C100: HINDUNILVR | D100: 2022-11-24 | E100: 2471.10 | F100: 2470.23 | G100: 2458.12 | H100: 2445.13 | I100: 2433.02 | J100: 2483.22 | K100: 2495.33 | L100: 2508.32 | M100: 2482.35 | N100: 2457.25 | O100: 7630200 | P100: -1.62%
A101: 91 | B101: Others | C101: HONAUT | D101: 2022-11-24 | E101: 39574.15 | F101: 39326.88 | G101: 38977.27 | H101: 38380.38 | I101: 38030.77 | J101: 39923.77 | K101: 40273.38 | L101: 40870.27 | M101: 39676.5 | N101: 38730 | O101: 26370 | P101: -2.98%
A102: 92 | B102: Finance | C102: IBULHSGFIN | D102: 2022-11-24 | E102: 133.80 | F102: 134.18 | G102: 131.37 | H102: 128.93 | I102: 126.12 | J102: 136.62 | K102: 139.43 | L102: 141.87 | M102: 137 | N102: 131.75 | O102: 44348000 | P102: -0.52%
A103: 93 | B103: Banking | C103: ICICIBANK | D103: 2022-11-24 | E103: 914.85 | F103: 911.17 | G103: 906.18 | H103: 897.52 | I103: 892.53 | J103: 919.83 | K103: 924.82 | L103: 933.48 | M103: 916.15 | N103: 902.5 | O103: 96709325 | P103: -2.44%
A104: 94 | B104: Finance | C104: ICICIGI | D104: 2022-11-24 | E104: 1125.10 | F104: 1128.52 | G104: 1118.03 | H104: 1110.97 | I104: 1100.48 | J104: 1135.58 | K104: 1146.07 | L104: 1153.13 | M104: 1139 | N104: 1121.45 | O104: 5161625 | P104: 1.96%
A105: 95 | B105: Finance | C105: ICICIPRULI | D105: 2022-11-24 | E105: 483.85 | F105: 484.77 | G105: 480.48 | H105: 477.12 | I105: 472.83 | J105: 488.13 | K105: 492.42 | L105: 495.78 | M105: 489.05 | N105: 481.4 | O105: 9438000 | P105: 2.31%
A106: 96 | B106: Telecom | C106: IDEA | D106: 2022-11-24 | E106: 8.50 | F106: 8.52 | G106: 8.43 | H106: 8.37 | I106: 8.28 | J106: 8.58 | K106: 8.67 | L106: 8.73 | M106: 8.6 | N106: 8.45 | O106: 589750000 | P106: -0.07%
A107: 97 | B107: Finance | C107: IDFC | D107: 2022-11-24 | E107: 80.70 | F107: 80.33 | G107: 79.87 | H107: 79.03 | I107: 78.57 | J107: 81.17 | K107: 81.63 | L107: 82.47 | M107: 80.8 | N107: 79.5 | O107: 104880000 | P107: -0.06%
A108: 98 | B108: Banking | C108: IDFCFIRSTB | D108: 2022-11-24 | E108: 57.55 | F108: 57.47 | G108: 56.98 | H108: 56.42 | I108: 55.93 | J108: 58.03 | K108: 58.52 | L108: 59.08 | M108: 57.95 | N108: 56.9 | O108: 172845000 | P108: 2.51%
A109: 99 | B109: Others | C109: IEX | D109: 2022-11-24 | E109: 146.25 | F109: 146.05 | G109: 145.20 | H109: 144.15 | I109: 143.30 | J109: 147.10 | K109: 147.95 | L109: 149.00 | M109: 146.9 | N109: 145 | O109: 47478750 | P109: 0.77%
A110: 100 | B110: Oil_Gas | C110: IGL | D110: 2022-11-24 | E110: 436.30 | F110: 431.45 | G110: 421.65 | H110: 407.00 | I110: 397.20 | J110: 446.10 | K110: 455.90 | L110: 470.55 | M110: 441.25 | N110: 416.8 | O110: 11352000 | P110: 23.65%
A111: 101 | B111: Infrastructure | C111: INDHOTEL | D111: 2022-11-24 | E111: 313.45 | F111: 313.88 | G111: 310.32 | H111: 307.18 | I111: 303.62 | J111: 317.02 | K111: 320.58 | L111: 323.72 | M111: 317.45 | N111: 310.75 | O111: 45510796 | P111: 2.09%
A112: 102 | B112: Cement | C112: INDIACEM | D112: 2022-11-24 | E112: 250.80 | F112: 251.38 | G112: 247.07 | H112: 243.33 | I112: 239.02 | J112: 255.12 | K112: 259.43 | L112: 263.17 | M112: 255.7 | N112: 247.65 | O112: 16167500 | P112: 1.38%
A113: 103 | B113: Others | C113: INDIAMART | D113: 2022-11-24 | E113: 4704.70 | F113: 4701.12 | G113: 4647.48 | H113: 4590.27 | I113: 4536.63 | J113: 4758.33 | K113: 4811.97 | L113: 4869.18 | M113: 4754.75 | N113: 4643.9 | O113: 274950 | P113: -0.97%
A114: 104 | B114: Others | C114: INDIGO | D114: 2022-11-24 | E114: 1799.95 | F114: 1796.87 | G114: 1784.23 | H114: 1768.52 | I114: 1755.88 | J114: 1812.58 | K114: 1825.22 | L114: 1840.93 | M114: 1809.5 | N114: 1781.15 | O114: 4343400 | P114: -1.25%
A115: 105 | B115: Banking | C115: INDUSINDBK | D115: 2022-11-24 | E115: 1159.30 | F115: 1161.00 | G115: 1150.20 | H115: 1141.10 | I115: 1130.30 | J115: 1170.10 | K115: 1180.90 | L115: 1190.00 | M115: 1171.8 | N115: 1151.9 | O115: 28588950 | P115: 1.68%
A116: 106 | B116: Telecom | C116: INDUSTOWER | D116: 2022-11-24 | E116: 195.90 | F116: 195.72 | G116: 194.68 | H116: 193.47 | I116: 192.43 | J116: 196.93 | K116: 197.97 | L116: 199.18 | M116: 196.75 | N116: 194.5 | O116: 15134000 | P116: -2.07%
A117: 107 | B117: Technology | C117: INFY | D117: 2022-11-24 | E117: 1596.30 | F117: 1591.42 | G117: 1582.98 | H117: 1569.67 | I117: 1561.23 | J117: 1604.73 | K117: 1613.17 | L117: 1626.48 | M117: 1599.85 | N117: 1578.1 | O117: 28116300 | P117: -2.38%
A118: 108 | B118: Technology | C118: INTELLECT | D118: 2022-11-24 | E118: 460.60 | F118: 458.22 | G118: 454.38 | H118: 448.17 | I118: 444.33 | J118: 464.43 | K118: 468.27 | L118: 474.48 | M118: 462.05 | N118: 452 | O118: 5314250 | P118: -0.81%
A119: 109 | B119: Oil_Gas | C119: IOC | D119: 2022-11-24 | E119: 69.90 | F119: 69.80 | G119: 69.65 | H119: 69.40 | I119: 69.25 | J119: 70.05 | K119: 70.20 | L119: 70.45 | M119: 69.95 | N119: 69.55 | O119: 86687250 | P119: 0.61%
A120: 110 | B120: Pharma | C120: IPCALAB | D120: 2022-11-24 | E120: 870.85 | F120: 869.87 | G120: 861.98 | H120: 853.12 | I120: 845.23 | J120: 878.73 | K120: 886.62 | L120: 895.48 | M120: 877.75 | N120: 861 | O120: 1990950 | P120: -3.41%
A121: 111 | B121: Others | C121: IRCTC | D121: 2022-11-24 | E121: 739.20 | F121: 739.18 | G121: 729.12 | H121: 719.03 | I121: 708.97 | J121: 749.27 | K121: 759.33 | L121: 769.42 | M121: 749.25 | N121: 729.1 | O121: 16209375 | P121: 8.21%
A122: 112 | B122: FMCG | C122: ITC | D122: 2022-11-24 | E122: 346.70 | F122: 345.80 | G122: 341.50 | H122: 336.30 | I122: 332.00 | J122: 351.00 | K122: 355.30 | L122: 360.50 | M122: 350.1 | N122: 340.6 | O122: 78220800 | P122: -0.98%
A123: 113 | B123: Metals | C123: JINDALSTEL | D123: 2022-11-24 | E123: 525.70 | F123: 522.45 | G123: 517.45 | H123: 509.20 | I123: 504.20 | J123: 530.70 | K123: 535.70 | L123: 543.95 | M123: 527.45 | N123: 514.2 | O123: 25598750 | P123: -0.14%
A124: 114 | B124: Cement | C124: JKCEMENT | D124: 2022-11-24 | E124: 2948.25 | F124: 2944.80 | G124: 2910.60 | H124: 2872.95 | I124: 2838.75 | J124: 2982.45 | K124: 3016.65 | L124: 3054.30 | M124: 2979 | N124: 2907.15 | O124: 572500 | P124: 4.28%
A125: 115 | B125: Metals | C125: JSWSTEEL | D125: 2022-11-24 | E125: 725.35 | F125: 723.03 | G125: 718.42 | H125: 711.48 | I125: 706.87 | J125: 729.97 | K125: 734.58 | L125: 741.52 | M125: 727.65 | N125: 716.1 | O125: 25477200 | P125: 0.50%
A126: 116 | B126: Others | C126: JUBLFOOD | D126: 2022-11-24 | E126: 564.25 | F126: 563.73 | G126: 560.92 | H126: 557.58 | I126: 554.77 | J126: 567.07 | K126: 569.88 | L126: 573.22 | M126: 566.55 | N126: 560.4 | O126: 14542500 | P126: 0.35%
A127: 117 | B127: Banking | C127: KOTAKBANK | D127: 2022-11-24 | E127: 1922.20 | F127: 1923.35 | G127: 1905.05 | H127: 1887.90 | I127: 1869.60 | J127: 1940.50 | K127: 1958.80 | L127: 1975.95 | M127: 1941.65 | N127: 1906.2 | O127: 23227600 | P127: 4.00%
A128: 118 | B128: Finance | C128: L&TFH | D128: 2022-11-24 | E128: 83.40 | F128: 83.20 | G128: 82.60 | H128: 81.80 | I128: 81.20 | J128: 84.00 | K128: 84.60 | L128: 85.40 | M128: 83.8 | N128: 82.4 | O128: 58461124 | P128: 0.83%
A129: 119 | B129: Others | C129: LALPATHLAB | D129: 2022-11-24 | E129: 2477.75 | F129: 2453.15 | G129: 2411.10 | H129: 2344.45 | I129: 2302.40 | J129: 2519.80 | K129: 2561.85 | L129: 2628.50 | M129: 2495.2 | N129: 2386.5 | O129: 1360000 | P129: 1.44%
A130: 120 | B130: Pharma | C130: LAURUSLABS | D130: 2022-11-24 | E130: 472.75 | F130: 471.57 | G130: 467.68 | H130: 462.62 | I130: 458.73 | J130: 476.63 | K130: 480.52 | L130: 485.58 | M130: 475.45 | N130: 466.5 | O130: 7847800 | P130: -0.26%
A131: 121 | B131: Finance | C131: LICHSGFIN | D131: 2022-11-24 | E131: 375.85 | F131: 374.73 | G131: 373.07 | H131: 370.28 | I131: 368.62 | J131: 377.52 | K131: 379.18 | L131: 381.97 | M131: 376.4 | N131: 371.95 | O131: 18118000 | P131: -1.83%
A132: 122 | B132: Capital_Goods | C132: LT | D132: 2022-11-24 | E132: 2006.55 | F132: 2007.73 | G132: 1987.67 | H132: 1968.78 | I132: 1948.72 | J132: 2026.62 | K132: 2046.68 | L132: 2065.57 | M132: 2027.8 | N132: 1988.85 | O132: 9170400 | P132: 1.33%
A133: 123 | B133: Technology | C133: LTI | D133: 2022-11-24 | E133: 5156.30 | F133: 5212.20 | G133: 5051.80 | H133: 4947.30 | I133: 4786.90 | J133: 5316.70 | K133: 5477.10 | L133: 5581.60 | M133: 5372.6 | N133: 5107.7 | O133: 1375950 | P133: 7.15%
A134: 124 | B134: Technology | C134: LTTS | D134: 2022-11-24 | E134: 3750.30 | F134: 3745.25 | G134: 3694.90 | H134: 3639.50 | I134: 3589.15 | J134: 3800.65 | K134: 3851.00 | L134: 3906.40 | M134: 3795.6 | N134: 3689.85 | O134: 1202600 | P134: 2.65%
A135: 125 | B135: Pharma | C135: LUPIN | D135: 2022-11-24 | E135: 757.65 | F135: 758.83 | G135: 751.27 | H135: 744.88 | I135: 737.32 | J135: 765.22 | K135: 772.78 | L135: 779.17 | M135: 766.4 | N135: 752.45 | O135: 7457050 | P135: -1.53%
A136: 126 | B136: Automobile | C136: M&M | D136: 2022-11-24 | E136: 1297.05 | F136: 1292.85 | G136: 1285.75 | H136: 1274.45 | I136: 1267.35 | J136: 1304.15 | K136: 1311.25 | L136: 1322.55 | M136: 1299.95 | N136: 1281.55 | O136: 11133500 | P136: -1.78%
A137: 127 | B137: Finance | C137: M&MFIN | D137: 2022-11-24 | E137: 214.35 | F137: 215.25 | G137: 212.75 | H137: 211.15 | I137: 208.65 | J137: 216.85 | K137: 219.35 | L137: 220.95 | M137: 217.75 | N137: 213.65 | O137: 21476000 | P137: -1.36%
A138: 128 | B138: Finance | C138: MANAPPURAM | D138: 2022-11-24 | E138: 116.75 | F138: 117.05 | G138: 114.85 | H138: 112.95 | I138: 110.75 | J138: 118.95 | K138: 121.15 | L138: 123.05 | M138: 119.25 | N138: 115.15 | O138: 36204000 | P138: -10.43%
A139: 129 | B139: FMCG | C139: MARICO | D139: 2022-11-24 | E139: 500.50 | F139: 500.68 | G139: 498.02 | H139: 495.53 | I139: 492.87 | J139: 503.17 | K139: 505.83 | L139: 508.32 | M139: 503.35 | N139: 498.2 | O139: 10315200 | P139: -2.76%
A140: 130 | B140: Automobile | C140: MARUTI | D140: 2022-11-24 | E140: 9207.45 | F140: 9194.05 | G140: 9159.00 | H140: 9110.55 | I140: 9075.50 | J140: 9242.50 | K140: 9277.55 | L140: 9326.00 | M140: 9229.1 | N140: 9145.6 | O140: 2925200 | P140: -0.24%
A141: 131 | B141: FMCG | C141: MCDOWELL-N | D141: 2022-11-24 | E141: 909.45 | F141: 899.93 | G141: 888.22 | H141: 866.98 | I141: 855.27 | J141: 921.17 | K141: 932.88 | L141: 954.12 | M141: 911.65 | N141: 878.7 | O141: 18751250 | P141: 3.63%
A142: 132 | B142: Others | C142: MCX | D142: 2022-11-24 | E142: 1547.55 | F142: 1544.53 | G142: 1520.02 | H142: 1492.48 | I142: 1467.97 | J142: 1572.07 | K142: 1596.58 | L142: 1624.12 | M142: 1569.05 | N142: 1517 | O142: 2116400 | P142: -0.09%
A143: 133 | B143: Pharma | C143: METROPOLIS | D143: 2022-11-24 | E143: 1565.40 | F143: 1570.68 | G143: 1545.72 | H143: 1526.03 | I143: 1501.07 | J143: 1590.37 | K143: 1615.33 | L143: 1635.02 | M143: 1595.65 | N143: 1551 | O143: 749500 | P143: -0.83%
A144: 134 | B144: Finance | C144: MFSL | D144: 2022-11-24 | E144: 678.70 | F144: 678.60 | G144: 671.20 | H144: 663.70 | I144: 656.30 | J144: 686.10 | K144: 693.50 | L144: 701.00 | M144: 686 | N144: 671.1 | O144: 2757950 | P144: 7.44%
A145: 135 | B145: Oil_Gas | C145: MGL | D145: 2022-11-24 | E145: 905.75 | F145: 899.08 | G145: 886.57 | H145: 867.38 | I145: 854.87 | J145: 918.27 | K145: 930.78 | L145: 949.97 | M145: 911.6 | N145: 879.9 | O145: 2952800 | P145: 2.50%
A146: 136 | B146: Technology | C146: MINDTREE | D146: 2022-11-24 | E146: 3729.95 | F146: 3779.85 | G146: 3647.50 | H146: 3565.05 | I146: 3432.70 | J146: 3862.30 | K146: 3994.65 | L146: 4077.10 | M146: 3912.2 | N146: 3697.4 | O146: 2564000 | P146: 0.18%
A147: 137 | B147: Automobile | C147: MOTHERSON | D147: 2022-11-24 | E147: 74.45 | F147: 73.95 | G147: 73.25 | H147: 72.05 | I147: 71.35 | J147: 75.15 | K147: 75.85 | L147: 77.05 | M147: 74.65 | N147: 72.75 | O147: 101567250 | P147: 0.17%
A148: 138 | B148: Technology | C148: MPHASIS | D148: 2022-11-24 | E148: 2024.50 | F148: 2026.77 | G148: 1995.38 | H148: 1966.27 | I148: 1934.88 | J148: 2055.88 | K148: 2087.27 | L148: 2116.38 | M148: 2058.15 | N148: 1997.65 | O148: 2238450 | P148: 1.97%
A149: 139 | B149: Automobile | C149: MRF | D149: 2022-11-24 | E149: 87788.15 | F149: 87487.00 | G149: 86884.05 | H149: 85979.95 | I149: 85377.00 | J149: 88391.10 | K149: 88994.05 | L149: 89898.15 | M149: 88089.95 | N149: 86582.9 | O149: 84310 | P149: -2.94%
A150: 140 | B150: Finance | C150: MUTHOOTFIN | D150: 2022-11-24 | E150: 1121.80 | F150: 1109.78 | G150: 1091.17 | H150: 1060.53 | I150: 1041.92 | J150: 1140.42 | K150: 1159.03 | L150: 1189.67 | M150: 1128.4 | N150: 1079.15 | O150: 7853650 | P150: -4.11%
A151: 141 | B151: Metals | C151: NATIONALUM | D151: 2022-11-24 | E151: 78.80 | F151: 78.47 | G151: 77.83 | H151: 76.87 | I151: 76.23 | J151: 79.43 | K151: 80.07 | L151: 81.03 | M151: 79.1 | N151: 77.5 | O151: 68779250 | P151: -2.93%
A152: 142 | B152: Others | C152: NAUKRI | D152: 2022-11-24 | E152: 4168.60 | F152: 4227.13 | G152: 4092.47 | H152: 4016.33 | I152: 3881.67 | J152: 4303.27 | K152: 4437.93 | L152: 4514.07 | M152: 4361.8 | N152: 4151 | O152: 1753375 | P152: -5.31%
A153: 143 | B153: Chemical | C153: NAVINFLUOR | D153: 2022-11-24 | E153: 4460.55 | F153: 4457.85 | G153: 4425.70 | H153: 4390.85 | I153: 4358.70 | J153: 4492.70 | K153: 4524.85 | L153: 4559.70 | M153: 4490 | N153: 4423 | O153: 380400 | P153: 0.02%
A154: 144 | B154: FMCG | C154: NESTLEIND | D154: 2022-11-24 | E154: 20145.10 | F154: 20095.40 | G154: 19993.25 | H154: 19841.40 | I154: 19739.25 | J154: 20247.25 | K154: 20349.40 | L154: 20501.25 | M154: 20197.55 | N154: 19943.55 | O154: 240600 | P154: -1.26%
A155: 145 | B155: Metals | C155: NMDC | D155: 2022-11-24 | E155: 109.25 | F155: 109.92 | G155: 107.43 | H155: 105.62 | I155: 103.13 | J155: 111.73 | K155: 114.22 | L155: 116.03 | M155: 112.4 | N155: 108.1 | O155: 28133000 | P155: 11.97%
A156: 146 | B156: Power | C156: NTPC | D156: 2022-11-24 | E156: 173.15 | F156: 173.38 | G156: 172.27 | H156: 171.38 | I156: 170.27 | J156: 174.27 | K156: 175.38 | L156: 176.27 | M156: 174.5 | N156: 172.5 | O156: 58721400 | P156: 2.51%
A157: 147 | B157: Realty | C157: OBEROIRLTY | D157: 2022-11-24 | E157: 915.55 | F157: 914.55 | G157: 908.10 | H157: 900.65 | I157: 894.20 | J157: 922.00 | K157: 928.45 | L157: 935.90 | M157: 921 | N157: 907.1 | O157: 6087200 | P157: 0.54%
A158: 148 | B158: Technology | C158: OFSS | D158: 2022-11-24 | E158: 3112.60 | F158: 3103.57 | G158: 3085.33 | H158: 3058.07 | I158: 3039.83 | J158: 3130.83 | K158: 3149.07 | L158: 3176.33 | M158: 3121.8 | N158: 3076.3 | O158: 500200 | P158: -1.69%
A159: 149 | B159: Oil_Gas | C159: ONGC | D159: 2022-11-24 | E159: 142.80 | F159: 142.40 | G159: 140.95 | H159: 139.10 | I159: 137.65 | J159: 144.25 | K159: 145.70 | L159: 147.55 | M159: 143.85 | N159: 140.55 | O159: 38927350 | P159: 5.04%
A160: 150 | B160: Textile | C160: PAGEIND | D160: 2022-11-24 | E160: 46932.95 | F160: 46798.90 | G160: 46406.00 | H160: 45879.05 | I160: 45486.15 | J160: 47325.85 | K160: 47718.75 | L160: 48245.70 | M160: 47191.8 | N160: 46271.95 | O160: 116145 | P160: 0.69%
A161: 151 | B161: Pharma | C161: PEL | D161: 2022-11-24 | E161: 825.70 | F161: 829.38 | G161: 818.77 | H161: 811.83 | I161: 801.22 | J161: 836.32 | K161: 846.93 | L161: 853.87 | M161: 840 | N161: 822.45 | O161: 5641900 | P161: -2.55%
A162: 152 | B162: Technology | C162: PERSISTENT | D162: 2022-11-24 | E162: 3828.80 | F162: 3820.58 | G162: 3778.22 | H162: 3727.63 | I162: 3685.27 | J162: 3871.17 | K162: 3913.53 | L162: 3964.12 | M162: 3862.95 | N162: 3770 | O162: 654300 | P162: -1.81%
A163: 153 | B163: Oil_Gas | C163: PETRONET | D163: 2022-11-24 | E163: 214.45 | F163: 214.15 | G163: 213.40 | H163: 212.35 | I163: 211.60 | J163: 215.20 | K163: 215.95 | L163: 217.00 | M163: 214.9 | N163: 213.1 | O163: 14343000 | P163: -0.66%
A164: 154 | B164: Finance | C164: PFC | D164: 2022-11-24 | E164: 121.05 | F164: 121.08 | G164: 119.77 | H164: 118.48 | I164: 117.17 | J164: 122.37 | K164: 123.68 | L164: 124.97 | M164: 122.4 | N164: 119.8 | O164: 47715200 | P164: -3.44%
A165: 155 | B165: FMCG | C165: PIDILITIND | D165: 2022-11-24 | E165: 2681.45 | F165: 2672.95 | G165: 2659.60 | H165: 2637.75 | I165: 2624.40 | J165: 2694.80 | K165: 2708.15 | L165: 2730.00 | M165: 2686.3 | N165: 2651.1 | O165: 2965750 | P165: -1.65%
A166: 156 | B166: Chemical | C166: PIIND | D166: 2022-11-24 | E166: 3444.75 | F166: 3440.28 | G166: 3401.07 | H166: 3357.38 | I166: 3318.17 | J166: 3483.97 | K166: 3523.18 | L166: 3566.87 | M166: 3479.5 | N166: 3396.6 | O166: 2045500 | P166: 0.05%
A167: 157 | B167: Banking | C167: PNB | D167: 2022-11-24 | E167: 44.10 | F167: 44.07 | G167: 43.78 | H167: 43.47 | I167: 43.18 | J167: 44.38 | K167: 44.67 | L167: 44.98 | M167: 44.35 | N167: 43.75 | O167: 257840000 | P167: -1.52%
A168: 158 | B168: Others | C168: POLYCAB | D168: 2022-11-24 | E168: 2619.05 | F168: 2640.42 | G168: 2585.03 | H168: 2551.02 | I168: 2495.63 | J168: 2674.43 | K168: 2729.82 | L168: 2763.83 | M168: 2695.8 | N168: 2606.4 | O168: 1008600 | P168: 18.21%
A169: 159 | B169: Power | C169: POWERGRID | D169: 2022-11-24 | E169: 216.65 | F169: 214.87 | G169: 212.68 | H169: 208.72 | I169: 206.53 | J169: 218.83 | K169: 221.02 | L169: 224.98 | M169: 217.05 | N169: 210.9 | O169: 39058200 | P169: -2.81%
A170: 160 | B170: Media | C170: PVR | D170: 2022-11-24 | E170: 1822.30 | F170: 1825.90 | G170: 1808.45 | H170: 1794.60 | I170: 1777.15 | J170: 1839.75 | K170: 1857.20 | L170: 1871.05 | M170: 1843.35 | N170: 1812.05 | O170: 2873013 | P170: 2.33%
A171: 161 | B171: Others | C171: RAIN | D171: 2022-11-24 | E171: 181.50 | F171: 181.40 | G171: 179.00 | H171: 176.50 | I171: 174.10 | J171: 183.90 | K171: 186.30 | L171: 188.80 | M171: 183.8 | N171: 178.9 | O171: 11970000 | P171: 5.52%
A172: 162 | B172: Cement | C172: RAMCOCEM | D172: 2022-11-24 | E172: 668.05 | F172: 667.38 | G172: 660.67 | H172: 653.28 | I172: 646.57 | J172: 674.77 | K172: 681.48 | L172: 688.87 | M172: 674.1 | N172: 660 | O172: 5759600 | P172: -0.75%
A173: 163 | B173: Banking | C173: RBLBANK | D173: 2022-11-24 | E173: 146.00 | F173: 145.68 | G173: 144.62 | H173: 143.23 | I173: 142.17 | J173: 147.07 | K173: 148.13 | L173: 149.52 | M173: 146.75 | N173: 144.3 | O173: 46135000 | P173: -2.21%
A174: 164 | B174: Power | C174: RECLTD | D174: 2022-11-24 | E174: 100.85 | F174: 100.82 | G174: 100.23 | H174: 99.62 | I174: 99.03 | J174: 101.43 | K174: 102.02 | L174: 102.63 | M174: 101.4 | N174: 100.2 | O174: 41856000 | P174: -1.78%
A175: 165 | B175: Oil_Gas | C175: RELIANCE | D175: 2022-11-24 | E175: 2620.35 | F175: 2619.87 | G175: 2603.78 | H175: 2587.22 | I175: 2571.13 | J175: 2636.43 | K175: 2652.52 | L175: 2669.08 | M175: 2635.95 | N175: 2603.3 | O175: 31857250 | P175: -0.88%
A176: 166 | B176: Metals | C176: SAIL | D176: 2022-11-24 | E176: 86.75 | F176: 86.58 | G176: 85.67 | H176: 84.58 | I176: 83.67 | J176: 87.67 | K176: 88.58 | L176: 89.67 | M176: 87.5 | N176: 85.5 | O176: 103116000 | P176: 1.75%
A177: 167 | B177: Banking | C177: SBICARD | D177: 2022-11-24 | E177: 815.10 | F177: 815.25 | G177: 809.85 | H177: 804.60 | I177: 799.20 | J177: 820.50 | K177: 825.90 | L177: 831.15 | M177: 820.65 | N177: 810 | O177: 6033600 | P177: -0.04%
A178: 168 | B178: Finance | C178: SBILIFE | D178: 2022-11-24 | E178: 1263.10 | F178: 1256.72 | G178: 1248.48 | H178: 1233.87 | I178: 1225.63 | J178: 1271.33 | K178: 1279.57 | L178: 1294.18 | M178: 1264.95 | N178: 1242.1 | O178: 5120250 | P178: 0.01%
A179: 169 | B179: Banking | C179: SBIN | D179: 2022-11-24 | E179: 602.80 | F179: 600.78 | G179: 596.67 | H179: 590.53 | I179: 586.42 | J179: 606.92 | K179: 611.03 | L179: 617.17 | M179: 604.9 | N179: 594.65 | O179: 66100500 | P179: -0.05%
A180: 170 | B180: Cement | C180: SHREECEM | D180: 2022-11-24 | E180: 23246.80 | F180: 23194.82 | G180: 23094.38 | H180: 22941.97 | I180: 22841.53 | J180: 23347.23 | K180: 23447.67 | L180: 23600.08 | M180: 23295.25 | N180: 23042.4 | O180: 278425 | P180: 0.36%
A181: 171 | B181: Capital_Goods | C181: SIEMENS | D181: 2022-11-24 | E181: 2868.60 | F181: 2891.22 | G181: 2838.48 | H181: 2808.37 | I181: 2755.63 | J181: 2921.33 | K181: 2974.07 | L181: 3004.18 | M181: 2943.95 | N181: 2861.1 | O181: 1540275 | P181: -0.81%
A182: 172 | B182: Textile | C182: SRF | D182: 2022-11-24 | E182: 2410.95 | F182: 2394.60 | G182: 2374.70 | H182: 2338.45 | I182: 2318.55 | J182: 2430.85 | K182: 2450.75 | L182: 2487.00 | M182: 2414.5 | N182: 2358.35 | O182: 4581750 | P182: -0.57%
A183: 173 | B183: Finance | C183: SRTRANSFIN | D183: 2022-11-24 | E183: 1253.45 | F183: 1254.43 | G183: 1243.17 | H183: 1232.88 | I183: 1221.62 | J183: 1264.72 | K183: 1275.98 | L183: 1286.27 | M183: 1265.7 | N183: 1244.15 | O183: 3565200 | P183: 0.63%
A184: 174 | B184: Pharma | C184: SUNPHARMA | D184: 2022-11-24 | E184: 1021.20 | F184: 1018.20 | G184: 1013.35 | H184: 1005.50 | I184: 1000.65 | J184: 1026.05 | K184: 1030.90 | L184: 1038.75 | M184: 1023.05 | N184: 1010.35 | O184: 19847100 | P184: 0.70%
A185: 175 | B185: Media | C185: SUNTV | D185: 2022-11-24 | E185: 494.20 | F185: 497.32 | G185: 489.73 | H185: 485.27 | I185: 477.68 | J185: 501.78 | K185: 509.37 | L185: 513.83 | M185: 504.9 | N185: 492.85 | O185: 10908000 | P185: -5.80%
A186: 176 | B186: Pharma | C186: SYNGENE | D186: 2022-11-24 | E186: 630.25 | F186: 628.00 | G186: 621.50 | H186: 612.75 | I186: 606.25 | J186: 636.75 | K186: 643.25 | L186: 652.00 | M186: 634.5 | N186: 619.25 | O186: 1934000 | P186: 6.50%
A187: 177 | B187: Chemical | C187: TATACHEM | D187: 2022-11-24 | E187: 1061.85 | F187: 1065.52 | G187: 1054.08 | H187: 1046.32 | I187: 1034.88 | J187: 1073.28 | K187: 1084.72 | L187: 1092.48 | M187: 1076.95 | N187: 1057.75 | O187: 8041000 | P187: 1.34%
A188: 178 | B188: Telecom | C188: TATACOMM | D188: 2022-11-24 | E188: 1336.70 | F188: 1332.65 | G188: 1325.35 | H188: 1314.00 | I188: 1306.70 | J188: 1344.00 | K188: 1351.30 | L188: 1362.65 | M188: 1339.95 | N188: 1321.3 | O188: 2782000 | P188: -4.04%
A189: 179 | B189: FMCG | C189: TATACONSUM | D189: 2022-11-24 | E189: 775.10 | F189: 772.57 | G189: 769.13 | H189: 763.17 | I189: 759.73 | J189: 778.53 | K189: 781.97 | L189: 787.93 | M189: 776 | N189: 766.6 | O189: 9269100 | P189: 0.44%
A190: 180 | B190: Automobile | C190: TATAMOTORS | D190: 2022-11-24 | E190: 439.65 | F190: 439.10 | G190: 437.15 | H190: 434.65 | I190: 432.70 | J190: 441.60 | K190: 443.55 | L190: 446.05 | M190: 441.05 | N190: 436.6 | O190: 64566750 | P190: 0.48%
A191: 181 | B191: Power | C191: TATAPOWER | D191: 2022-11-24 | E191: 230.85 | F191: 230.50 | G191: 229.55 | H191: 228.25 | I191: 227.30 | J191: 231.80 | K191: 232.75 | L191: 234.05 | M191: 231.45 | N191: 229.2 | O191: 103143375 | P191: -0.68%
A192: 182 | B192: Metals | C192: TATASTEEL | D192: 2022-11-24 | E192: 109.20 | F192: 108.95 | G192: 107.95 | H192: 106.70 | I192: 105.70 | J192: 110.20 | K192: 111.20 | L192: 112.45 | M192: 109.95 | N192: 107.7 | O192: 224804250 | P192: -0.92%
A193: 183 | B193: Technology | C193: TCS | D193: 2022-11-24 | E193: 3343.05 | F193: 3333.77 | G193: 3318.38 | H193: 3293.72 | I193: 3278.33 | J193: 3358.43 | K193: 3373.82 | L193: 3398.48 | M193: 3349.15 | N193: 3309.1 | O193: 9955325 | P193: -0.33%
A194: 184 | B194: Technology | C194: TECHM | D194: 2022-11-24 | E194: 1070.20 | F194: 1066.25 | G194: 1057.45 | H194: 1044.70 | I194: 1035.90 | J194: 1079.00 | K194: 1087.80 | L194: 1100.55 | M194: 1075.05 | N194: 1053.5 | O194: 13758600 | P194: -0.05%
A195: 185 | B195: FMCG | C195: TITAN | D195: 2022-11-24 | E195: 2670.10 | F195: 2660.30 | G195: 2642.45 | H195: 2614.80 | I195: 2596.95 | J195: 2687.95 | K195: 2705.80 | L195: 2733.45 | M195: 2678.15 | N195: 2632.65 | O195: 6672000 | P195: -0.38%
A196: 186 | B196: Pharma | C196: TORNTPHARM | D196: 2022-11-24 | E196: 1661.30 | F196: 1660.73 | G196: 1648.07 | H196: 1634.83 | I196: 1622.17 | J196: 1673.97 | K196: 1686.63 | L196: 1699.87 | M196: 1673.4 | N196: 1647.5 | O196: 1571500 | P196: -4.64%
A197: 187 | B197: Power | C197: TORNTPOWER | D197: 2022-11-24 | E197: 522.65 | F197: 521.43 | G197: 518.42 | H197: 514.18 | I197: 511.17 | J197: 525.67 | K197: 528.68 | L197: 532.92 | M197: 524.45 | N197: 517.2 | O197: 4167000 | P197: -0.57%
A198: 188 | B198: Others | C198: TRENT | D198: 2022-11-24 | E198: 1423.25 | F198: 1423.08 | G198: 1414.32 | H198: 1405.38 | I198: 1396.62 | J198: 1432.02 | K198: 1440.78 | L198: 1449.72 | M198: 1431.85 | N198: 1414.15 | O198: 5070375 | P198: 1.32%
A199: 189 | B199: Automobile | C199: TVSMOTOR | D199: 2022-11-24 | E199: 1107.15 | F199: 1111.57 | G199: 1093.73 | H199: 1080.32 | I199: 1062.48 | J199: 1124.98 | K199: 1142.82 | L199: 1156.23 | M199: 1129.4 | N199: 1098.15 | O199: 5096700 | P199: -4.61%
A200: 190 | B200: FMCG | C200: UBL | D200: 2022-11-24 | E200: 1685.30 | F200: 1681.78 | G200: 1661.32 | H200: 1637.33 | I200: 1616.87 | J200: 1705.77 | K200: 1726.23 | L200: 1750.22 | M200: 1702.25 | N200: 1657.8 | O200: 1003600 | P200: -5.36%
A201: 191 | B201: Cement | C201: ULTRACEMCO | D201: 2022-11-24 | E201: 7001.55 | F201: 6982.00 | G201: 6926.05 | H201: 6850.55 | I201: 6794.60 | J201: 7057.50 | K201: 7113.45 | L201: 7188.95 | M201: 7037.95 | N201: 6906.5 | O201: 1977300 | P201: -0.66%
A202: 192 | B202: Chemical | C202: UPL | D202: 2022-11-24 | E202: 773.25 | F202: 774.52 | G202: 767.03 | H202: 760.82 | I202: 753.33 | J202: 780.73 | K202: 788.22 | L202: 794.43 | M202: 782 | N202: 768.3 | O202: 19329700 | P202: -1.55%
A203: 193 | B203: Metals | C203: VEDL | D203: 2022-11-24 | E203: 320.50 | F203: 318.50 | G203: 315.65 | H203: 310.80 | I203: 307.95 | J203: 323.35 | K203: 326.20 | L203: 331.05 | M203: 321.35 | N203: 313.65 | O203: 44778350 | P203: 2.50%
A204: 194 | B204: Capital_Goods | C204: VOLTAS | D204: 2022-11-24 | E204: 823.55 | F204: 824.57 | G204: 819.68 | H204: 815.82 | I204: 810.93 | J204: 828.43 | K204: 833.32 | L204: 837.18 | M204: 829.45 | N204: 820.7 | O204: 7329600 | P204: 5.50%
A205: 195 | B205: Capital_Goods | C205: WHIRLPOOL | D205: 2022-11-24 | E205: 1536.20 | F205: 1537.42 | G205: 1527.83 | H205: 1519.47 | I205: 1509.88 | J205: 1545.78 | K205: 1555.37 | L205: 1563.73 | M205: 1547 | N205: 1529.05 | O205: 733250 | P205: 0.77%
A206: 196 | B206: Technology | C206: WIPRO | D206: 2022-11-24 | E206: 399.10 | F206: 398.77 | G206: 396.03 | H206: 392.97 | I206: 390.23 | J206: 401.83 | K206: 404.57 | L206: 407.63 | M206: 401.5 | N206: 395.7 | O206: 44779000 | P206: 1.95%
... 17 more rows

Sheet Cash Intra
M5: Back to Main Page
A6: FOR INTRA DAY TRADING | K6: =Main!B10 -> 2022-11-16
A8: Sr.no | C8: CLOSE RATE | D8: Pivot Point | E8: Supports | H8: Resistances
E9: S1 | F9: S2 | G9: S3 | H9: R1 | I9: R2 | J9: R3 | K9: HIGH | L9: LOW | M9: Total Trade Quanity in Lakhs
A10: 1 | B10: Nifty 50 | C10: 18403.40 | D10: 18371.12 | E10: 18314.28 | F10: 18225.17 | G10: 18168.33 | H10: 18460.23 | I10: 18517.07 | J10: 18606.18 | K10: 18427.95 | L10: 18282.00
A11: 2 | B11: Nifty Bank | C11: 42372.70 | D11: 42300.77 | E11: 42151.48 | F11: 41930.27 | G11: 41780.98 | H11: 42521.98 | I11: 42671.27 | J11: 42892.48 | K11: 42450.05 | L11: 42079.55
A12: 3 | B12: Nifty CPSE | C12: 2826.70 | D12: 2822.90 | E12: 2809.10 | F12: 2791.50 | G12: 2777.70 | H12: 2840.50 | I12: 2854.30 | J12: 2871.90 | K12: 2836.70 | L12: 2805.30
A13: 4 | B13: Nifty Infra | C13: 5298.50 | D13: 5291.85 | E13: 5279.20 | F13: 5259.90 | G13: 5247.25 | H13: 5311.15 | I13: 5323.80 | J13: 5343.10 | K13: 5304.50 | L13: 5272.55
A14: 5 | B14: Nifty IT | C14: 29865.25 | D14: 29774.35 | E14: 29622.55 | F14: 29379.85 | G14: 29228.05 | H14: 30017.05 | I14: 30168.85 | J14: 30411.55 | K14: 29926.15 | L14: 29531.65
A15: 6 | B15: Nifty PSE | C15: 4308.60 | D15: 4302.58 | E15: 4291.72 | F15: 4274.83 | G15: 4263.97 | H15: 4319.47 | I15: 4330.33 | J15: 4347.22 | K15: 4313.45 | L15: 4285.70
A16: 7 | B16: Nifty Midcap 50 | C16: 8675.45 | D16: 8668.15 | E16: 8643.70 | F16: 8611.95 | G16: 8587.50 | H16: 8699.90 | I16: 8724.35 | J16: 8756.10 | K16: 8692.60 | L16: 8636.40
A17: 8 | B17: ABB | C17: 3027.85 | D17: 3040.75 | E17: 3001.50 | F17: 2975.15 | G17: 2935.90 | H17: 3067.10 | I17: 3106.35 | J17: 3132.70 | K17: 3080 | L17: 3014.4 | M17: 3.83627
A18: 9 | B18: ACC | C18: 2478.65 | D18: 2478.50 | E18: 2442.25 | F18: 2405.85 | G18: 2369.60 | H18: 2514.90 | I18: 2551.15 | J18: 2587.55 | K18: 2514.75 | L18: 2442.1 | M18: 10.03908
A19: 10 | B19: AUBANK | C19: 633.9 | D19: 634.92 | E19: 630.98 | F19: 628.07 | G19: 624.13 | H19: 637.83 | I19: 641.77 | J19: 644.68 | K19: 638.85 | L19: 632 | M19: 9.77826
A20: 11 | B20: ABBOTINDIA | C20: 19651.45 | D20: 19763.85 | E20: 19388.85 | F20: 19126.25 | G20: 18751.25 | H20: 20026.45 | I20: 20401.45 | J20: 20664.05 | K20: 20138.85 | L20: 19501.25 | M20: 0.16611
A21: 12 | B21: ADANIENT | C21: 4057.8 | D21: 4048.27 | E21: 4031.53 | F21: 4005.27 | G21: 3988.53 | H21: 4074.53 | I21: 4091.27 | J21: 4117.53 | K21: 4065 | L21: 4022 | M21: 10.65546
A22: 13 | B22: ADANIGREEN | C22: 2196.95 | D22: 2193.40 | E22: 2174.70 | F22: 2152.45 | G22: 2133.75 | H22: 2215.65 | I22: 2234.35 | J22: 2256.60 | K22: 2212.1 | L22: 2171.15 | M22: 6.03539
A23: 14 | B23: ADANIPORTS | C23: 906.9 | D23: 905.80 | E23: 896.10 | F23: 885.30 | G23: 875.60 | H23: 916.60 | I23: 926.30 | J23: 937.10 | K23: 915.5 | L23: 895 | M23: 106.75723
A24: 15 | B24: ATGL | C24: 3885.3 | D24: 3869.57 | E24: 3826.73 | F24: 3768.17 | G24: 3725.33 | H24: 3928.13 | I24: 3970.97 | J24: 4029.53 | K24: 3912.4 | L24: 3811 | M24: 2.37581
A25: 16 | B25: ADANITRANS | C25: 3290.3 | D25: 3284.47 | E25: 3263.48 | F25: 3236.67 | G25: 3215.68 | H25: 3311.28 | I25: 3332.27 | J25: 3359.08 | K25: 3305.45 | L25: 3257.65 | M25: 9.3904
A26: 17 | B26: AWL | C26: 668.05 | D26: 669.02 | E26: 664.03 | F26: 660.02 | G26: 655.03 | H26: 673.03 | I26: 678.02 | J26: 682.03 | K26: 674 | L26: 665 | M26: 11.72371
A27: 18 | B27: ABCAPITAL | C27: 128.1 | D27: 128.75 | E27: 126.55 | F27: 125.00 | G27: 122.80 | H27: 130.30 | I27: 132.50 | J27: 134.05 | K27: 130.95 | L27: 127.2 | M27: 30.26779
A28: 19 | B28: ABFRL | C28: 312.6 | D28: 313.28 | E28: 310.02 | F28: 307.43 | G28: 304.17 | H28: 315.87 | I28: 319.13 | J28: 321.72 | K28: 316.55 | L28: 310.7 | M28: 12.46357
A29: 20 | B29: ALKEM | C29: 3130.2 | D29: 3151.23 | E29: 3099.02 | F29: 3067.83 | G29: 3015.62 | H29: 3182.42 | I29: 3234.63 | J29: 3265.82 | K29: 3203.45 | L29: 3120.05 | M29: 0.56702
A30: 21 | B30: AMBUJACEM | C30: 586.45 | D30: 584.92 | E30: 576.83 | F30: 567.22 | G30: 559.13 | H30: 594.53 | I30: 602.62 | J30: 612.23 | K30: 593 | L30: 575.3 | M30: 118.97606
A31: 22 | B31: APOLLOHOSP | C31: 4611.95 | D31: 4589.32 | E31: 4549.63 | F31: 4487.32 | G31: 4447.63 | H31: 4651.63 | I31: 4691.32 | J31: 4753.63 | K31: 4629 | L31: 4527 | M31: 4.92794
A32: 23 | B32: ASHOKLEY | C32: 150.1 | D32: 150.95 | E32: 148.70 | F32: 147.30 | G32: 145.05 | H32: 152.35 | I32: 154.60 | J32: 156.00 | K32: 153.2 | L32: 149.55 | M32: 106.76227
A33: 24 | B33: ASIANPAINT | C33: 3079.3 | D33: 3072.10 | E33: 3049.20 | F33: 3019.10 | G33: 2996.20 | H33: 3102.20 | I33: 3125.10 | J33: 3155.20 | K33: 3095 | L33: 3042 | M33: 8.7384
A34: 25 | B34: ASTRAL | C34: 1937.05 | D34: 1953.15 | E34: 1913.90 | F34: 1890.75 | G34: 1851.50 | H34: 1976.30 | I34: 2015.55 | J34: 2038.70 | K34: 1992.4 | L34: 1930 | M34: 6.87177
A35: 26 | B35: AUROPHARMA | C35: 492.25 | D35: 489.02 | E35: 483.23 | F35: 474.22 | G35: 468.43 | H35: 498.03 | I35: 503.82 | J35: 512.83 | K35: 494.8 | L35: 480 | M35: 30.99612
A36: 27 | B36: DMART | C36: 4053.8 | D36: 4069.87 | E36: 4029.93 | F36: 4006.07 | G36: 3966.13 | H36: 4093.73 | I36: 4133.67 | J36: 4157.53 | K36: 4109.8 | L36: 4046 | M36: 4.96893
A37: 28 | B37: AXISBANK | C37: 858.65 | D37: 855.23 | E37: 850.62 | F37: 842.58 | G37: 837.97 | H37: 863.27 | I37: 867.88 | J37: 875.92 | K37: 859.85 | L37: 847.2 | M37: 71.24767
A38: 29 | B38: BAJAJ-AUTO | C38: 3764.15 | D38: 3759.73 | E38: 3730.47 | F38: 3696.78 | G38: 3667.52 | H38: 3793.42 | I38: 3822.68 | J38: 3856.37 | K38: 3789 | L38: 3726.05 | M38: 2.96104
A39: 30 | B39: BAJFINANCE | C39: 7025.75 | D39: 7023.05 | E39: 6983.70 | F39: 6941.65 | G39: 6902.30 | H39: 7065.10 | I39: 7104.45 | J39: 7146.50 | K39: 7062.4 | L39: 6981 | M39: 7.19521
A40: 31 | B40: BAJAJFINSV | C40: 1708.5 | D40: 1711.53 | E40: 1693.27 | F40: 1678.03 | G40: 1659.77 | H40: 1726.77 | I40: 1745.03 | J40: 1760.27 | K40: 1729.8 | L40: 1696.3 | M40: 14.01141
A41: 32 | B41: BAJAJHLDNG | C41: 6647.2 | D41: 6667.92 | E41: 6585.83 | F41: 6524.47 | G41: 6442.38 | H41: 6729.28 | I41: 6811.37 | J41: 6872.73 | K41: 6750 | L41: 6606.55 | M41: 0.96193
A42: 33 | B42: BALKRISIND | C42: 1963.2 | D42: 1913.55 | E42: 1845.95 | F42: 1728.70 | G42: 1661.10 | H42: 2030.80 | I42: 2098.40 | J42: 2215.65 | K42: 1981.15 | L42: 1796.3 | M42: 26.7007
A43: 34 | B43: BANDHANBNK | C43: 228.8 | D43: 228.13 | E43: 226.82 | F43: 224.83 | G43: 223.52 | H43: 230.12 | I43: 231.43 | J43: 233.42 | K43: 229.45 | L43: 226.15 | M43: 66.76595
A44: 35 | B44: BANKBARODA | C44: 162.95 | D44: 163.42 | E44: 161.33 | F44: 159.72 | G44: 157.63 | H44: 165.03 | I44: 167.12 | J44: 168.73 | K44: 165.5 | L44: 161.8 | M44: 229.71749
A45: 36 | B45: BANKINDIA | C45: 74.25 | D45: 74.42 | E45: 73.33 | F45: 72.42 | G45: 71.33 | H45: 75.33 | I45: 76.42 | J45: 77.33 | K45: 75.5 | L45: 73.5 | M45: 83.12658
A46: 37 | B46: BATAINDIA | C46: 1704.55 | D46: 1715.08 | E46: 1675.27 | F46: 1645.98 | G46: 1606.17 | H46: 1744.37 | I46: 1784.18 | J46: 1813.47 | K46: 1754.9 | L46: 1685.8 | M46: 5.90637
A47: 38 | B47: BERGEPAINT | C47: 609.3 | D47: 605.33 | E47: 600.42 | F47: 591.53 | G47: 586.62 | H47: 614.22 | I47: 619.13 | J47: 628.02 | K47: 610.25 | L47: 596.45 | M47: 5.68357
A48: 39 | B48: BEL | C48: 107.05 | D48: 106.63 | E48: 105.87 | F48: 104.68 | G48: 103.92 | H48: 107.82 | I48: 108.58 | J48: 109.77 | K48: 107.4 | L48: 105.45 | M48: 116.75691
A49: 40 | B49: BHARATFORG | C49: 853.05 | D49: 850.57 | E49: 841.98 | F49: 830.92 | G49: 822.33 | H49: 861.63 | I49: 870.22 | J49: 881.28 | K49: 859.15 | L49: 839.5 | M49: 15.6102
A50: 41 | B50: BHEL | C50: 70.35 | D50: 70.60 | E50: 69.85 | F50: 69.35 | G50: 68.60 | H50: 71.10 | I50: 71.85 | J50: 72.35 | K50: 71.35 | L50: 70.1 | M50: 149.60753
A51: 42 | B51: BPCL | C51: 308.9 | D51: 308.07 | E51: 306.53 | F51: 304.17 | G51: 302.63 | H51: 310.43 | I51: 311.97 | J51: 314.33 | K51: 309.6 | L51: 305.7 | M51: 20.17679
A52: 43 | B52: BHARTIARTL | C52: 835.25 | D52: 832.22 | E52: 825.68 | F52: 816.12 | G52: 809.58 | H52: 841.78 | I52: 848.32 | J52: 857.88 | K52: 838.75 | L52: 822.65 | M52: 62.2971
A53: 44 | B53: BIOCON | C53: 283.85 | D53: 282.93 | E53: 278.92 | F53: 273.98 | G53: 269.97 | H53: 287.87 | I53: 291.88 | J53: 296.82 | K53: 286.95 | L53: 278 | M53: 41.41668
A54: 45 | B54: BOSCHLTD | C54: 16890.5 | D54: 16945.97 | E54: 16801.98 | F54: 16713.47 | G54: 16569.48 | H54: 17034.48 | I54: 17178.47 | J54: 17266.98 | K54: 17089.95 | L54: 16857.45 | M54: 0.21179
A55: 46 | B55: BRITANNIA | C55: 4139.35 | D55: 4125.40 | E55: 4097.20 | F55: 4055.05 | G55: 4026.85 | H55: 4167.55 | I55: 4195.75 | J55: 4237.90 | K55: 4153.6 | L55: 4083.25 | M55: 3.25881
A56: 47 | B56: CANBK | C56: 309.3 | D56: 307.53 | E56: 305.02 | F56: 300.73 | G56: 298.22 | H56: 311.82 | I56: 314.33 | J56: 318.62 | K56: 310.05 | L56: 303.25 | M56: 70.77719
A57: 48 | B57: CHOLAFIN | C57: 721.5 | D57: 720.23 | E57: 716.32 | F57: 711.13 | G57: 707.22 | H57: 725.42 | I57: 729.33 | J57: 734.52 | K57: 724.15 | L57: 715.05 | M57: 7.74145
A58: 49 | B58: CIPLA | C58: 1118.75 | D58: 1121.52 | E58: 1108.08 | F58: 1097.42 | G58: 1083.98 | H58: 1132.18 | I58: 1145.62 | J58: 1156.28 | K58: 1134.95 | L58: 1110.85 | M58: 12.62746
A59: 50 | B59: CLEAN | C59: 1501.2 | D59: 1512.27 | E59: 1486.58 | F59: 1471.97 | G59: 1446.28 | H59: 1526.88 | I59: 1552.57 | J59: 1567.18 | K59: 1537.95 | L59: 1497.65 | M59: 0.96918
A60: 51 | B60: COALINDIA | C60: 232.15 | D60: 233.87 | E60: 228.88 | F60: 225.62 | G60: 220.63 | H60: 237.13 | I60: 242.12 | J60: 245.38 | K60: 238.85 | L60: 230.6 | M60: 202.25373
A61: 52 | B61: COFORGE | C61: 3972.3 | D61: 3973.78 | E61: 3910.67 | F61: 3849.03 | G61: 3785.92 | H61: 4035.42 | I61: 4098.53 | J61: 4160.17 | K61: 4036.9 | L61: 3912.15 | M61: 2.47184
A62: 53 | B62: COLPAL | C62: 1581.05 | D62: 1578.70 | E62: 1568.50 | F62: 1555.95 | G62: 1545.75 | H62: 1591.25 | I62: 1601.45 | J62: 1614.00 | K62: 1588.9 | L62: 1566.15 | M62: 1.4918
A63: 54 | B63: CONCOR | C63: 763.6 | D63: 763.97 | E63: 758.88 | F63: 754.17 | G63: 749.08 | H63: 768.68 | I63: 773.77 | J63: 778.48 | K63: 769.05 | L63: 759.25 | M63: 11.13605
A64: 55 | B64: COROMANDEL | C64: 920.65 | D64: 921.72 | E64: 917.43 | F64: 914.22 | G64: 909.93 | H64: 924.93 | I64: 929.22 | J64: 932.43 | K64: 926 | L64: 918.5 | M64: 3.65723
A65: 56 | B65: CROMPTON | C65: 367 | D65: 365.90 | E65: 362.30 | F65: 357.60 | G65: 354.00 | H65: 370.60 | I65: 374.20 | J65: 378.90 | K65: 369.5 | L65: 361.2 | M65: 9.64203
A66: 57 | B66: CUMMINSIND | C66: 1372.75 | D66: 1360.25 | E66: 1345.55 | F66: 1318.35 | G66: 1303.65 | H66: 1387.45 | I66: 1402.15 | J66: 1429.35 | K66: 1374.95 | L66: 1333.05 | M66: 10.85541
A67: 58 | B67: DLF | C67: 405.45 | D67: 405.45 | E67: 401.40 | F67: 397.35 | G67: 393.30 | H67: 409.50 | I67: 413.55 | J67: 417.60 | K67: 409.5 | L67: 401.4 | M67: 27.73854
A68: 59 | B68: DABUR | C68: 550.75 | D68: 549.58 | E68: 543.17 | F68: 535.58 | G68: 529.17 | H68: 557.17 | I68: 563.58 | J68: 571.17 | K68: 556 | L68: 542 | M68: 19.39642
A69: 60 | B69: DALBHARAT | C69: 1679.65 | D69: 1688.68 | E69: 1661.37 | F69: 1643.08 | G69: 1615.77 | H69: 1706.97 | I69: 1734.28 | J69: 1752.57 | K69: 1716 | L69: 1670.4 | M69: 1.82416
A70: 61 | B70: DEEPAKNTR | C70: 2187.2 | D70: 2175.73 | E70: 2150.47 | F70: 2113.73 | G70: 2088.47 | H70: 2212.47 | I70: 2237.73 | J70: 2274.47 | K70: 2201 | L70: 2139 | M70: 6.74094
A71: 62 | B71: DELHIVERY | C71: 374.55 | D71: 374.37 | E71: 369.33 | F71: 364.12 | G71: 359.08 | H71: 379.58 | I71: 384.62 | J71: 389.83 | K71: 379.4 | L71: 369.15 | M71: 5.18959
A72: 63 | B72: DIVISLAB | C72: 3326.6 | D72: 3311.87 | E72: 3293.73 | F72: 3260.87 | G72: 3242.73 | H72: 3344.73 | I72: 3362.87 | J72: 3395.73 | K72: 3330 | L72: 3279 | M72: 5.26764
A73: 64 | B73: DIXON | C73: 4582.8 | D73: 4601.28 | E73: 4537.62 | F73: 4492.43 | G73: 4428.77 | H73: 4646.47 | I73: 4710.13 | J73: 4755.32 | K73: 4664.95 | L73: 4556.1 | M73: 2.43036
A74: 65 | B74: LALPATHLAB | C74: 2481.5 | D74: 2457.17 | E74: 2414.33 | F74: 2347.17 | G74: 2304.33 | H74: 2524.33 | I74: 2567.17 | J74: 2634.33 | K74: 2500 | L74: 2390 | M74: 5.40289
A75: 66 | B75: DRREDDY | C75: 4433.7 | D75: 4413.33 | E75: 4384.07 | F75: 4334.43 | G75: 4305.17 | H75: 4462.97 | I75: 4492.23 | J75: 4541.87 | K75: 4442.6 | L75: 4363.7 | M75: 3.7452
A76: 67 | B76: EICHERMOT | C76: 3507.95 | D76: 3521.95 | E76: 3486.00 | F76: 3464.05 | G76: 3428.10 | H76: 3543.90 | I76: 3579.85 | J76: 3601.80 | K76: 3557.9 | L76: 3500 | M76: 5.52511
A77: 68 | B77: EMAMILTD | C77: 445.8 | D77: 448.10 | E77: 439.70 | F77: 433.60 | G77: 425.20 | H77: 454.20 | I77: 462.60 | J77: 468.70 | K77: 456.5 | L77: 442 | M77: 1.9889
A78: 69 | B78: ESCORTS | C78: 2012.85 | D78: 2006.57 | E78: 1983.13 | F78: 1953.42 | G78: 1929.98 | H78: 2036.28 | I78: 2059.72 | J78: 2089.43 | K78: 2030 | L78: 1976.85 | M78: 3.99947
A79: 70 | B79: NYKAA | C79: 192.05 | D79: 198.23 | E79: 185.02 | F79: 177.98 | G79: 164.77 | H79: 205.27 | I79: 218.48 | J79: 225.52 | K79: 211.45 | L79: 191.2 | M79: 268.08991
A80: 71 | B80: FEDERALBNK | C80: 136.1 | D80: 136.03 | E80: 135.32 | F80: 134.53 | G80: 133.82 | H80: 136.82 | I80: 137.53 | J80: 138.32 | K80: 136.75 | L80: 135.25 | M80: 60.02862
A81: 72 | B81: FORTIS | C81: 301.5 | D81: 302.45 | E81: 298.95 | F81: 296.40 | G81: 292.90 | H81: 305.00 | I81: 308.50 | J81: 311.05 | K81: 305.95 | L81: 299.9 | M81: 16.45047
A82: 73 | B82: GAIL | C82: 89.9 | D82: 89.32 | E82: 88.63 | F82: 87.37 | G82: 86.68 | H82: 90.58 | I82: 91.27 | J82: 92.53 | K82: 90 | L82: 88.05 | M82: 82.47787
A83: 74 | B83: GLAND | C83: 1725.7 | D83: 1730.05 | E83: 1716.10 | F83: 1706.50 | G83: 1692.55 | H83: 1739.65 | I83: 1753.60 | J83: 1763.20 | K83: 1744 | L83: 1720.45 | M83: 2.15534
A84: 75 | B84: GODREJCP | C84: 848.75 | D84: 844.88 | E84: 838.77 | F84: 828.78 | G84: 822.67 | H84: 854.87 | I84: 860.98 | J84: 870.97 | K84: 851 | L84: 834.9 | M84: 12.95058
A85: 76 | B85: GODREJPROP | C85: 1311.15 | D85: 1307.87 | E85: 1295.83 | F85: 1280.52 | G85: 1268.48 | H85: 1323.18 | I85: 1335.22 | J85: 1350.53 | K85: 1319.9 | L85: 1292.55 | M85: 8.57338
A86: 77 | B86: GRASIM | C86: 1733.5 | D86: 1733.68 | E86: 1710.92 | F86: 1688.33 | G86: 1665.57 | H86: 1756.27 | I86: 1779.03 | J86: 1801.62 | K86: 1756.45 | L86: 1711.1 | M86: 10.09398
A87: 78 | B87: GUJGASLTD | C87: 513.4 | D87: 504.53 | E87: 494.07 | F87: 474.73 | G87: 464.27 | H87: 523.87 | I87: 534.33 | J87: 553.67 | K87: 515 | L87: 485.2 | M87: 34.11763
A88: 79 | B88: GSPL | C88: 252.55 | D88: 251.42 | E88: 245.13 | F88: 237.72 | G88: 231.43 | H88: 258.83 | I88: 265.12 | J88: 272.53 | K88: 257.7 | L88: 244 | M88: 46.50773
A89: 80 | B89: HCLTECH | C89: 1103.9 | D89: 1099.63 | E89: 1093.17 | F89: 1082.43 | G89: 1075.97 | H89: 1110.37 | I89: 1116.83 | J89: 1127.57 | K89: 1106.1 | L89: 1088.9 | M89: 21.7242
A90: 81 | B90: HDFCAMC | C90: 2078.9 | D90: 2077.62 | E90: 2063.68 | F90: 2048.47 | G90: 2034.53 | H90: 2092.83 | I90: 2106.77 | J90: 2121.98 | K90: 2091.55 | L90: 2062.4 | M90: 0.78983
A91: 82 | B91: HDFCBANK | C91: 1619 | D91: 1615.80 | E91: 1608.45 | F91: 1597.90 | G91: 1590.55 | H91: 1626.35 | I91: 1633.70 | J91: 1644.25 | K91: 1623.15 | L91: 1605.25 | M91: 55.15101
A92: 83 | B92: HDFCLIFE | C92: 532.9 | D92: 534.67 | E92: 528.38 | F92: 523.87 | G92: 517.58 | H92: 539.18 | I92: 545.47 | J92: 549.98 | K92: 540.95 | L92: 530.15 | M92: 25.29334
A93: 84 | B93: HAVELLS | C93: 1238.85 | D93: 1238.28 | E93: 1228.72 | F93: 1218.58 | G93: 1209.02 | H93: 1248.42 | I93: 1257.98 | J93: 1268.12 | K93: 1247.85 | L93: 1228.15 | M93: 7.9888
A94: 85 | B94: HEROMOTOCO | C94: 2730.75 | D94: 2725.60 | E94: 2697.15 | F94: 2663.55 | G94: 2635.10 | H94: 2759.20 | I94: 2787.65 | J94: 2821.25 | K94: 2754.05 | L94: 2692 | M94: 10.12827
A95: 86 | B95: HINDALCO | C95: 456.9 | D95: 455.67 | E95: 450.78 | F95: 444.67 | G95: 439.78 | H95: 461.78 | I95: 466.67 | J95: 472.78 | K95: 460.55 | L95: 449.55 | M95: 118.41577
A96: 87 | B96: HAL | C96: 2522.8 | D96: 2505.47 | E96: 2477.83 | F96: 2432.87 | G96: 2405.23 | H96: 2550.43 | I96: 2578.07 | J96: 2623.03 | K96: 2533.1 | L96: 2460.5 | M96: 8.56205
A97: 88 | B97: HINDPETRO | C97: 210.2 | D97: 209.23 | E97: 207.97 | F97: 205.73 | G97: 204.47 | H97: 211.47 | I97: 212.73 | J97: 214.97 | K97: 210.5 | L97: 207 | M97: 14.99084
A98: 89 | B98: HINDUNILVR | C98: 2457.5 | D98: 2456.88 | E98: 2444.77 | F98: 2432.03 | G98: 2419.92 | H98: 2469.62 | I98: 2481.73 | J98: 2494.47 | K98: 2469 | L98: 2444.15 | M98: 15.58333
A99: 90 | B99: HINDZINC | C99: 314.3 | D99: 312.98 | E99: 310.97 | F99: 307.63 | G99: 305.62 | H99: 316.32 | I99: 318.33 | J99: 321.67 | K99: 315 | L99: 309.65 | M99: 9.96538
A100: 91 | B100: HONAUT | C100: 39351.7 | D100: 39182.23 | E100: 38919.47 | F100: 38487.23 | G100: 38224.47 | H100: 39614.47 | I100: 39877.23 | J100: 40309.47 | K100: 39445 | L100: 38750 | M100: 0.02157
A101: 92 | B101: HDFC | C101: 2675.5 | D101: 2665.52 | E101: 2649.03 | F101: 2622.57 | G101: 2606.08 | H101: 2691.98 | I101: 2708.47 | J101: 2734.93 | K101: 2682 | L101: 2639.05 | M101: 21.04269
A102: 93 | B102: ICICIBANK | C102: 911.7 | D102: 908.05 | E102: 902.45 | F102: 893.20 | G102: 887.60 | H102: 917.30 | I102: 922.90 | J102: 932.15 | K102: 913.65 | L102: 898.8 | M102: 151.76911
A103: 94 | B103: ICICIGI | C103: 1120.2 | D103: 1123.08 | E103: 1113.22 | F103: 1106.23 | G103: 1096.37 | H103: 1130.07 | I103: 1139.93 | J103: 1146.92 | K103: 1132.95 | L103: 1116.1 | M103: 12.74776
A104: 95 | B104: ICICIPRULI | C104: 481.1 | D104: 481.98 | E104: 477.82 | F104: 474.53 | G104: 470.37 | H104: 485.27 | I104: 489.43 | J104: 492.72 | K104: 486.15 | L104: 478.7 | M104: 20.19173
A105: 96 | B105: ISEC | C105: 557.5 | D105: 560.03 | E105: 547.87 | F105: 538.23 | G105: 526.07 | H105: 569.67 | I105: 581.83 | J105: 591.47 | K105: 572.2 | L105: 550.4 | M105: 3.33128
A106: 97 | B106: IDFCFIRSTB | C106: 57.15 | D106: 57.18 | E106: 56.67 | F106: 56.18 | G106: 55.67 | H106: 57.67 | I106: 58.18 | J106: 58.67 | K106: 57.7 | L106: 56.7 | M106: 223.78138
A107: 98 | B107: ITC | C107: 345.25 | D107: 344.45 | E107: 339.95 | F107: 334.65 | G107: 330.15 | H107: 349.75 | I107: 354.25 | J107: 359.55 | K107: 348.95 | L107: 339.15 | M107: 154.51411
A108: 99 | B108: INDIAMART | C108: 4704.25 | D108: 4696.38 | E108: 4647.77 | F108: 4591.28 | G108: 4542.67 | H108: 4752.87 | I108: 4801.48 | J108: 4857.97 | K108: 4745 | L108: 4639.9 | M108: 1.38268
A109: 100 | B109: INDIANB | C109: 270.6 | D109: 268.73 | E109: 263.97 | F109: 257.33 | G109: 252.57 | H109: 275.37 | I109: 280.13 | J109: 286.77 | K109: 273.5 | L109: 262.1 | M109: 21.97596
A110: 101 | B110: IEX | C110: 145.35 | D110: 145.35 | E110: 144.20 | F110: 143.05 | G110: 141.90 | H110: 146.50 | I110: 147.65 | J110: 148.80 | K110: 146.5 | L110: 144.2 | M110: 27.37765
A111: 102 | B111: INDHOTEL | C111: 312 | D111: 312.50 | E111: 308.45 | F111: 304.90 | G111: 300.85 | H111: 316.05 | I111: 320.10 | J111: 323.65 | K111: 316.55 | L111: 308.95 | M111: 57.24757
A112: 103 | B112: IOC | C112: 69.6 | D112: 69.52 | E112: 69.23 | F112: 68.87 | G112: 68.58 | H112: 69.88 | I112: 70.17 | J112: 70.53 | K112: 69.8 | L112: 69.15 | M112: 64.77425
A113: 104 | B113: IRCTC | C113: 740.65 | D113: 740.73 | E113: 731.47 | F113: 722.28 | G113: 713.02 | H113: 749.92 | I113: 759.18 | J113: 768.37 | K113: 750 | L113: 731.55 | M113: 41.25858
A114: 105 | B114: IGL | C114: 433.7 | D114: 429.57 | E114: 420.63 | F114: 407.57 | G114: 398.63 | H114: 442.63 | I114: 451.57 | J114: 464.63 | K114: 438.5 | L114: 416.5 | M114: 58.50693
A115: 106 | B115: INDUSTOWER | C115: 194.9 | D115: 194.63 | E115: 193.57 | F115: 192.23 | G115: 191.17 | H115: 195.97 | I115: 197.03 | J115: 198.37 | K115: 195.7 | L115: 193.3 | M115: 13.7479
A116: 107 | B116: INDUSINDBK | C116: 1152.85 | D116: 1155.92 | E116: 1144.08 | F116: 1135.32 | G116: 1123.48 | H116: 1164.68 | I116: 1176.52 | J116: 1185.28 | K116: 1167.75 | L116: 1147.15 | M116: 18.02234
A117: 108 | B117: NAUKRI | C117: 4154.7 | D117: 4216.47 | E117: 4083.23 | F117: 4011.77 | G117: 3878.53 | H117: 4287.93 | I117: 4421.17 | J117: 4492.63 | K117: 4349.7 | L117: 4145 | M117: 8.86015
A118: 109 | B118: INFY | C118: 1594 | D118: 1588.20 | E118: 1578.55 | F118: 1563.10 | G118: 1553.45 | H118: 1603.65 | I118: 1613.30 | J118: 1628.75 | K118: 1597.85 | L118: 1572.75 | M118: 34.97614
A119: 110 | B119: INDIGO | C119: 1792.95 | D119: 1787.73 | E119: 1775.47 | F119: 1757.98 | G119: 1745.72 | H119: 1805.22 | I119: 1817.48 | J119: 1834.97 | K119: 1800 | L119: 1770.25 | M119: 3.82601
A120: 111 | B120: IPCALAB | C120: 869.6 | D120: 869.72 | E120: 862.53 | F120: 855.47 | G120: 848.28 | H120: 876.78 | I120: 883.97 | J120: 891.03 | K120: 876.9 | L120: 862.65 | M120: 2.62459
A121: 112 | B121: JSWENERGY | C121: 318.35 | D121: 317.65 | E121: 314.85 | F121: 311.35 | G121: 308.55 | H121: 321.15 | I121: 323.95 | J121: 327.45 | K121: 320.45 | L121: 314.15 | M121: 4.32501
A122: 113 | B122: JSWSTEEL | C122: 722.35 | D122: 720.00 | E122: 715.15 | F122: 707.95 | G122: 703.10 | H122: 727.20 | I122: 732.05 | J122: 739.25 | K122: 724.85 | L122: 712.8 | M122: 10.65114
A123: 114 | B123: JINDALSTEL | C123: 524.05 | D123: 520.45 | E123: 515.40 | F123: 506.75 | G123: 501.70 | H123: 529.10 | I123: 534.15 | J123: 542.80 | K123: 525.5 | L123: 511.8 | M123: 30.41035
A124: 115 | B124: JUBLFOOD | C124: 561 | D124: 561.12 | E124: 557.28 | F124: 553.57 | G124: 549.73 | H124: 564.83 | I124: 568.67 | J124: 572.38 | K124: 564.95 | L124: 557.4 | M124: 16.08098
A125: 116 | B125: KOTAKBANK | C125: 1912.4 | D125: 1913.67 | E125: 1894.03 | F125: 1875.67 | G125: 1856.03 | H125: 1932.03 | I125: 1951.67 | J125: 1970.03 | K125: 1933.3 | L125: 1895.3 | M125: 19.90292
A126: 117 | B126: L&TFH | C126: 83.05 | D126: 82.83 | E126: 82.27 | F126: 81.48 | G126: 80.92 | H126: 83.62 | I126: 84.18 | J126: 84.97 | K126: 83.4 | L126: 82.05 | M126: 38.71067
A127: 118 | B127: LTTS | C127: 3769.35 | D127: 3765.68 | E127: 3716.37 | F127: 3663.38 | G127: 3614.07 | H127: 3818.67 | I127: 3867.98 | J127: 3920.97 | K127: 3815 | L127: 3712.7 | M127: 2.17439
A128: 119 | B128: LICHSGFIN | C128: 375.2 | D128: 374.28 | E128: 372.47 | F128: 369.73 | G128: 367.92 | H128: 377.02 | I128: 378.83 | J128: 381.57 | K128: 376.1 | L128: 371.55 | M128: 13.12864
A129: 120 | B129: LTI | C129: 5135.45 | D129: 5197.15 | E129: 5034.30 | F129: 4933.15 | G129: 4770.30 | H129: 5298.30 | I129: 5461.15 | J129: 5562.30 | K129: 5360 | L129: 5096 | M129: 10.13747
A130: 121 | B130: LT | C130: 1996.55 | D130: 1997.22 | E130: 1977.43 | F130: 1958.32 | G130: 1938.53 | H130: 2016.33 | I130: 2036.12 | J130: 2055.23 | K130: 2017 | L130: 1978.1 | M130: 14.50841
A131: 122 | B131: LAURUSLABS | C131: 470.4 | D131: 469.65 | E131: 464.80 | F131: 459.20 | G131: 454.35 | H131: 475.25 | I131: 480.10 | J131: 485.70 | K131: 474.5 | L131: 464.05 | M131: 11.19438
A132: 123 | B132: LICI | C132: 654.7 | D132: 659.00 | E132: 645.70 | F132: 636.70 | G132: 623.40 | H132: 668.00 | I132: 681.30 | J132: 690.30 | K132: 672.3 | L132: 650 | M132: 21.12529
A133: 124 | B133: LINDEINDIA | C133: 3132.65 | D133: 3155.55 | E133: 3102.10 | F133: 3071.55 | G133: 3018.10 | H133: 3186.10 | I133: 3239.55 | J133: 3270.10 | K133: 3209 | L133: 3125 | M133: 0.23167
A134: 125 | B134: LUPIN | C134: 753.55 | D134: 755.08 | E134: 746.77 | F134: 739.98 | G134: 731.67 | H134: 761.87 | I134: 770.18 | J134: 776.97 | K134: 763.4 | L134: 748.3 | M134: 7.43769
A135: 126 | B135: MRF | C135: 87574.25 | D135: 87201.37 | E135: 86552.73 | F135: 85531.22 | G135: 84882.58 | H135: 88222.88 | I135: 88871.52 | J135: 89893.03 | K135: 87850 | L135: 86179.85 | M135: 0.19773
A136: 127 | B136: M&MFIN | C136: 213.05 | D136: 214.17 | E136: 211.28 | F136: 209.52 | G136: 206.63 | H136: 215.93 | I136: 218.82 | J136: 220.58 | K136: 217.05 | L136: 212.4 | M136: 30.60734
A137: 128 | B137: M&M | C137: 1291.7 | D137: 1287.75 | E137: 1279.20 | F137: 1266.70 | G137: 1258.15 | H137: 1300.25 | I137: 1308.80 | J137: 1321.30 | K137: 1296.3 | L137: 1275.25 | M137: 31.9207
A138: 129 | B138: MARICO | C138: 497.95 | D138: 498.47 | E138: 494.88 | F138: 491.82 | G138: 488.23 | H138: 501.53 | I138: 505.12 | J138: 508.18 | K138: 502.05 | L138: 495.4 | M138: 10.51406
A139: 130 | B139: MARUTI | C139: 9162.2 | D139: 9165.25 | E139: 9126.95 | F139: 9091.70 | G139: 9053.40 | H139: 9200.50 | I139: 9238.80 | J139: 9274.05 | K139: 9203.55 | L139: 9130 | M139: 3.59888
A140: 131 | B140: MFSL | C140: 675.6 | D140: 674.85 | E140: 667.75 | F140: 659.90 | G140: 652.80 | H140: 682.70 | I140: 689.80 | J140: 697.65 | K140: 681.95 | L140: 667 | M140: 5.63202
A141: 132 | B141: MAXHEALTH | C141: 433.15 | D141: 435.47 | E141: 428.93 | F141: 424.72 | G141: 418.18 | H141: 439.68 | I141: 446.22 | J141: 450.43 | K141: 442 | L141: 431.25 | M141: 23.5968
A142: 133 | B142: MSUMI | C142: 83 | D142: 78.22 | E142: 72.88 | F142: 62.77 | G142: 57.43 | H142: 88.33 | I142: 93.67 | J142: 103.78 | K142: 83.55 | L142: 68.1 | M142: 29.19993
A143: 134 | B143: MPHASIS | C143: 2013.65 | D143: 2016.98 | E143: 1983.97 | F143: 1954.28 | G143: 1921.27 | H143: 2046.67 | I143: 2079.68 | J143: 2109.37 | K143: 2050 | L143: 1987.3 | M143: 5.05605
A144: 135 | B144: MUTHOOTFIN | C144: 1120.05 | D144: 1107.77 | E144: 1089.58 | F144: 1059.12 | G144: 1040.93 | H144: 1138.23 | I144: 1156.42 | J144: 1186.88 | K144: 1125.95 | L144: 1077.3 | M144: 14.87359
A145: 136 | B145: NTPC | C145: 172.1 | D145: 172.55 | E145: 170.95 | F145: 169.80 | G145: 168.20 | H145: 173.70 | I145: 175.30 | J145: 176.45 | K145: 174.15 | L145: 171.4 | M145: 138.99999
A146: 137 | B146: NATIONALUM | C146: 78.35 | D146: 78.15 | E146: 77.45 | F146: 76.55 | G146: 75.85 | H146: 79.05 | I146: 79.75 | J146: 80.65 | K146: 78.85 | L146: 77.25 | M146: 144.96196
A147: 138 | B147: NAVINFLUOR | C147: 4454.85 | D147: 4444.27 | E147: 4418.68 | F147: 4382.52 | G147: 4356.93 | H147: 4480.43 | I147: 4506.02 | J147: 4542.18 | K147: 4469.85 | L147: 4408.1 | M147: 0.5153
A148: 139 | B148: NESTLEIND | C148: 20055.55 | D148: 20030.50 | E148: 19875.05 | F148: 19694.55 | G148: 19539.10 | H148: 20211.00 | I148: 20366.45 | J148: 20546.95 | K148: 20185.95 | L148: 19850 | M148: 0.39341
A149: 140 | B149: NAM-INDIA | C149: 260.65 | D149: 261.70 | E149: 259.05 | F149: 257.45 | G149: 254.80 | H149: 263.30 | I149: 265.95 | J149: 267.55 | K149: 264.35 | L149: 260.1 | M149: 2.71156
A150: 141 | B150: OBEROIRLTY | C150: 910.1 | D150: 911.25 | E150: 901.45 | F150: 892.80 | G150: 883.00 | H150: 919.90 | I150: 929.70 | J150: 938.35 | K150: 921.05 | L150: 902.6 | M150: 2.53116
A151: 142 | B151: ONGC | C151: 142.35 | D151: 141.90 | E151: 140.45 | F151: 138.55 | G151: 137.10 | H151: 143.80 | I151: 145.25 | J151: 147.15 | K151: 143.35 | L151: 140 | M151: 246.36519
A152: 143 | B152: OIL | C152: 202.5 | D152: 201.45 | E152: 199.85 | F152: 197.20 | G152: 195.60 | H152: 204.10 | I152: 205.70 | J152: 208.35 | K152: 203.05 | L152: 198.8 | M152: 9.89665
A153: 144 | B153: PAYTM | C153: 626.5 | D153: 630.00 | E153: 620.50 | F153: 614.50 | G153: 605.00 | H153: 636.00 | I153: 645.50 | J153: 651.50 | K153: 639.5 | L153: 624 | M153: 15.96845
A154: 145 | B154: OFSS | C154: 3100.6 | D154: 3095.48 | E154: 3072.72 | F154: 3044.83 | G154: 3022.07 | H154: 3123.37 | I154: 3146.13 | J154: 3174.02 | K154: 3118.25 | L154: 3067.6 | M154: 0.50639
A155: 146 | B155: POLICYBZR | C155: 388.25 | D155: 389.07 | E155: 372.43 | F155: 356.62 | G155: 339.98 | H155: 404.88 | I155: 421.52 | J155: 437.33 | K155: 405.7 | L155: 373.25 | M155: 93.67085
A156: 147 | B156: PIIND | C156: 3427.85 | D156: 3427.43 | E156: 3385.42 | F156: 3342.98 | G156: 3300.97 | H156: 3469.87 | I156: 3511.88 | J156: 3554.32 | K156: 3469.45 | L156: 3385 | M156: 2.40379
A157: 148 | B157: PAGEIND | C157: 46696.05 | D157: 46576.98 | E157: 46174.07 | F157: 45652.08 | G157: 45249.17 | H157: 47098.97 | I157: 47501.88 | J157: 48023.87 | K157: 46979.9 | L157: 46055 | M157: 0.34739
A158: 149 | B158: PATANJALI | C158: 1251.3 | D158: 1257.25 | E158: 1234.05 | F158: 1216.80 | G158: 1193.60 | H158: 1274.50 | I158: 1297.70 | J158: 1314.95 | K158: 1280.45 | L158: 1240 | M158: 1.93893
A159: 150 | B159: PERSISTENT | C159: 3818.85 | D159: 3809.62 | E159: 3764.23 | F159: 3709.62 | G159: 3664.23 | H159: 3864.23 | I159: 3909.62 | J159: 3964.23 | K159: 3855 | L159: 3755 | M159: 1.57155
A160: 151 | B160: PETRONET | C160: 213.9 | D160: 213.70 | E160: 212.70 | F160: 211.50 | G160: 210.50 | H160: 214.90 | I160: 215.90 | J160: 217.10 | K160: 214.7 | L160: 212.5 | M160: 7.2574
A161: 152 | B161: PIDILITIND | C161: 2675 | D161: 2665.10 | E161: 2650.20 | F161: 2625.40 | G161: 2610.50 | H161: 2689.90 | I161: 2704.80 | J161: 2729.60 | K161: 2680 | L161: 2640.3 | M161: 2.61836
A162: 153 | B162: POLYCAB | C162: 2624.95 | D162: 2646.02 | E162: 2595.08 | F162: 2565.22 | G162: 2514.28 | H162: 2675.88 | I162: 2726.82 | J162: 2756.68 | K162: 2696.95 | L162: 2616.15 | M162: 1.90072
A163: 154 | B163: POONAWALLA | C163: 311.95 | D163: 312.32 | E163: 309.78 | F163: 307.62 | G163: 305.08 | H163: 314.48 | I163: 317.02 | J163: 319.18 | K163: 314.85 | L163: 310.15 | M163: 11.86595
A164: 155 | B164: PFC | C164: 120.75 | D164: 120.75 | E164: 119.50 | F164: 118.25 | G164: 117.00 | H164: 122.00 | I164: 123.25 | J164: 124.50 | K164: 122 | L164: 119.5 | M164: 52.29801
A165: 156 | B165: POWERGRID | C165: 216 | D165: 214.05 | E165: 211.60 | F165: 207.20 | G165: 204.75 | H165: 218.45 | I165: 220.90 | J165: 225.30 | K165: 216.5 | L165: 209.65 | M165: 114.43578
A166: 157 | B166: PRESTIGE | C166: 462.35 | D166: 462.32 | E166: 455.83 | F166: 449.32 | G166: 442.83 | H166: 468.83 | I166: 475.32 | J166: 481.83 | K166: 468.8 | L166: 455.8 | M166: 1.23649
A167: 158 | B167: PGHH | C167: 13992.7 | D167: 13953.53 | E167: 13879.17 | F167: 13765.63 | G167: 13691.27 | H167: 14067.07 | I167: 14141.43 | J167: 14254.97 | K167: 14027.9 | L167: 13840 | M167: 0.17114
A168: 159 | B168: PNB | C168: 43.95 | D168: 43.95 | E168: 43.60 | F168: 43.25 | G168: 42.90 | H168: 44.30 | I168: 44.65 | J168: 45.00 | K168: 44.3 | L168: 43.6 | M168: 384.99635
A169: 160 | B169: RECLTD | C169: 100.25 | D169: 100.28 | E169: 99.77 | F169: 99.28 | G169: 98.77 | H169: 100.77 | I169: 101.28 | J169: 101.77 | K169: 100.8 | L169: 99.8 | M169: 40.61038
A170: 161 | B170: RELIANCE | C170: 2607.3 | D170: 2607.90 | E170: 2589.40 | F170: 2571.50 | G170: 2553.00 | H170: 2625.80 | I170: 2644.30 | J170: 2662.20 | K170: 2626.4 | L170: 2590 | M170: 32.70388
A171: 162 | B171: SBICARD | C171: 811 | D171: 811.57 | E171: 806.63 | F171: 802.27 | G171: 797.33 | H171: 815.93 | I171: 820.87 | J171: 825.23 | K171: 816.5 | L171: 807.2 | M171: 13.07752
A172: 163 | B172: SBILIFE | C172: 1259.3 | D172: 1253.27 | E172: 1244.53 | F172: 1229.77 | G172: 1221.03 | H172: 1268.03 | I172: 1276.77 | J172: 1291.53 | K172: 1262 | L172: 1238.5 | M172: 7.75345
A173: 164 | B173: SRF | C173: 2403.4 | D173: 2386.07 | E173: 2363.13 | F173: 2322.87 | G173: 2299.93 | H173: 2426.33 | I173: 2449.27 | J173: 2489.53 | K173: 2409 | L173: 2345.8 | M173: 4.95265
A174: 165 | B174: MOTHERSON | C174: 74 | D174: 73.53 | E174: 72.87 | F174: 71.73 | G174: 71.07 | H174: 74.67 | I174: 75.33 | J174: 76.47 | K174: 74.2 | L174: 72.4 | M174: 92.49463
A175: 166 | B175: SHREECEM | C175: 23203.5 | D175: 23161.47 | E175: 23033.03 | F175: 22862.57 | G175: 22734.13 | H175: 23331.93 | I175: 23460.37 | J175: 23630.83 | K175: 23289.9 | L175: 22991 | M175: 0.38556
A176: 167 | B176: SRTRANSFIN | C176: 1252.7 | D176: 1256.28 | E176: 1242.47 | F176: 1232.23 | G176: 1218.42 | H176: 1266.52 | I176: 1280.33 | J176: 1290.57 | K176: 1270.1 | L176: 1246.05 | M176: 2.94927
A177: 168 | B177: SIEMENS | C177: 2849.8 | D177: 2870.75 | E177: 2823.55 | F177: 2797.30 | G177: 2750.10 | H177: 2897.00 | I177: 2944.20 | J177: 2970.45 | K177: 2917.95 | L177: 2844.5 | M177: 2.61616
A178: 169 | B178: SONACOMS | C178: 448.55 | D178: 450.47 | E178: 443.38 | F178: 438.22 | G178: 431.13 | H178: 455.63 | I178: 462.72 | J178: 467.88 | K178: 457.55 | L178: 445.3 | M178: 10.41576
A179: 170 | B179: SBIN | C179: 600.85 | D179: 598.53 | E179: 594.97 | F179: 589.08 | G179: 585.52 | H179: 604.42 | I179: 607.98 | J179: 613.87 | K179: 602.1 | L179: 592.65 | M179: 102.86417
A180: 171 | B180: SAIL | C180: 86.2 | D180: 86.17 | E180: 85.13 | F180: 84.07 | G180: 83.03 | H180: 87.23 | I180: 88.27 | J180: 89.33 | K180: 87.2 | L180: 85.1 | M180: 136.10421
A181: 172 | B181: SUNPHARMA | C181: 1016.05 | D181: 1014.17 | E181: 1006.33 | F181: 996.62 | G181: 988.78 | H181: 1023.88 | I181: 1031.72 | J181: 1041.43 | K181: 1022 | L181: 1004.45 | M181: 17.0305
A182: 173 | B182: SUNTV | C182: 497.1 | D182: 499.77 | E182: 492.33 | F182: 487.57 | G182: 480.13 | H182: 504.53 | I182: 511.97 | J182: 516.73 | K182: 507.2 | L182: 495 | M182: 16.397
A183: 174 | B183: SYNGENE | C183: 628.05 | D183: 626.63 | E183: 619.17 | F183: 610.28 | G183: 602.82 | H183: 635.52 | I183: 642.98 | J183: 651.87 | K183: 634.1 | L183: 617.75 | M183: 7.48001
A184: 175 | B184: TVSMOTOR | C184: 1103.2 | D184: 1109.97 | E184: 1089.98 | F184: 1076.77 | G184: 1056.78 | H184: 1123.18 | I184: 1143.17 | J184: 1156.38 | K184: 1129.95 | L184: 1096.75 | M184: 16.91513
A185: 176 | B185: TATACHEM | C185: 1057.2 | D185: 1061.38 | E185: 1048.52 | F185: 1039.83 | G185: 1026.97 | H185: 1070.07 | I185: 1082.93 | J185: 1091.62 | K185: 1074.25 | L185: 1052.7 | M185: 7.17692
A186: 177 | B186: TATACOMM | C186: 1333.3 | D186: 1326.43 | E186: 1316.92 | F186: 1300.53 | G186: 1291.02 | H186: 1342.82 | I186: 1352.33 | J186: 1368.72 | K186: 1335.95 | L186: 1310.05 | M186: 3.21614
A187: 178 | B187: TCS | C187: 3332.6 | D187: 3321.52 | E187: 3303.08 | F187: 3273.57 | G187: 3255.13 | H187: 3351.03 | I187: 3369.47 | J187: 3398.98 | K187: 3339.95 | L187: 3292 | M187: 14.00708
A188: 179 | B188: TATACONSUM | C188: 772.75 | D188: 770.08 | E188: 766.17 | F188: 759.58 | G188: 755.67 | H188: 776.67 | I188: 780.58 | J188: 787.17 | K188: 774 | L188: 763.5 | M188: 7.56436
A189: 180 | B189: TATAELXSI | C189: 7000.65 | D189: 7001.88 | E189: 6958.77 | F189: 6916.88 | G189: 6873.77 | H189: 7043.77 | I189: 7086.88 | J189: 7128.77 | K189: 7045 | L189: 6960 | M189: 1.40336
A190: 181 | B190: TATAMOTORS | C190: 437.15 | D190: 436.58 | E190: 434.67 | F190: 432.18 | G190: 430.27 | H190: 439.07 | I190: 440.98 | J190: 443.47 | K190: 438.5 | L190: 434.1 | M190: 106.96024
A191: 182 | B191: TATAPOWER | C191: 229.5 | D191: 229.25 | E191: 228.25 | F191: 227.00 | G191: 226.00 | H191: 230.50 | I191: 231.50 | J191: 232.75 | K191: 230.25 | L191: 228 | M191: 64.26117
A192: 183 | B192: TATASTEEL | C192: 108.55 | D192: 108.37 | E192: 107.38 | F192: 106.22 | G192: 105.23 | H192: 109.53 | I192: 110.52 | J192: 111.68 | K192: 109.35 | L192: 107.2 | M192: 350.07427
A193: 184 | B193: TTML | C193: 99.1 | D193: 99.20 | E193: 97.90 | F193: 96.70 | G193: 95.40 | H193: 100.40 | I193: 101.70 | J193: 102.90 | K193: 100.5 | L193: 98 | M193: 6.61143
A194: 185 | B194: TECHM | C194: 1066.95 | D194: 1062.48 | E194: 1054.47 | F194: 1041.98 | G194: 1033.97 | H194: 1074.97 | I194: 1082.98 | J194: 1095.47 | K194: 1070.5 | L194: 1050 | M194: 15.77944
A195: 186 | B195: RAMCOCEM | C195: 664.75 | D195: 665.78 | E195: 658.77 | F195: 652.78 | G195: 645.77 | H195: 671.77 | I195: 678.78 | J195: 684.77 | K195: 672.8 | L195: 659.8 | M195: 5.88702
A196: 187 | B196: TITAN | C196: 2656.65 | D196: 2648.95 | E196: 2628.75 | F196: 2600.85 | G196: 2580.65 | H196: 2676.85 | I196: 2697.05 | J196: 2724.95 | K196: 2669.15 | L196: 2621.05 | M196: 10.33296
A197: 188 | B197: TORNTPHARM | C197: 1654.95 | D197: 1653.18 | E197: 1638.97 | F197: 1622.98 | G197: 1608.77 | H197: 1669.17 | I197: 1683.38 | J197: 1699.37 | K197: 1667.4 | L197: 1637.2 | M197: 2.73727
A198: 189 | B198: TORNTPOWER | C198: 519.95 | D198: 517.85 | E198: 513.70 | F198: 507.45 | G198: 503.30 | H198: 524.10 | I198: 528.25 | J198: 534.50 | K198: 522 | L198: 511.6 | M198: 3.85563
A199: 190 | B199: TRENT | C199: 1416.15 | D199: 1415.73 | E199: 1406.47 | F199: 1396.78 | G199: 1387.52 | H199: 1425.42 | I199: 1434.68 | J199: 1444.37 | K199: 1425 | L199: 1406.05 | M199: 7.10092
A200: 191 | B200: TRIDENT | C200: 35.65 | D200: 35.73 | E200: 35.12 | F200: 34.58 | G200: 33.97 | H200: 36.27 | I200: 36.88 | J200: 37.42 | K200: 36.35 | L200: 35.2 | M200: 105.06533
A201: 192 | B201: TIINDIA | C201: 2543.75 | D201: 2550.57 | E201: 2473.18 | F201: 2402.62 | G201: 2325.23 | H201: 2621.13 | I201: 2698.52 | J201: 2769.08 | K201: 2627.95 | L201: 2480 | M201: 6.09797
A202: 193 | B202: UPL | C202: 770.25 | D202: 771.58 | E202: 763.17 | F202: 756.08 | G202: 747.67 | H202: 778.67 | I202: 787.08 | J202: 794.17 | K202: 780 | L202: 764.5 | M202: 16.49039
A203: 194 | B203: ULTRACEMCO | C203: 6964.55 | D203: 6943.87 | E203: 6887.73 | F203: 6810.92 | G203: 6754.78 | H203: 7020.68 | I203: 7076.82 | J203: 7153.63 | K203: 7000 | L203: 6867.05 | M203: 6.2527
A204: 195 | B204: UNIONBANK | C204: 63.1 | D204: 63.45 | E204: 61.65 | F204: 60.20 | G204: 58.40 | H204: 64.90 | I204: 66.70 | J204: 68.15 | K204: 65.25 | L204: 62 | M204: 159.90986
A205: 196 | B205: UBL | C205: 1675.3 | D205: 1674.77 | E205: 1653.53 | F205: 1631.77 | G205: 1610.53 | H205: 1696.53 | I205: 1717.77 | J205: 1739.53 | K205: 1696 | L205: 1653 | M205: 3.06094
... 29 more rows

Sheet MidCap Intra
L5: Back To Main Page
A6: FOR INTRA DAY TRADING | K6: =Main!B10 -> 2022-11-16
A9: Sr.no | B9: Scrip | C9: CLOSE RATE | D9: Pivot Point | E9: Supports | H9: Resistances
E10: S1 | F10: S2 | G10: S3 | H10: R1 | I10: R2 | J10: R3 | K10: HIGH | L10: LOW | M10: Total Trade Quanity in Lakhs
A11: 1 | B11: 3MINDIA | C11: 24134.4 | D11: 24292.85 | E11: 23685.70 | F11: 23237.00 | G11: 22629.85 | H11: 24741.55 | I11: 25348.70 | J11: 25797.40 | K11: 24900 | L11: 23844.15 | M11: 0.06457
A12: 2 | B12: ABB | C12: 3027.85 | D12: 3040.75 | E12: 3001.50 | F12: 2975.15 | G12: 2935.90 | H12: 3067.10 | I12: 3106.35 | J12: 3132.70 | K12: 3080 | L12: 3014.4 | M12: 3.83627
A13: 3 | B13: ACC | C13: 2478.65 | D13: 2478.50 | E13: 2442.25 | F13: 2405.85 | G13: 2369.60 | H13: 2514.90 | I13: 2551.15 | J13: 2587.55 | K13: 2514.75 | L13: 2442.1 | M13: 10.03908
A14: 4 | B14: AIAENG | C14: 2674.3 | D14: 2707.07 | E14: 2625.43 | F14: 2576.57 | G14: 2494.93 | H14: 2755.93 | I14: 2837.57 | J14: 2886.43 | K14: 2788.7 | L14: 2658.2 | M14: 0.74693
A15: 5 | B15: APLAPOLLO | C15: 1073.6 | D15: 1076.45 | E15: 1059.20 | F15: 1044.80 | G15: 1027.55 | H15: 1090.85 | I15: 1108.10 | J15: 1122.50 | K15: 1093.7 | L15: 1062.05 | M15: 4.7694
A16: 6 | B16: AUBANK | C16: 633.9 | D16: 634.92 | E16: 630.98 | F16: 628.07 | G16: 624.13 | H16: 637.83 | I16: 641.77 | J16: 644.68 | K16: 638.85 | L16: 632 | M16: 9.77826
A17: 7 | B17: AARTIDRUGS | C17: 465.2 | D17: 464.00 | E17: 462.00 | F17: 458.80 | G17: 456.80 | H17: 467.20 | I17: 469.20 | J17: 472.40 | K17: 466 | L17: 460.8 | M17: 0.40085
A18: 8 | B18: AAVAS | C18: 2034.7 | D18: 2035.20 | E18: 2020.60 | F18: 2006.50 | G18: 1991.90 | H18: 2049.30 | I18: 2063.90 | J18: 2078.00 | K18: 2049.8 | L18: 2021.1 | M18: 0.96079
A19: 9 | B19: ABBOTINDIA | C19: 19651.45 | D19: 19763.85 | E19: 19388.85 | F19: 19126.25 | G19: 18751.25 | H19: 20026.45 | I19: 20401.45 | J19: 20664.05 | K19: 20138.85 | L19: 19501.25 | M19: 0.16611
A20: 10 | B20: ADANIENT | C20: 4057.8 | D20: 4048.27 | E20: 4031.53 | F20: 4005.27 | G20: 3988.53 | H20: 4074.53 | I20: 4091.27 | J20: 4117.53 | K20: 4065 | L20: 4022 | M20: 10.65546
A21: 11 | B21: ADANIGREEN | C21: 2196.95 | D21: 2193.40 | E21: 2174.70 | F21: 2152.45 | G21: 2133.75 | H21: 2215.65 | I21: 2234.35 | J21: 2256.60 | K21: 2212.1 | L21: 2171.15 | M21: 6.03539
A22: 12 | B22: ADANIPORTS | C22: 906.9 | D22: 905.80 | E22: 896.10 | F22: 885.30 | G22: 875.60 | H22: 916.60 | I22: 926.30 | J22: 937.10 | K22: 915.5 | L22: 895 | M22: 106.75723
A23: 13 | B23: ATGL | C23: 3885.3 | D23: 3869.57 | E23: 3826.73 | F23: 3768.17 | G23: 3725.33 | H23: 3928.13 | I23: 3970.97 | J23: 4029.53 | K23: 3912.4 | L23: 3811 | M23: 2.37581
A24: 14 | B24: ADANITRANS | C24: 3290.3 | D24: 3284.47 | E24: 3263.48 | F24: 3236.67 | G24: 3215.68 | H24: 3311.28 | I24: 3332.27 | J24: 3359.08 | K24: 3305.45 | L24: 3257.65 | M24: 9.3904
A25: 15 | B25: AWL | C25: 668.05 | D25: 669.02 | E25: 664.03 | F25: 660.02 | G25: 655.03 | H25: 673.03 | I25: 678.02 | J25: 682.03 | K25: 674 | L25: 665 | M25: 11.72371
A26: 16 | B26: ABCAPITAL | C26: 128.1 | D26: 128.75 | E26: 126.55 | F26: 125.00 | G26: 122.80 | H26: 130.30 | I26: 132.50 | J26: 134.05 | K26: 130.95 | L26: 127.2 | M26: 30.26779
A27: 17 | B27: ABFRL | C27: 312.6 | D27: 313.28 | E27: 310.02 | F27: 307.43 | G27: 304.17 | H27: 315.87 | I27: 319.13 | J27: 321.72 | K27: 316.55 | L27: 310.7 | M27: 12.46357
A28: 18 | B28: ABSLAMC | C28: 427 | D28: 426.55 | E28: 423.60 | F28: 420.20 | G28: 417.25 | H28: 429.95 | I28: 432.90 | J28: 436.30 | K28: 429.5 | L28: 423.15 | M28: 0.55213
A29: 19 | B29: AEGISCHEM | C29: 323.6 | D29: 321.38 | E29: 316.77 | F29: 309.93 | G29: 305.32 | H29: 328.22 | I29: 332.83 | J29: 339.67 | K29: 326 | L29: 314.55 | M29: 6.45666
A30: 20 | B30: AETHER | C30: 924.8 | D30: 915.42 | E30: 899.13 | F30: 873.47 | G30: 857.18 | H30: 941.08 | I30: 957.37 | J30: 983.03 | K30: 931.7 | L30: 889.75 | M30: 1.38334
A31: 21 | B31: AFFLE | C31: 1251.7 | D31: 1251.92 | E31: 1237.88 | F31: 1224.07 | G31: 1210.03 | H31: 1265.73 | I31: 1279.77 | J31: 1293.58 | K31: 1265.95 | L31: 1238.1 | M31: 1.11809
A32: 22 | B32: AJANTPHARM | C32: 1280.25 | D32: 1273.27 | E32: 1262.83 | F32: 1245.42 | G32: 1234.98 | H32: 1290.68 | I32: 1301.12 | J32: 1318.53 | K32: 1283.7 | L32: 1255.85 | M32: 0.5043
A33: 23 | B33: APLLTD | C33: 646.3 | D33: 646.35 | E33: 639.95 | F33: 633.60 | G33: 627.20 | H33: 652.70 | I33: 659.10 | J33: 665.45 | K33: 652.75 | L33: 640 | M33: 1.58516
A34: 24 | B34: ALKEM | C34: 3130.2 | D34: 3151.23 | E34: 3099.02 | F34: 3067.83 | G34: 3015.62 | H34: 3182.42 | I34: 3234.63 | J34: 3265.82 | K34: 3203.45 | L34: 3120.05 | M34: 0.56702
A35: 25 | B35: ALKYLAMINE | C35: 2848.1 | D35: 2852.70 | E35: 2840.40 | F35: 2832.70 | G35: 2820.40 | H35: 2860.40 | I35: 2872.70 | J35: 2880.40 | K35: 2865 | L35: 2845 | M35: 0.10949
A36: 26 | B36: ALLCARGO | C36: 468.1 | D36: 470.65 | E36: 457.55 | F36: 447.00 | G36: 433.90 | H36: 481.20 | I36: 494.30 | J36: 504.85 | K36: 483.75 | L36: 460.1 | M36: 15.94072
A37: 27 | B37: ALOKINDS | C37: 15.75 | D37: 15.80 | E37: 15.60 | F37: 15.45 | G37: 15.25 | H37: 15.95 | I37: 16.15 | J37: 16.30 | K37: 16 | L37: 15.65 | M37: 18.96359
A38: 28 | B38: AMARAJABAT | C38: 627 | D38: 624.70 | E38: 620.00 | F38: 613.00 | G38: 608.30 | H38: 631.70 | I38: 636.40 | J38: 643.40 | K38: 629.4 | L38: 617.7 | M38: 11.07478
A39: 29 | B39: AMBER | C39: 2045.05 | D39: 2039.77 | E39: 2025.53 | F39: 2006.02 | G39: 1991.78 | H39: 2059.28 | I39: 2073.52 | J39: 2093.03 | K39: 2054 | L39: 2020.25 | M39: 0.14701
A40: 30 | B40: AMBUJACEM | C40: 586.45 | D40: 584.92 | E40: 576.83 | F40: 567.22 | G40: 559.13 | H40: 594.53 | I40: 602.62 | J40: 612.23 | K40: 593 | L40: 575.3 | M40: 118.97606
A41: 31 | B41: ANGELONE | C41: 1532.7 | D41: 1524.22 | E41: 1496.48 | F41: 1460.27 | G41: 1432.53 | H41: 1560.43 | I41: 1588.17 | J41: 1624.38 | K41: 1551.95 | L41: 1488 | M41: 4.89455
A42: 32 | B42: ANURAS | C42: 744.05 | D42: 741.72 | E42: 735.83 | F42: 727.62 | G42: 721.73 | H42: 749.93 | I42: 755.82 | J42: 764.03 | K42: 747.6 | L42: 733.5 | M42: 0.68858
A43: 33 | B43: APOLLOHOSP | C43: 4611.95 | D43: 4589.32 | E43: 4549.63 | F43: 4487.32 | G43: 4447.63 | H43: 4651.63 | I43: 4691.32 | J43: 4753.63 | K43: 4629 | L43: 4527 | M43: 4.92794
A44: 34 | B44: APOLLOTYRE | C44: 297.7 | D44: 297.10 | E44: 290.60 | F44: 283.50 | G44: 277.00 | H44: 304.20 | I44: 310.70 | J44: 317.80 | K44: 303.6 | L44: 290 | M44: 169.87072
A45: 35 | B45: APTUS | C45: 317.75 | D45: 318.57 | E45: 310.83 | F45: 303.92 | G45: 296.18 | H45: 325.48 | I45: 333.22 | J45: 340.13 | K45: 326.3 | L45: 311.65 | M45: 18.28164
A46: 36 | B46: ASAHIINDIA | C46: 629.4 | D46: 633.80 | E46: 617.60 | F46: 605.80 | G46: 589.60 | H46: 645.60 | I46: 661.80 | J46: 673.60 | K46: 650 | L46: 622 | M46: 1.95047
A47: 37 | B47: ASHOKLEY | C47: 150.1 | D47: 150.95 | E47: 148.70 | F47: 147.30 | G47: 145.05 | H47: 152.35 | I47: 154.60 | J47: 156.00 | K47: 153.2 | L47: 149.55 | M47: 106.76227
A48: 38 | B48: ASIANPAINT | C48: 3079.3 | D48: 3072.10 | E48: 3049.20 | F48: 3019.10 | G48: 2996.20 | H48: 3102.20 | I48: 3125.10 | J48: 3155.20 | K48: 3095 | L48: 3042 | M48: 8.7384
A49: 39 | B49: ASTERDM | C49: 219.65 | D49: 220.67 | E49: 212.33 | F49: 205.02 | G49: 196.68 | H49: 227.98 | I49: 236.32 | J49: 243.63 | K49: 229 | L49: 213.35 | M49: 29.29932
A50: 40 | B50: ASTRAZEN | C50: 3374.85 | D50: 3363.22 | E50: 3341.63 | F50: 3308.42 | G50: 3286.83 | H50: 3396.43 | I50: 3418.02 | J50: 3451.23 | K50: 3384.8 | L50: 3330 | M50: 0.08914
A51: 41 | B51: ASTRAL | C51: 1937.05 | D51: 1953.15 | E51: 1913.90 | F51: 1890.75 | G51: 1851.50 | H51: 1976.30 | I51: 2015.55 | J51: 2038.70 | K51: 1992.4 | L51: 1930 | M51: 6.87177
A52: 42 | B52: ATUL | C52: 8294 | D52: 8308.20 | E52: 8237.10 | F52: 8180.20 | G52: 8109.10 | H52: 8365.10 | I52: 8436.20 | J52: 8493.10 | K52: 8379.3 | L52: 8251.3 | M52: 0.25911
A53: 43 | B53: AUROPHARMA | C53: 492.25 | D53: 489.02 | E53: 483.23 | F53: 474.22 | G53: 468.43 | H53: 498.03 | I53: 503.82 | J53: 512.83 | K53: 494.8 | L53: 480 | M53: 30.99612
A54: 44 | B54: AVANTIFEED | C54: 430.9 | D54: 431.42 | E54: 427.48 | F54: 424.07 | G54: 420.13 | H54: 434.83 | I54: 438.77 | J54: 442.18 | K54: 435.35 | L54: 428 | M54: 1.20901
A55: 45 | B55: DMART | C55: 4053.8 | D55: 4069.87 | E55: 4029.93 | F55: 4006.07 | G55: 3966.13 | H55: 4093.73 | I55: 4133.67 | J55: 4157.53 | K55: 4109.8 | L55: 4046 | M55: 4.96893
A56: 46 | B56: AXISBANK | C56: 858.65 | D56: 855.23 | E56: 850.62 | F56: 842.58 | G56: 837.97 | H56: 863.27 | I56: 867.88 | J56: 875.92 | K56: 859.85 | L56: 847.2 | M56: 71.24767
A57: 47 | B57: BASF | C57: 2654.4 | D57: 2660.47 | E57: 2620.98 | F57: 2587.57 | G57: 2548.08 | H57: 2693.88 | I57: 2733.37 | J57: 2766.78 | K57: 2699.95 | L57: 2627.05 | M57: 0.13618
A58: 48 | B58: BSE | C58: 583 | D58: 585.82 | E58: 577.23 | F58: 571.47 | G58: 562.88 | H58: 591.58 | I58: 600.17 | J58: 605.93 | K58: 594.4 | L58: 580.05 | M58: 5.39458
A59: 49 | B59: BAJAJ-AUTO | C59: 3764.15 | D59: 3759.73 | E59: 3730.47 | F59: 3696.78 | G59: 3667.52 | H59: 3793.42 | I59: 3822.68 | J59: 3856.37 | K59: 3789 | L59: 3726.05 | M59: 2.96104
A60: 50 | B60: BAJAJELEC | C60: 1135.9 | D60: 1138.72 | E60: 1127.18 | F60: 1118.47 | G60: 1106.93 | H60: 1147.43 | I60: 1158.97 | J60: 1167.68 | K60: 1150.25 | L60: 1130 | M60: 0.2837
A61: 51 | B61: BAJFINANCE | C61: 7025.75 | D61: 7023.05 | E61: 6983.70 | F61: 6941.65 | G61: 6902.30 | H61: 7065.10 | I61: 7104.45 | J61: 7146.50 | K61: 7062.4 | L61: 6981 | M61: 7.19521
A62: 52 | B62: BAJAJFINSV | C62: 1708.5 | D62: 1711.53 | E62: 1693.27 | F62: 1678.03 | G62: 1659.77 | H62: 1726.77 | I62: 1745.03 | J62: 1760.27 | K62: 1729.8 | L62: 1696.3 | M62: 14.01141
A63: 53 | B63: BAJAJHLDNG | C63: 6647.2 | D63: 6667.92 | E63: 6585.83 | F63: 6524.47 | G63: 6442.38 | H63: 6729.28 | I63: 6811.37 | J63: 6872.73 | K63: 6750 | L63: 6606.55 | M63: 0.96193
A64: 54 | B64: BALAMINES | C64: 2961.35 | D64: 2972.12 | E64: 2944.23 | F64: 2927.12 | G64: 2899.23 | H64: 2989.23 | I64: 3017.12 | J64: 3034.23 | K64: 3000 | L64: 2955 | M64: 0.31596
A65: 55 | B65: BALKRISIND | C65: 1963.2 | D65: 1913.55 | E65: 1845.95 | F65: 1728.70 | G65: 1661.10 | H65: 2030.80 | I65: 2098.40 | J65: 2215.65 | K65: 1981.15 | L65: 1796.3 | M65: 26.7007
A66: 56 | B66: BALRAMCHIN | C66: 347.55 | D66: 344.25 | E66: 340.30 | F66: 333.05 | G66: 329.10 | H66: 351.50 | I66: 355.45 | J66: 362.70 | K66: 348.2 | L66: 337 | M66: 27.53136
A67: 57 | B67: BANDHANBNK | C67: 228.8 | D67: 228.13 | E67: 226.82 | F67: 224.83 | G67: 223.52 | H67: 230.12 | I67: 231.43 | J67: 233.42 | K67: 229.45 | L67: 226.15 | M67: 66.76595
A68: 58 | B68: BANKBARODA | C68: 162.95 | D68: 163.42 | E68: 161.33 | F68: 159.72 | G68: 157.63 | H68: 165.03 | I68: 167.12 | J68: 168.73 | K68: 165.5 | L68: 161.8 | M68: 229.71749
A69: 59 | B69: BANKINDIA | C69: 74.25 | D69: 74.42 | E69: 73.33 | F69: 72.42 | G69: 71.33 | H69: 75.33 | I69: 76.42 | J69: 77.33 | K69: 75.5 | L69: 73.5 | M69: 83.12658
A70: 60 | B70: MAHABANK | C70: 22.85 | D70: 22.90 | E70: 22.55 | F70: 22.25 | G70: 21.90 | H70: 23.20 | I70: 23.55 | J70: 23.85 | K70: 23.25 | L70: 22.6 | M70: 65.60313
A71: 61 | B71: BATAINDIA | C71: 1704.55 | D71: 1715.08 | E71: 1675.27 | F71: 1645.98 | G71: 1606.17 | H71: 1744.37 | I71: 1784.18 | J71: 1813.47 | K71: 1754.9 | L71: 1685.8 | M71: 5.90637
A72: 62 | B72: BAYERCROP | C72: 4667.4 | D72: 4693.20 | E72: 4625.20 | F72: 4583.00 | G72: 4515.00 | H72: 4735.40 | I72: 4803.40 | J72: 4845.60 | K72: 4761.2 | L72: 4651 | M72: 0.09535
A73: 63 | B73: BERGEPAINT | C73: 609.3 | D73: 605.33 | E73: 600.42 | F73: 591.53 | G73: 586.62 | H73: 614.22 | I73: 619.13 | J73: 628.02 | K73: 610.25 | L73: 596.45 | M73: 5.68357
A74: 64 | B74: BDL | C74: 918.25 | D74: 928.58 | E74: 902.37 | F74: 886.48 | G74: 860.27 | H74: 944.47 | I74: 970.68 | J74: 986.57 | K74: 954.8 | L74: 912.7 | M74: 10.35234
A75: 65 | B75: BEL | C75: 107.05 | D75: 106.63 | E75: 105.87 | F75: 104.68 | G75: 103.92 | H75: 107.82 | I75: 108.58 | J75: 109.77 | K75: 107.4 | L75: 105.45 | M75: 116.75691
A76: 66 | B76: BHARATFORG | C76: 853.05 | D76: 850.57 | E76: 841.98 | F76: 830.92 | G76: 822.33 | H76: 861.63 | I76: 870.22 | J76: 881.28 | K76: 859.15 | L76: 839.5 | M76: 15.6102
A77: 67 | B77: BHEL | C77: 70.35 | D77: 70.60 | E77: 69.85 | F77: 69.35 | G77: 68.60 | H77: 71.10 | I77: 71.85 | J77: 72.35 | K77: 71.35 | L77: 70.1 | M77: 149.60753
A78: 68 | B78: BPCL | C78: 308.9 | D78: 308.07 | E78: 306.53 | F78: 304.17 | G78: 302.63 | H78: 310.43 | I78: 311.97 | J78: 314.33 | K78: 309.6 | L78: 305.7 | M78: 20.17679
A79: 69 | B79: BHARATRAS | C79: 10430.4 | D79: 10426.82 | E79: 10303.58 | F79: 10176.77 | G79: 10053.53 | H79: 10553.63 | I79: 10676.87 | J79: 10803.68 | K79: 10550.05 | L79: 10300 | M79: 0.01688
A80: 70 | B80: BHARTIARTL | C80: 835.25 | D80: 832.22 | E80: 825.68 | F80: 816.12 | G80: 809.58 | H80: 841.78 | I80: 848.32 | J80: 857.88 | K80: 838.75 | L80: 822.65 | M80: 62.2971
A81: 71 | B81: BIOCON | C81: 283.85 | D81: 282.93 | E81: 278.92 | F81: 273.98 | G81: 269.97 | H81: 287.87 | I81: 291.88 | J81: 296.82 | K81: 286.95 | L81: 278 | M81: 41.41668
A82: 72 | B82: BIRLACORPN | C82: 941.6 | D82: 947.78 | E82: 928.82 | F82: 916.03 | G82: 897.07 | H82: 960.57 | I82: 979.53 | J82: 992.32 | K82: 966.75 | L82: 935 | M82: 1.12348
A83: 73 | B83: BSOFT | C83: 282.5 | D83: 283.00 | E83: 279.40 | F83: 276.30 | G83: 272.70 | H83: 286.10 | I83: 289.70 | J83: 292.80 | K83: 286.6 | L83: 279.9 | M83: 10.92548
A84: 74 | B84: BLUEDART | C84: 7093.8 | D84: 7107.97 | E84: 6996.83 | F84: 6899.87 | G84: 6788.73 | H84: 7204.93 | I84: 7316.07 | J84: 7413.03 | K84: 7219.1 | L84: 7011 | M84: 0.41623
A85: 75 | B85: BLUESTARCO | C85: 1197.45 | D85: 1200.77 | E85: 1183.53 | F85: 1169.62 | G85: 1152.38 | H85: 1214.68 | I85: 1231.92 | J85: 1245.83 | K85: 1218 | L85: 1186.85 | M85: 0.17999
A86: 76 | B86: BBTC | C86: 935.35 | D86: 938.30 | E86: 927.10 | F86: 918.85 | G86: 907.65 | H86: 946.55 | I86: 957.75 | J86: 966.00 | K86: 949.5 | L86: 930.05 | M86: 0.19222
A87: 77 | B87: BORORENEW | C87: 548.9 | D87: 547.33 | E87: 544.67 | F87: 540.43 | G87: 537.77 | H87: 551.57 | I87: 554.23 | J87: 558.47 | K87: 550 | L87: 543.1 | M87: 0.92864
A88: 78 | B88: BOSCHLTD | C88: 16890.5 | D88: 16945.97 | E88: 16801.98 | F88: 16713.47 | G88: 16569.48 | H88: 17034.48 | I88: 17178.47 | J88: 17266.98 | K88: 17089.95 | L88: 16857.45 | M88: 0.21179
A89: 79 | B89: BRIGADE | C89: 496.85 | D89: 502.75 | E89: 484.70 | F89: 472.55 | G89: 454.50 | H89: 514.90 | I89: 532.95 | J89: 545.10 | K89: 520.8 | L89: 490.6 | M89: 2.67759
A90: 80 | B90: BCG | C90: 37.5 | D90: 37.97 | E90: 36.43 | F90: 35.37 | G90: 33.83 | H90: 39.03 | I90: 40.57 | J90: 41.63 | K90: 39.5 | L90: 36.9 | M90: 135.22975
A91: 81 | B91: BRITANNIA | C91: 4139.35 | D91: 4125.40 | E91: 4097.20 | F91: 4055.05 | G91: 4026.85 | H91: 4167.55 | I91: 4195.75 | J91: 4237.90 | K91: 4153.6 | L91: 4083.25 | M91: 3.25881
A92: 82 | B92: MAPMYINDIA | C92: 1229.15 | D92: 1239.12 | E92: 1214.23 | F92: 1199.32 | G92: 1174.43 | H92: 1254.03 | I92: 1278.92 | J92: 1293.83 | K92: 1264 | L92: 1224.2 | M92: 0.74632
A93: 83 | B93: CCL | C93: 504.55 | D93: 504.33 | E93: 501.22 | F93: 497.88 | G93: 494.77 | H93: 507.67 | I93: 510.78 | J93: 514.12 | K93: 507.45 | L93: 501 | M93: 1.57619
A94: 84 | B94: CESC | C94: 74.5 | D94: 75.05 | E94: 73.75 | F94: 73.00 | G94: 71.70 | H94: 75.80 | I94: 77.10 | J94: 77.85 | K94: 76.35 | L94: 74.3 | M94: 19.72249
A95: 85 | B95: CGPOWER | C95: 270.7 | D95: 268.22 | E95: 264.53 | F95: 258.37 | G95: 254.68 | H95: 274.38 | I95: 278.07 | J95: 284.23 | K95: 271.9 | L95: 262.05 | M95: 19.57513
A96: 86 | B96: CRISIL | C96: 3020.95 | D96: 3014.50 | E96: 2986.45 | F96: 2951.95 | G96: 2923.90 | H96: 3049.00 | I96: 3077.05 | J96: 3111.55 | K96: 3042.55 | L96: 2980 | M96: 0.33305
A97: 87 | B97: CSBBANK | C97: 216.5 | D97: 217.17 | E97: 214.43 | F97: 212.37 | G97: 209.63 | H97: 219.23 | I97: 221.97 | J97: 224.03 | K97: 219.9 | L97: 215.1 | M97: 2.10382
A98: 88 | B98: CAMPUS | C98: 424.95 | D98: 430.97 | E98: 400.13 | F98: 375.32 | G98: 344.48 | H98: 455.78 | I98: 486.62 | J98: 511.43 | K98: 461.8 | L98: 406.15 | M98: 62.99359
A99: 89 | B99: CANFINHOME | C99: 535.95 | D99: 535.70 | E99: 532.50 | F99: 529.05 | G99: 525.85 | H99: 539.15 | I99: 542.35 | J99: 545.80 | K99: 538.9 | L99: 532.25 | M99: 3.67553
A100: 90 | B100: CANBK | C100: 309.3 | D100: 307.53 | E100: 305.02 | F100: 300.73 | G100: 298.22 | H100: 311.82 | I100: 314.33 | J100: 318.62 | K100: 310.05 | L100: 303.25 | M100: 70.77719
A101: 91 | B101: CAPLIPOINT | C101: 762.35 | D101: 767.70 | E101: 749.65 | F101: 736.95 | G101: 718.90 | H101: 780.40 | I101: 798.45 | J101: 811.15 | K101: 785.75 | L101: 755 | M101: 0.98718
A102: 92 | B102: CGCL | C102: 742.5 | D102: 743.85 | E102: 734.25 | F102: 726.00 | G102: 716.40 | H102: 752.10 | I102: 761.70 | J102: 769.95 | K102: 753.45 | L102: 735.6 | M102: 1.50567
A103: 93 | B103: CARBORUNIV | C103: 811.2 | D103: 807.97 | E103: 800.98 | F103: 790.77 | G103: 783.78 | H103: 818.18 | I103: 825.17 | J103: 835.38 | K103: 814.95 | L103: 797.75 | M103: 1.14739
A104: 94 | B104: CASTROLIND | C104: 125.85 | D104: 125.65 | E104: 124.95 | F104: 124.05 | G104: 123.35 | H104: 126.55 | I104: 127.25 | J104: 128.15 | K104: 126.35 | L104: 124.75 | M104: 5.38718
A105: 95 | B105: CEATLTD | C105: 1754.3 | D105: 1754.43 | E105: 1719.87 | F105: 1685.43 | G105: 1650.87 | H105: 1788.87 | I105: 1823.43 | J105: 1857.87 | K105: 1789 | L105: 1720 | M105: 4.4403
A106: 96 | B106: CENTRALBK | C106: 22.7 | D106: 22.67 | E106: 22.43 | F106: 22.17 | G106: 21.93 | H106: 22.93 | I106: 23.17 | J106: 23.43 | K106: 22.9 | L106: 22.4 | M106: 52.71106
A107: 97 | B107: CDSL | C107: 1250.1 | D107: 1257.65 | E107: 1237.80 | F107: 1225.50 | G107: 1205.65 | H107: 1269.95 | I107: 1289.80 | J107: 1302.10 | K107: 1277.5 | L107: 1245.35 | M107: 6.09091
A108: 98 | B108: CENTURYPLY | C108: 592.15 | D108: 590.78 | E108: 586.57 | F108: 580.98 | G108: 576.77 | H108: 596.37 | I108: 600.58 | J108: 606.17 | K108: 595 | L108: 585.2 | M108: 0.53566
A109: 99 | B109: CENTURYTEX | C109: 790.55 | D109: 791.28 | E109: 784.37 | F109: 778.18 | G109: 771.27 | H109: 797.47 | I109: 804.38 | J109: 810.57 | K109: 798.2 | L109: 785.1 | M109: 1.0937
A110: 100 | B110: CERA | C110: 5374.3 | D110: 5369.00 | E110: 5336.15 | F110: 5298.00 | G110: 5265.15 | H110: 5407.15 | I110: 5440.00 | J110: 5478.15 | K110: 5401.85 | L110: 5330.85 | M110: 0.03908
A111: 101 | B111: CHALET | C111: 362.8 | D111: 361.25 | E111: 356.55 | F111: 350.30 | G111: 345.60 | H111: 367.50 | I111: 372.20 | J111: 378.45 | K111: 365.95 | L111: 355 | M111: 0.65237
A112: 102 | B112: CHAMBLFERT | C112: 295.15 | D112: 293.72 | E112: 291.43 | F112: 287.72 | G112: 285.43 | H112: 297.43 | I112: 299.72 | J112: 303.43 | K112: 296 | L112: 290 | M112: 15.23238
A113: 103 | B113: CHEMPLASTS | C113: 385.3 | D113: 386.90 | E113: 381.40 | F113: 377.50 | G113: 372.00 | H113: 390.80 | I113: 396.30 | J113: 400.20 | K113: 392.4 | L113: 383 | M113: 1.13506
A114: 104 | B114: CHOLAHLDNG | C114: 604.3 | D114: 603.78 | E114: 597.52 | F114: 590.73 | G114: 584.47 | H114: 610.57 | I114: 616.83 | J114: 623.62 | K114: 610.05 | L114: 597 | M114: 3.91858
A115: 105 | B115: CHOLAFIN | C115: 721.5 | D115: 720.23 | E115: 716.32 | F115: 711.13 | G115: 707.22 | H115: 725.42 | I115: 729.33 | J115: 734.52 | K115: 724.15 | L115: 715.05 | M115: 7.74145
A116: 106 | B116: CIPLA | C116: 1118.75 | D116: 1121.52 | E116: 1108.08 | F116: 1097.42 | G116: 1083.98 | H116: 1132.18 | I116: 1145.62 | J116: 1156.28 | K116: 1134.95 | L116: 1110.85 | M116: 12.62746
A117: 107 | B117: CUB | C117: 190.05 | D117: 188.33 | E117: 185.52 | F117: 180.98 | G117: 178.17 | H117: 192.87 | I117: 195.68 | J117: 200.22 | K117: 191.15 | L117: 183.8 | M117: 46.59728
A118: 108 | B118: CLEAN | C118: 1501.2 | D118: 1512.27 | E118: 1486.58 | F118: 1471.97 | G118: 1446.28 | H118: 1526.88 | I118: 1552.57 | J118: 1567.18 | K118: 1537.95 | L118: 1497.65 | M118: 0.96918
A119: 109 | B119: COALINDIA | C119: 232.15 | D119: 233.87 | E119: 228.88 | F119: 225.62 | G119: 220.63 | H119: 237.13 | I119: 242.12 | J119: 245.38 | K119: 238.85 | L119: 230.6 | M119: 202.25373
A120: 110 | B120: COCHINSHIP | C120: 677.5 | D120: 671.57 | E120: 659.18 | F120: 640.87 | G120: 628.48 | H120: 689.88 | I120: 702.27 | J120: 720.58 | K120: 683.95 | L120: 653.25 | M120: 28.36589
A121: 111 | B121: COFORGE | C121: 3972.3 | D121: 3973.78 | E121: 3910.67 | F121: 3849.03 | G121: 3785.92 | H121: 4035.42 | I121: 4098.53 | J121: 4160.17 | K121: 4036.9 | L121: 3912.15 | M121: 2.47184
A122: 112 | B122: COLPAL | C122: 1581.05 | D122: 1578.70 | E122: 1568.50 | F122: 1555.95 | G122: 1545.75 | H122: 1591.25 | I122: 1601.45 | J122: 1614.00 | K122: 1588.9 | L122: 1566.15 | M122: 1.4918
A123: 113 | B123: CAMS | C123: 2351.45 | D123: 2361.85 | E123: 2333.70 | F123: 2315.95 | G123: 2287.80 | H123: 2379.60 | I123: 2407.75 | J123: 2425.50 | K123: 2390 | L123: 2344.1 | M123: 1.09763
A124: 114 | B124: CONCOR | C124: 763.6 | D124: 763.97 | E124: 758.88 | F124: 754.17 | G124: 749.08 | H124: 768.68 | I124: 773.77 | J124: 778.48 | K124: 769.05 | L124: 759.25 | M124: 11.13605
A125: 115 | B125: COROMANDEL | C125: 920.65 | D125: 921.72 | E125: 917.43 | F125: 914.22 | G125: 909.93 | H125: 924.93 | I125: 929.22 | J125: 932.43 | K125: 926 | L125: 918.5 | M125: 3.65723
A126: 116 | B126: CREDITACC | C126: 974.75 | D126: 980.82 | E126: 963.93 | F126: 953.12 | G126: 936.23 | H126: 991.63 | I126: 1008.52 | J126: 1019.33 | K126: 997.7 | L126: 970 | M126: 1.44295
A127: 117 | B127: CROMPTON | C127: 367 | D127: 365.90 | E127: 362.30 | F127: 357.60 | G127: 354.00 | H127: 370.60 | I127: 374.20 | J127: 378.90 | K127: 369.5 | L127: 361.2 | M127: 9.64203
A128: 118 | B128: CUMMINSIND | C128: 1372.75 | D128: 1360.25 | E128: 1345.55 | F128: 1318.35 | G128: 1303.65 | H128: 1387.45 | I128: 1402.15 | J128: 1429.35 | K128: 1374.95 | L128: 1333.05 | M128: 10.85541
A129: 119 | B129: CYIENT | C129: 769.85 | D129: 769.52 | E129: 761.18 | F129: 752.52 | G129: 744.18 | H129: 778.18 | I129: 786.52 | J129: 795.18 | K129: 777.85 | L129: 760.85 | M129: 1.23516
A130: 120 | B130: DCMSHRIRAM | C130: 891.7 | D130: 904.57 | E130: 877.13 | F130: 862.57 | G130: 835.13 | H130: 919.13 | I130: 946.57 | J130: 961.13 | K130: 932 | L130: 890 | M130: 2.38004
A131: 121 | B131: DLF | C131: 405.45 | D131: 405.45 | E131: 401.40 | F131: 397.35 | G131: 393.30 | H131: 409.50 | I131: 413.55 | J131: 417.60 | K131: 409.5 | L131: 401.4 | M131: 27.73854
A132: 122 | B132: DABUR | C132: 550.75 | D132: 549.58 | E132: 543.17 | F132: 535.58 | G132: 529.17 | H132: 557.17 | I132: 563.58 | J132: 571.17 | K132: 556 | L132: 542 | M132: 19.39642
A133: 123 | B133: DALBHARAT | C133: 1679.65 | D133: 1688.68 | E133: 1661.37 | F133: 1643.08 | G133: 1615.77 | H133: 1706.97 | I133: 1734.28 | J133: 1752.57 | K133: 1716 | L133: 1670.4 | M133: 1.82416
A134: 124 | B134: DEEPAKFERT | C134: 842.4 | D134: 847.27 | E134: 835.63 | F134: 828.87 | G134: 817.23 | H134: 854.03 | I134: 865.67 | J134: 872.43 | K134: 858.9 | L134: 840.5 | M134: 3.63511
A135: 125 | B135: DEEPAKNTR | C135: 2187.2 | D135: 2175.73 | E135: 2150.47 | F135: 2113.73 | G135: 2088.47 | H135: 2212.47 | I135: 2237.73 | J135: 2274.47 | K135: 2201 | L135: 2139 | M135: 6.74094
A136: 126 | B136: DELHIVERY | C136: 374.55 | D136: 374.37 | E136: 369.33 | F136: 364.12 | G136: 359.08 | H136: 379.58 | I136: 384.62 | J136: 389.83 | K136: 379.4 | L136: 369.15 | M136: 5.18959
A137: 127 | B137: DELTACORP | C137: 227.85 | D137: 227.52 | E137: 223.03 | F137: 218.22 | G137: 213.73 | H137: 232.33 | I137: 236.82 | J137: 241.63 | K137: 232 | L137: 222.7 | M137: 100.81353
A138: 128 | B138: DEVYANI | C138: 182.1 | D138: 180.07 | E138: 177.63 | F138: 173.17 | G138: 170.73 | H138: 184.53 | I138: 186.97 | J138: 191.43 | K138: 182.5 | L138: 175.6 | M138: 27.33801
A139: 129 | B139: DHANI | C139: 51.05 | D139: 51.22 | E139: 50.08 | F139: 49.12 | G139: 47.98 | H139: 52.18 | I139: 53.32 | J139: 54.28 | K139: 52.35 | L139: 50.25 | M139: 17.04008
A140: 130 | B140: DBL | C140: 230.2 | D140: 232.95 | E140: 226.10 | F140: 222.00 | G140: 215.15 | H140: 237.05 | I140: 243.90 | J140: 248.00 | K140: 239.8 | L140: 228.85 | M140: 9.5775
A141: 131 | B141: DIVISLAB | C141: 3326.6 | D141: 3311.87 | E141: 3293.73 | F141: 3260.87 | G141: 3242.73 | H141: 3344.73 | I141: 3362.87 | J141: 3395.73 | K141: 3330 | L141: 3279 | M141: 5.26764
A142: 132 | B142: DIXON | C142: 4582.8 | D142: 4601.28 | E142: 4537.62 | F142: 4492.43 | G142: 4428.77 | H142: 4646.47 | I142: 4710.13 | J142: 4755.32 | K142: 4664.95 | L142: 4556.1 | M142: 2.43036
A143: 133 | B143: LALPATHLAB | C143: 2481.5 | D143: 2457.17 | E143: 2414.33 | F143: 2347.17 | G143: 2304.33 | H143: 2524.33 | I143: 2567.17 | J143: 2634.33 | K143: 2500 | L143: 2390 | M143: 5.40289
A144: 134 | B144: DRREDDY | C144: 4433.7 | D144: 4413.33 | E144: 4384.07 | F144: 4334.43 | G144: 4305.17 | H144: 4462.97 | I144: 4492.23 | J144: 4541.87 | K144: 4442.6 | L144: 4363.7 | M144: 3.7452
A145: 135 | B145: EIDPARRY | C145: 627.3 | D145: 624.70 | E145: 620.00 | F145: 612.70 | G145: 608.00 | H145: 632.00 | I145: 636.70 | J145: 644.00 | K145: 629.4 | L145: 617.4 | M145: 2.60015
A146: 136 | B146: EIHOTEL | C146: 174.05 | D146: 175.37 | E146: 171.88 | F146: 169.72 | G146: 166.23 | H146: 177.53 | I146: 181.02 | J146: 183.18 | K146: 178.85 | L146: 173.2 | M146: 3.83405
A147: 137 | B147: EPL | C147: 152.6 | D147: 152.43 | E147: 151.42 | F147: 150.23 | G147: 149.22 | H147: 153.62 | I147: 154.63 | J147: 155.82 | K147: 153.45 | L147: 151.25 | M147: 2.84075
A148: 138 | B148: EASEMYTRIP | C148: 399.4 | D148: 400.07 | E148: 395.43 | F148: 391.47 | G148: 386.83 | H148: 404.03 | I148: 408.67 | J148: 412.63 | K148: 404.7 | L148: 396.1 | M148: 8.67727
A149: 139 | B149: EDELWEISS | C149: 59.05 | D149: 59.30 | E149: 58.55 | F149: 58.05 | G149: 57.30 | H149: 59.80 | I149: 60.55 | J149: 61.05 | K149: 60.05 | L149: 58.8 | M149: 5.90988
A150: 140 | B150: EICHERMOT | C150: 3507.95 | D150: 3521.95 | E150: 3486.00 | F150: 3464.05 | G150: 3428.10 | H150: 3543.90 | I150: 3579.85 | J150: 3601.80 | K150: 3557.9 | L150: 3500 | M150: 5.52511
A151: 141 | B151: ELGIEQUIP | C151: 510.05 | D151: 508.95 | E151: 503.10 | F151: 496.15 | G151: 490.30 | H151: 515.90 | I151: 521.75 | J151: 528.70 | K151: 514.8 | L151: 502 | M151: 3.49684
A152: 142 | B152: EMAMILTD | C152: 445.8 | D152: 448.10 | E152: 439.70 | F152: 433.60 | G152: 425.20 | H152: 454.20 | I152: 462.60 | J152: 468.70 | K152: 456.5 | L152: 442 | M152: 1.9889
A153: 143 | B153: ENDURANCE | C153: 1490.6 | D153: 1487.65 | E153: 1477.95 | F153: 1465.30 | G153: 1455.60 | H153: 1500.30 | I153: 1510.00 | J153: 1522.65 | K153: 1497.35 | L153: 1475 | M153: 0.23392
A154: 144 | B154: ENGINERSIN | C154: 72.75 | D154: 72.68 | E154: 71.67 | F154: 70.58 | G154: 69.57 | H154: 73.77 | I154: 74.78 | J154: 75.87 | K154: 73.7 | L154: 71.6 | M154: 13.46507
A155: 145 | B155: EQUITASBNK | C155: 51.95 | D155: 52.43 | E155: 51.22 | F155: 50.48 | G155: 49.27 | H155: 53.17 | I155: 54.38 | J155: 55.12 | K155: 53.65 | L155: 51.7 | M155: 11.81417
A156: 146 | B156: ESCORTS | C156: 2012.85 | D156: 2006.57 | E156: 1983.13 | F156: 1953.42 | G156: 1929.98 | H156: 2036.28 | I156: 2059.72 | J156: 2089.43 | K156: 2030 | L156: 1976.85 | M156: 3.99947
A157: 147 | B157: EXIDEIND | C157: 181.85 | D157: 181.62 | E157: 178.28 | F157: 174.72 | G157: 171.38 | H157: 185.18 | I157: 188.52 | J157: 192.08 | K157: 184.95 | L157: 178.05 | M157: 90.44124
A158: 148 | B158: FDC | C158: 285.1 | D158: 284.93 | E158: 278.47 | F158: 271.83 | G158: 265.37 | H158: 291.57 | I158: 298.03 | J158: 304.67 | K158: 291.4 | L158: 278.3 | M158: 8.54443
A159: 149 | B159: NYKAA | C159: 192.05 | D159: 198.23 | E159: 185.02 | F159: 177.98 | G159: 164.77 | H159: 205.27 | I159: 218.48 | J159: 225.52 | K159: 211.45 | L159: 191.2 | M159: 268.08991
A160: 150 | B160: FEDERALBNK | C160: 136.1 | D160: 136.03 | E160: 135.32 | F160: 134.53 | G160: 133.82 | H160: 136.82 | I160: 137.53 | J160: 138.32 | K160: 136.75 | L160: 135.25 | M160: 60.02862
A161: 151 | B161: FACT | C161: 130.85 | D161: 131.10 | E161: 128.25 | F161: 125.65 | G161: 122.80 | H161: 133.70 | I161: 136.55 | J161: 139.15 | K161: 133.95 | L161: 128.5 | M161: 1.99957
A162: 152 | B162: FINEORG | C162: 6048.5 | D162: 6066.85 | E162: 5993.70 | F162: 5938.90 | G162: 5865.75 | H162: 6121.65 | I162: 6194.80 | J162: 6249.60 | K162: 6140 | L162: 6012.05 | M162: 0.43432
A163: 153 | B163: FINCABLES | C163: 527.15 | D163: 521.98 | E163: 511.97 | F163: 496.78 | G163: 486.77 | H163: 537.17 | I163: 547.18 | J163: 562.37 | K163: 532 | L163: 506.8 | M163: 2.05688
A164: 154 | B164: FINPIPE | C164: 149.65 | D164: 150.18 | E164: 147.72 | F164: 145.78 | G164: 143.32 | H164: 152.12 | I164: 154.58 | J164: 156.52 | K164: 152.65 | L164: 148.25 | M164: 3.85958
A165: 155 | B165: FSL | C165: 110.5 | D165: 109.97 | E165: 108.53 | F165: 106.57 | G165: 105.13 | H165: 111.93 | I165: 113.37 | J165: 115.33 | K165: 111.4 | L165: 108 | M165: 23.47635
A166: 156 | B166: FORTIS | C166: 301.5 | D166: 302.45 | E166: 298.95 | F166: 296.40 | G166: 292.90 | H166: 305.00 | I166: 308.50 | J166: 311.05 | K166: 305.95 | L166: 299.9 | M166: 16.45047
A167: 157 | B167: GRINFRA | C167: 1121.1 | D167: 1130.45 | E167: 1101.05 | F167: 1081.00 | G167: 1051.60 | H167: 1150.50 | I167: 1179.90 | J167: 1199.95 | K167: 1159.85 | L167: 1110.4 | M167: 0.51485
A168: 158 | B168: GAIL | C168: 89.9 | D168: 89.32 | E168: 88.63 | F168: 87.37 | G168: 86.68 | H168: 90.58 | I168: 91.27 | J168: 92.53 | K168: 90 | L168: 88.05 | M168: 82.47787
A169: 159 | B169: GMMPFAUDLR | C169: 1829.7 | D169: 1842.10 | E169: 1805.65 | F169: 1781.60 | G169: 1745.15 | H169: 1866.15 | I169: 1902.60 | J169: 1926.65 | K169: 1878.55 | L169: 1818.05 | M169: 0.88581
A170: 160 | B170: GMRINFRA | C170: 37 | D170: 37.33 | E170: 36.17 | F170: 35.33 | G170: 34.17 | H170: 38.17 | I170: 39.33 | J170: 40.17 | K170: 38.5 | L170: 36.5 | M170: 166.57698
A171: 161 | B171: GALAXYSURF | C171: 2914.6 | D171: 2914.55 | E171: 2872.05 | F171: 2829.50 | G171: 2787.00 | H171: 2957.10 | I171: 2999.60 | J171: 3042.15 | K171: 2957.05 | L171: 2872 | M171: 0.08681
A172: 162 | B172: GARFIBRES | C172: 3366.5 | D172: 3379.62 | E172: 3337.88 | F172: 3309.27 | G172: 3267.53 | H172: 3408.23 | I172: 3449.97 | J172: 3478.58 | K172: 3421.35 | L172: 3351 | M172: 0.05029
A173: 163 | B173: GICRE | C173: 140.85 | D173: 140.25 | E173: 136.75 | F173: 132.65 | G173: 129.15 | H173: 144.35 | I173: 147.85 | J173: 151.95 | K173: 143.75 | L173: 136.15 | M173: 7.02395
A174: 164 | B174: GLAND | C174: 1725.7 | D174: 1730.05 | E174: 1716.10 | F174: 1706.50 | G174: 1692.55 | H174: 1739.65 | I174: 1753.60 | J174: 1763.20 | K174: 1744 | L174: 1720.45 | M174: 2.15534
A175: 165 | B175: GLAXO | C175: 1328.8 | D175: 1335.27 | E175: 1318.53 | F175: 1308.27 | G175: 1291.53 | H175: 1345.53 | I175: 1362.27 | J175: 1372.53 | K175: 1352 | L175: 1325 | M175: 0.6784
A176: 166 | B176: GLENMARK | C176: 435.1 | D176: 431.72 | E176: 427.63 | F176: 420.17 | G176: 416.08 | H176: 439.18 | I176: 443.27 | J176: 450.73 | K176: 435.8 | L176: 424.25 | M176: 11.11218
A177: 167 | B177: GOCOLORS | C177: 1155.6 | D177: 1157.40 | E177: 1131.20 | F177: 1106.80 | G177: 1080.60 | H177: 1181.80 | I177: 1208.00 | J177: 1232.40 | K177: 1183.6 | L177: 1133 | M177: 0.41267
A178: 168 | B178: GODFRYPHLP | C178: 1760.9 | D178: 1761.78 | E178: 1743.67 | F178: 1726.43 | G178: 1708.32 | H178: 1779.02 | I178: 1797.13 | J178: 1814.37 | K178: 1779.9 | L178: 1744.55 | M178: 1.04487
A179: 169 | B179: GODREJAGRO | C179: 470.05 | D179: 471.28 | E179: 467.07 | F179: 464.08 | G179: 459.87 | H179: 474.27 | I179: 478.48 | J179: 481.47 | K179: 475.5 | L179: 468.3 | M179: 0.90249
A180: 170 | B180: GODREJCP | C180: 848.75 | D180: 844.88 | E180: 838.77 | F180: 828.78 | G180: 822.67 | H180: 854.87 | I180: 860.98 | J180: 870.97 | K180: 851 | L180: 834.9 | M180: 12.95058
A181: 171 | B181: GODREJIND | C181: 413.65 | D181: 413.22 | E181: 406.43 | F181: 399.22 | G181: 392.43 | H181: 420.43 | I181: 427.22 | J181: 434.43 | K181: 420 | L181: 406 | M181: 3.43106
A182: 172 | B182: GODREJPROP | C182: 1311.15 | D182: 1307.87 | E182: 1295.83 | F182: 1280.52 | G182: 1268.48 | H182: 1323.18 | I182: 1335.22 | J182: 1350.53 | K182: 1319.9 | L182: 1292.55 | M182: 8.57338
A183: 173 | B183: GRANULES | C183: 369.55 | D183: 368.85 | E183: 365.20 | F183: 360.85 | G183: 357.20 | H183: 373.20 | I183: 376.85 | J183: 381.20 | K183: 372.5 | L183: 364.5 | M183: 8.78137
A184: 174 | B184: GRAPHITE | C184: 363.5 | D184: 365.23 | E184: 360.27 | F184: 357.03 | G184: 352.07 | H184: 368.47 | I184: 373.43 | J184: 376.67 | K184: 370.2 | L184: 362 | M184: 3.60378
A185: 175 | B185: GRASIM | C185: 1733.5 | D185: 1733.68 | E185: 1710.92 | F185: 1688.33 | G185: 1665.57 | H185: 1756.27 | I185: 1779.03 | J185: 1801.62 | K185: 1756.45 | L185: 1711.1 | M185: 10.09398
A186: 176 | B186: GESHIP | C186: 614.65 | D186: 613.83 | E186: 603.32 | F186: 591.98 | G186: 581.47 | H186: 625.17 | I186: 635.68 | J186: 647.02 | K186: 624.35 | L186: 602.5 | M186: 5.46829
A187: 177 | B187: GREENPANEL | C187: 359.7 | D187: 360.73 | E187: 353.97 | F187: 348.23 | G187: 341.47 | H187: 366.47 | I187: 373.23 | J187: 378.97 | K187: 367.5 | L187: 355 | M187: 3.11025
A188: 178 | B188: GRINDWELL | C188: 2049.1 | D188: 2054.87 | E188: 2029.23 | F188: 2009.37 | G188: 1983.73 | H188: 2074.73 | I188: 2100.37 | J188: 2120.23 | K188: 2080.5 | L188: 2035 | M188: 0.18175
A189: 179 | B189: GUJALKALI | C189: 801.1 | D189: 806.12 | E189: 793.68 | F189: 786.27 | G189: 773.83 | H189: 813.53 | I189: 825.97 | J189: 833.38 | K189: 818.55 | L189: 798.7 | M189: 1.08367
A190: 180 | B190: GAEL | C190: 239.1 | D190: 236.62 | E190: 233.28 | F190: 227.47 | G190: 224.13 | H190: 242.43 | I190: 245.77 | J190: 251.58 | K190: 239.95 | L190: 230.8 | M190: 2.47394
A191: 181 | B191: FLUOROCHEM | C191: 3403.6 | D191: 3439.88 | E191: 3343.72 | F191: 3283.83 | G191: 3187.67 | H191: 3499.77 | I191: 3595.93 | J191: 3655.82 | K191: 3536.05 | L191: 3380 | M191: 1.98587
A192: 182 | B192: GUJGASLTD | C192: 513.4 | D192: 504.53 | E192: 494.07 | F192: 474.73 | G192: 464.27 | H192: 523.87 | I192: 534.33 | J192: 553.67 | K192: 515 | L192: 485.2 | M192: 34.11763
A193: 183 | B193: GNFC | C193: 578.55 | D193: 584.42 | E193: 569.13 | F193: 559.72 | G193: 544.43 | H193: 593.83 | I193: 609.12 | J193: 618.53 | K193: 599.7 | L193: 575 | M193: 19.0021
A194: 184 | B194: GPPL | C194: 93.25 | D194: 94.17 | E194: 91.98 | F194: 90.72 | G194: 88.53 | H194: 95.43 | I194: 97.62 | J194: 98.88 | K194: 96.35 | L194: 92.9 | M194: 11.55513
A195: 185 | B195: GSFC | C195: 123.3 | D195: 123.87 | E195: 121.83 | F195: 120.37 | G195: 118.33 | H195: 125.33 | I195: 127.37 | J195: 128.83 | K195: 125.9 | L195: 122.4 | M195: 12.89499
A196: 186 | B196: GSPL | C196: 252.55 | D196: 251.42 | E196: 245.13 | F196: 237.72 | G196: 231.43 | H196: 258.83 | I196: 265.12 | J196: 272.53 | K196: 257.7 | L196: 244 | M196: 46.50773
A197: 187 | B197: HEG | C197: 1025.6 | D197: 1033.00 | E197: 1009.95 | F197: 994.30 | G197: 971.25 | H197: 1048.65 | I197: 1071.70 | J197: 1087.35 | K197: 1056.05 | L197: 1017.35 | M197: 1.81338
A198: 188 | B198: HCLTECH | C198: 1103.9 | D198: 1099.63 | E198: 1093.17 | F198: 1082.43 | G198: 1075.97 | H198: 1110.37 | I198: 1116.83 | J198: 1127.57 | K198: 1106.1 | L198: 1088.9 | M198: 21.7242
A199: 189 | B199: HDFCAMC | C199: 2078.9 | D199: 2077.62 | E199: 2063.68 | F199: 2048.47 | G199: 2034.53 | H199: 2092.83 | I199: 2106.77 | J199: 2121.98 | K199: 2091.55 | L199: 2062.4 | M199: 0.78983
A200: 190 | B200: HDFCBANK | C200: 1619 | D200: 1615.80 | E200: 1608.45 | F200: 1597.90 | G200: 1590.55 | H200: 1626.35 | I200: 1633.70 | J200: 1644.25 | K200: 1623.15 | L200: 1605.25 | M200: 55.15101
A201: 191 | B201: HDFCLIFE | C201: 532.9 | D201: 534.67 | E201: 528.38 | F201: 523.87 | G201: 517.58 | H201: 539.18 | I201: 545.47 | J201: 549.98 | K201: 540.95 | L201: 530.15 | M201: 25.29334
A202: 192 | B202: HFCL | C202: 82.1 | D202: 82.32 | E202: 81.43 | F202: 80.77 | G202: 79.88 | H202: 82.98 | I202: 83.87 | J202: 84.53 | K202: 83.2 | L202: 81.65 | M202: 63.09836
A203: 193 | B203: HLEGLAS | C203: 666.3 | D203: 666.60 | E203: 662.20 | F203: 658.10 | G203: 653.70 | H203: 670.70 | I203: 675.10 | J203: 679.20 | K203: 671 | L203: 662.5 | M203: 0.15647
A204: 194 | B204: HAPPSTMNDS | C204: 996.35 | D204: 997.83 | E204: 989.77 | F204: 983.18 | G204: 975.12 | H204: 1004.42 | I204: 1012.48 | J204: 1019.07 | K204: 1005.9 | L204: 991.25 | M204: 1.32007
A205: 195 | B205: HATSUN | C205: 929.25 | D205: 932.33 | E205: 923.42 | F205: 917.58 | G205: 908.67 | H205: 938.17 | I205: 947.08 | J205: 952.92 | K205: 941.25 | L205: 926.5 | M205: 0.08202
A206: 196 | B206: HAVELLS | C206: 1238.85 | D206: 1238.28 | E206: 1228.72 | F206: 1218.58 | G206: 1209.02 | H206: 1248.42 | I206: 1257.98 | J206: 1268.12 | K206: 1247.85 | L206: 1228.15 | M206: 7.9888
... 320 more rows

Sheet Bulk Deals
E6: Back To Main Page
A7: Subject : | B7: BULK DEAL | D7: =Main!B10 -> 2022-11-16
A9: Date | B9: Scrip code | C9: Scrip Name | D9: Client Name | E9: Buy / Sell | F9: Quantity Traded | G9: Trade Price / Wt.Avg.trade price | H9: Exchange
A10: 2022-11-15 | B10: 540615 | C10: 7NR | D10: JANAK NAVINBHAI PANCHAL | E10: SELL | F10: 2,273,439 | G10: 1.28 | H10: BSE
A11: 2022-11-15 | B11: 538812 | C11: AANCHALISP | D11: SKSE SECURITIES LIMITED CORP CM/TM PROP A/C | E11: SELL | F11: 97,522 | G11: 23.71 | H11: BSE
A12: 2022-11-15 | B12: 538812 | C12: AANCHALISP | D12: SKSE SECURITIES LIMITED CORP CM/TM PROP A/C | E12: BUY | F12: 132,402 | G12: 23.69 | H12: BSE
A13: 2022-11-15 | B13: 538351 | C13: AFEL | D13: SHASHI RAWAT | E13: SELL | F13: 170,000 | G13: 10.19 | H13: BSE
A14: 2022-11-15 | B14: 538351 | C14: AFEL | D14: RAKESH RAWAT | E14: SELL | F14: 170,000 | G14: 10.2 | H14: BSE
A15: 2022-11-15 | B15: 538351 | C15: AFEL | D15: DHWAJA COMMODITY SERVICES PRIVATE LIMITED | E15: BUY | F15: 228,000 | G15: 10.18 | H15: BSE
A16: 2022-11-15 | B16: 539277 | C16: ALSTONE | D16: PASCHIM FINANCE AND CHIT FUND PVT LTD | E16: SELL | F16: 135,000 | G16: 259.6 | H16: BSE
A17: 2022-11-15 | B17: 539277 | C17: ALSTONE | D17: VICTORY SOFTWARE PRIVATE LIMITED | E17: SELL | F17: 145,000 | G17: 259.6 | H17: BSE
A18: 2022-11-15 | B18: 540788 | C18: ASPIRA | D18: VIVEK DINESH MANGE | E18: BUY | F18: 58,754 | G18: 42.99 | H18: BSE
A19: 2022-11-15 | B19: 540788 | C19: ASPIRA | D19: VIVEK DINESH MANGE | E19: SELL | F19: 4,628 | G19: 43.65 | H19: BSE
A20: 2022-11-15 | B20: 526853 | C20: BI | D20: PRADIP PADAMSHI SHAH | E20: SELL | F20: 160,000 | G20: 39.33 | H20: BSE
A21: 2022-11-15 | B21: 526853 | C21: BI | D21: EPITOME TRADING AND INVESTMENTS | E21: SELL | F21: 106,055 | G21: 38.9 | H21: BSE
A22: 2022-11-15 | B22: 526853 | C22: BI | D22: EPITOME TRADING AND INVESTMENTS | E22: BUY | F22: 126,991 | G22: 38.9 | H22: BSE
A23: 2022-11-15 | B23: 539546 | C23: BNL | D23: RIGMADIRAPPA INVESTMENTS PRIVATE LIMITED | E23: SELL | F23: 50,000 | G23: 60 | H23: BSE
A24: 2022-11-15 | B24: 504648 | C24: BOMBWIR | D24: MANJU GAGGAR | E24: BUY | F24: 36,471 | G24: 36.96 | H24: BSE
A25: 2022-11-15 | B25: 543621 | C25: CARGOSOL | D25: SANJAY POPATLAL JAIN | E25: SELL | F25: 108,000 | G25: 73.66 | H25: BSE
A26: 2022-11-15 | B26: 543621 | C26: CARGOSOL | D26: JAYSUKHBHAI THATHAGAR | E26: SELL | F26: 120,000 | G26: 71.33 | H26: BSE
A27: 2022-11-15 | B27: 538868 | C27: CSL | D27: VIMAL KUMAR | E27: BUY | F27: 44,500 | G27: 49.08 | H27: BSE
A28: 2022-11-15 | B28: 539405 | C28: DITCO | D28: RAJESH GUPTA | E28: SELL | F28: 30,000 | G28: 18.13 | H28: BSE
A29: 2022-11-15 | B29: 539405 | C29: DITCO | D29: REKHA GUPTA | E29: SELL | F29: 35,000 | G29: 18.5 | H29: BSE
A30: 2022-11-15 | B30: 539405 | C30: DITCO | D30: YOGENDRA PARASHAR TIWARI | E30: BUY | F30: 43,000 | G30: 18.37 | H30: BSE
A31: 2022-11-15 | B31: 533896 | C31: FERVENTSYN | D31: ANAYU POLYMERS PRIVATE LIMITED | E31: SELL | F31: 831,060 | G31: 14 | H31: BSE
A32: 2022-11-15 | B32: 533896 | C32: FERVENTSYN | D32: VIJAY PRAVINCHANDRA THAKKAR | E32: BUY | F32: 831,400 | G32: 14 | H32: BSE
A33: 2022-11-15 | B33: 532022 | C33: FILATFASH | D33: DINESH AGARWAL | E33: SELL | F33: 500,000 | G33: 22.95 | H33: BSE
A34: 2022-11-15 | B34: 543372 | C34: GETALONG | D34: NEERAJ ASHOK CHOTHANI | E34: SELL | F34: 10,000 | G34: 66.24 | H34: BSE
A35: 2022-11-15 | B35: 539228 | C35: GGPL | D35: MULTIPLIER SHARE & STOCK ADVISORS PRIVATE LIMITED | E35: SELL | F35: 311,850 | G35: 19.59 | H35: BSE
A36: 2022-11-15 | B36: 539228 | C36: GGPL | D36: MULTIPLIER SHARE & STOCK ADVISORS PRIVATE LIMITED | E36: BUY | F36: 185,272 | G36: 19.5 | H36: BSE
A37: 2022-11-15 | B37: 531737 | C37: GREENCREST | D37: SANDARV TRADING PRIVATE LIMITED | E37: SELL | F37: 486,500 | G37: 2.57 | H37: BSE
A38: 2022-11-15 | B38: 531737 | C38: GREENCREST | D38: PRITI BHAVESH SONI | E38: BUY | F38: 200,693 | G38: 2.56 | H38: BSE
A39: 2022-11-15 | B39: 531737 | C39: GREENCREST | D39: PRITI BHAVESH SONI | E39: SELL | F39: 185,693 | G39: 2.57 | H39: BSE
A40: 2022-11-15 | B40: 531737 | C40: GREENCREST | D40: KHUSHBU BHAVIN SHAH | E40: SELL | F40: 250,000 | G40: 2.57 | H40: BSE
A41: 2022-11-15 | B41: 531737 | C41: GREENCREST | D41: UNIKAT TRADING PRIVATE LIMITED | E41: SELL | F41: 185,000 | G41: 2.57 | H41: BSE
A42: 2022-11-15 | B42: 531737 | C42: GREENCREST | D42: CASTERLY REAL ESTATE PRIVATE LIMITED | E42: SELL | F42: 185,000 | G42: 2.57 | H42: BSE
A43: 2022-11-15 | B43: 531737 | C43: GREENCREST | D43: ANOOP JAIN | E43: SELL | F43: 500,000 | G43: 2.57 | H43: BSE
A44: 2022-11-15 | B44: 531737 | C44: GREENCREST | D44: PARESH DHIRAJLAL SHAH | E44: SELL | F44: 150,000 | G44: 2.55 | H44: BSE
A45: 2022-11-15 | B45: 531737 | C45: GREENCREST | D45: PARESH DHIRAJLAL SHAH | E45: BUY | F45: 300,000 | G45: 2.57 | H45: BSE
A46: 2022-11-15 | B46: 531737 | C46: GREENCREST | D46: RAVI GOYAL (HUF) | E46: SELL | F46: 465,665 | G46: 2.57 | H46: BSE
A47: 2022-11-15 | B47: 531737 | C47: GREENCREST | D47: RAVI GOYAL (HUF) | E47: BUY | F47: 65,665 | G47: 2.55 | H47: BSE
A48: 2022-11-15 | B48: 531737 | C48: GREENCREST | D48: PREET MAYUR SHAH | E48: SELL | F48: 200,000 | G48: 2.57 | H48: BSE
A49: 2022-11-15 | B49: 531737 | C49: GREENCREST | D49: JALPACHIRAGKUMARNAGAR | E49: BUY | F49: 200,000 | G49: 2.55 | H49: BSE
A50: 2022-11-15 | B50: 531737 | C50: GREENCREST | D50: JALPACHIRAGKUMARNAGAR | E50: SELL | F50: 200,000 | G50: 2.57 | H50: BSE
A51: 2022-11-15 | B51: 524314 | C51: GUJTERC | D51: RISHABH NEGI | E51: BUY | F51: 75,000 | G51: 18.6 | H51: BSE
A52: 2022-11-15 | B52: 532467 | C52: HAZOOR | D52: PRIYA ROHAN AGARWAL | E52: SELL | F52: 300,000 | G52: 97.05 | H52: BSE
A53: 2022-11-15 | B53: 539224 | C53: HCKKVENTURE | D53: SANDEEP KAPADIA | E53: BUY | F53: 20,000 | G53: 74.55 | H53: BSE
A54: 2022-11-15 | B54: 543546 | C54: HEALTHYLIFE | D54: INDIRABAI AMMAVAZHAPPALLIL GOVINDANNAIR | E54: SELL | F54: 150,000 | G54: 6.06 | H54: BSE
A55: 2022-11-15 | B55: 531661 | C55: HITTCO | D55: BHARATULA NIRMALA KUMARI | E55: SELL | F55: 48,840 | G55: 17.16 | H55: BSE
A56: 2022-11-15 | B56: 522183 | C56: ITL | D56: MAHIDHAR BABU VUNNAVA | E56: SELL | F56: 16,297 | G56: 181.09 | H56: BSE
A57: 2022-11-15 | B57: 543539 | C57: MODIS | D57: SHRENI SHARES PRIVATE LIMITED | E57: BUY | F57: 3,200 | G57: 147.75 | H57: BSE
A58: 2022-11-15 | B58: 543539 | C58: MODIS | D58: SHRENI SHARES PRIVATE LIMITED | E58: SELL | F58: 30,400 | G58: 150.28 | H58: BSE
A59: 2022-11-15 | B59: 539275 | C59: MSL | D59: PRIYAL BHADRESHKUMAR SHAH | E59: SELL | F59: 55,500 | G59: 87.81 | H59: BSE
A60: 2022-11-15 | B60: 539673 | C60: RCL | D60: SARITA DEVI | E60: SELL | F60: 14,126 | G60: 25 | H60: BSE
A61: 2022-11-15 | B61: 532092 | C61: SAGARPROD | D61: ANTIQUE SECURITIES PVT LTD. | E61: SELL | F61: 345,000 | G61: 2.41 | H61: BSE
A62: 2022-11-15 | B62: 543366 | C62: SBLI | D62: RITIKA LOKESH THAKKAR | E62: BUY | F62: 13,200 | G62: 73.65 | H62: BSE
A63: 2022-11-15 | B63: 543366 | C63: SBLI | D63: ANKIT SHARMA | E63: SELL | F63: 36,000 | G63: 73.65 | H63: BSE
A64: 2022-11-15 | B64: 543366 | C64: SBLI | D64: BASANTIBEN ANKITKUMAR PARMAR | E64: BUY | F64: 9,600 | G64: 73.65 | H64: BSE
A65: 2022-11-15 | B65: 543366 | C65: SBLI | D65: HETALBEN SANDIPKUMAR SONI | E65: BUY | F65: 19,200 | G65: 73.65 | H65: BSE
A66: 2022-11-15 | B66: 543366 | C66: SBLI | D66: HIRWANI JAYANTIBHAI VAGHELA | E66: BUY | F66: 8,400 | G66: 73.64 | H66: BSE
A67: 2022-11-15 | B67: 543366 | C67: SBLI | D67: SHIFALI SHARMA | E67: SELL | F67: 22,800 | G67: 73.65 | H67: BSE
A68: 2022-11-15 | B68: 512463 | C68: SHRGLTR | D68: KANMECH PRIVATE LIMITED | E68: BUY | F68: 8,500,000 | G68: 4.75 | H68: BSE
A69: 2022-11-15 | B69: 512463 | C69: SHRGLTR | D69: FIRSTINDIA INFRASTRUCTURE PVT LTD | E69: SELL | F69: 15,030,000 | G69: 4.7 | H69: BSE
A70: 2022-11-15 | B70: 540269 | C70: SKL | D70: PARTON TRADERS PRIVATE LIMITED | E70: BUY | F70: 150,000 | G70: 7.5 | H70: BSE
A71: 2022-11-15 | B71: 540269 | C71: SKL | D71: NU HEIGHTS AGENCY PRIVATE LIMITED | E71: SELL | F71: 150,000 | G71: 7.5 | H71: BSE
A72: 2022-11-15 | B72: 538923 | C72: SOFCOM | D72: SHARNAM MOTOR SERVICES PRIVATE LIMITED | E72: BUY | F72: 30,000 | G72: 83.16 | H72: BSE
A73: 2022-11-15 | B73: 538923 | C73: SOFCOM | D73: UMESH CHAMDIA | E73: SELL | F73: 80,000 | G73: 82.34 | H73: BSE
A74: 2022-11-15 | B74: 538923 | C74: SOFCOM | D74: ANKITGERA | E74: BUY | F74: 23,734 | G74: 83.18 | H74: BSE
A75: 2022-11-15 | B75: 538923 | C75: SOFCOM | D75: KISHORE MEHTA | E75: SELL | F75: 75,000 | G75: 79 | H75: BSE
A76: 2022-11-15 | B76: 511447 | C76: SYLPH | D76: METALLURGICAL ENGINEERING AND EQUIPMENTS LIMITED | E76: BUY | F76: 170,000 | G76: 17.54 | H76: BSE
A77: 2022-11-15 | B77: 511447 | C77: SYLPH | D77: RAJAN GUPTA | E77: BUY | F77: 100,000 | G77: 17 | H77: BSE
A78: 2022-11-15 | B78: 511447 | C78: SYLPH | D78: SUNIL BHANDARI | E78: SELL | F78: 95,740 | G78: 17 | H78: BSE
A79: 2022-11-15 | B79: 511447 | C79: SYLPH | D79: ZEEL SANJAY SONI | E79: SELL | F79: 140,598 | G79: 17.65 | H79: BSE
A80: 2022-11-15 | B80: 511447 | C80: SYLPH | D80: ZEEL SANJAY SONI | E80: BUY | F80: 124,361 | G80: 17.12 | H80: BSE
A81: 2022-11-15 | B81: 513307 | C81: SYNTHFO | D81: RAMESHRAVI | E81: BUY | F81: 9,797 | G81: 357.19 | H81: BSE
A82: 2022-11-15 | B82: 539310 | C82: THINKINK | D82: HEMA MOHAN LAGAS | E82: SELL | F82: 400,000 | G82: 67.42 | H82: BSE
A83: 2022-11-15 | B83: 539310 | C83: THINKINK | D83: DIPAK POPATLAL BAFNA | E83: SELL | F83: 400,000 | G83: 67.41 | H83: BSE
A84: 2022-11-15 | B84: 539310 | C84: THINKINK | D84: CHANDRAKANT HIRALAL DARDA | E84: BUY | F84: 225,000 | G84: 67.1 | H84: BSE
A85: 2022-11-15 | B85: 539310 | C85: THINKINK | D85: KIRAN CHANDRAKANT DARDA | E85: BUY | F85: 285,000 | G85: 67.15 | H85: BSE
A86: 2022-11-15 | B86: 539310 | C86: THINKINK | D86: KRATOS IMPEX LIMITED | E86: SELL | F86: 200,000 | G86: 66.75 | H86: BSE
A87: 2022-11-15 | B87: 539310 | C87: THINKINK | D87: KRATOS IMPEX LIMITED | E87: BUY | F87: 200,000 | G87: 69.61 | H87: BSE
A88: 2022-11-15 | B88: 539310 | C88: THINKINK | D88: B B COMMERCIAL LTD | E88: SELL | F88: 269,221 | G88: 67.98 | H88: BSE
A89: 2022-11-15 | B89: 539310 | C89: THINKINK | D89: B B COMMERCIAL LTD | E89: BUY | F89: 117,336 | G89: 67.82 | H89: BSE
A90: 2022-11-15 | B90: 539310 | C90: THINKINK | D90: REKHA MUKESH DAND | E90: BUY | F90: 155,317 | G90: 67.31 | H90: BSE
A91: 2022-11-15 | B91: 539310 | C91: THINKINK | D91: REKHA MUKESH DAND | E91: SELL | F91: 155,317 | G91: 67.52 | H91: BSE
A92: 2022-11-15 | B92: 539310 | C92: THINKINK | D92: KOMAL VAGHAJI CHAUHAN | E92: SELL | F92: 155,098 | G92: 66.88 | H92: BSE
A93: 2022-11-15 | B93: 539310 | C93: THINKINK | D93: KOMAL VAGHAJI CHAUHAN | E93: BUY | F93: 92,344 | G93: 68.01 | H93: BSE
A94: 2022-11-15 | B94: 538634 | C94: VRL | D94: VIJAYKUMAR . | E94: BUY | F94: 3,000 | G94: 137.75 | H94: BSE
A95: 2022-11-15 | B95: 538634 | C95: VRL | D95: VIJAYKUMAR . | E95: SELL | F95: 28,364 | G95: 132.53 | H95: BSE
A96: 2022-11-15 | B96: 539337 | C96: WAAREE | D96: PARISHA PURVESH SHAH | E96: BUY | F96: 63,000 | G96: 140 | H96: BSE
A97: 2022-11-15 | B97: 539337 | C97: WAAREE | D97: VIVEK PRITHVIRAJ KOTHARI | E97: SELL | F97: 1,248,100 | G97: 140.12 | H97: BSE
A98: 2022-11-15 | B98: 539337 | C98: WAAREE | D98: WAAREE ESS PRIVATE LIMITED | E98: BUY | F98: 499,800 | G98: 139.99 | H98: BSE
A99: 2022-11-15 | B99: 539337 | C99: WAAREE | D99: RAJASTHAN GLOBAL SECURITIES PRIVATE LIMITED | E99: BUY | F99: 210,000 | G99: 140 | H99: BSE
A100: 2022-11-15 | B100: 539337 | C100: WAAREE | D100: PARTH INFIN BROKERS PVT LTD | E100: BUY | F100: 77,700 | G100: 140.15 | H100: BSE
A101: 2022-11-15 | B101: 539337 | C101: WAAREE | D101: PARTH INFIN BROKERS PVT LTD | E101: SELL | F101: 77,700 | G101: 146.41 | H101: BSE
A102: 2022-11-15 | B102: 524661 | C102: WELCURE | D102: MADHUDEVI SANJAY BUCHA | E102: BUY | F102: 5,000 | G102: 8.86 | H102: BSE
A103: 2022-11-15 | B103: 524661 | C103: WELCURE | D103: MADHUDEVI SANJAY BUCHA | E103: SELL | F103: 155,010 | G103: 8.57 | H103: BSE
A104: 2022-11-15 | B104: 524661 | C104: WELCURE | D104: SARIKA NARENDRA LUNKER | E104: BUY | F104: 154,015 | G104: 8.83 | H104: BSE
A105: 2022-11-15 | B105: 524661 | C105: WELCURE | D105: AJAY GUPTA HUF | E105: SELL | F105: 81,858 | G105: 8.82 | H105: BSE
A106: 2022-11-15 | B106: 524661 | C106: WELCURE | D106: AJAY GUPTA HUF | E106: BUY | F106: 81,858 | G106: 8.5 | H106: BSE
A107: 2022-11-15 | B107: ARCHIES | C107: Archies Limited | D107: DHEERAJ LOHIA | E107: BUY | F107: 177,907 | G107: 20.9 | H107: NSE
A108: 2022-11-15 | B108: BESTAGRO | C108: Best Agrolife Limited | D108: VIMAL KUMAR | E108: BUY | F108: 147,481 | G108: 1609.25 | H108: NSE
A109: 2022-11-15 | B109: FROG | C109: Frog Cellsat Limited | D109: KATKAR SANJAY | E109: BUY | F109: 136,800 | G109: 228 | H109: NSE
A110: 2022-11-15 | B110: FROG | C110: Frog Cellsat Limited | D110: KATKAR CHHAYA SANJAY | E110: BUY | F110: 84,000 | G110: 228 | H110: NSE
A111: 2022-11-15 | B111: FROG | C111: Frog Cellsat Limited | D111: KATKAR KAILASH SAHEBRAO | E111: BUY | F111: 97,200 | G111: 228 | H111: NSE
A112: 2022-11-15 | B112: FROG | C112: Frog Cellsat Limited | D112: ANUPAMA KAILASH KATKAR | E112: BUY | F112: 88,800 | G112: 228 | H112: NSE
A113: 2022-11-15 | B113: FUSION | C113: Fusion Micro Finance Ltd | D113: RAJ TRADING | E113: BUY | F113: 720,000 | G113: 359.5 | H113: NSE
A114: 2022-11-15 | B114: FUSION | C114: Fusion Micro Finance Ltd | D114: JIGNESH V SHAH HUF | E114: BUY | F114: 524,000 | G114: 339.31 | H114: NSE
A115: 2022-11-15 | B115: FUSION | C115: Fusion Micro Finance Ltd | D115: P.C.KOTHARI [HUF] | E115: BUY | F115: 842,000 | G115: 331.45 | H115: NSE
A116: 2022-11-15 | B116: FUSION | C116: Fusion Micro Finance Ltd | D116: MASSACHUSETTS INSTITUTE OF TECHNOLOGY | E116: BUY | F116: 552,281 | G116: 339.28 | H116: NSE
A117: 2022-11-15 | B117: IPSL | C117: Integrated Perso Ser Ltd | D117: VIVEK KUMAR BHAUKA | E117: BUY | F117: 40,000 | G117: 71.15 | H117: NSE
A118: 2022-11-15 | B118: IPSL | C118: Integrated Perso Ser Ltd | D118: PREETI BHAUKA | E118: BUY | F118: 60,000 | G118: 72.7 | H118: NSE
A119: 2022-11-15 | B119: IPSL | C119: Integrated Perso Ser Ltd | D119: B.W.TRADERS | E119: BUY | F119: 2,000 | G119: 69.6 | H119: NSE
A120: 2022-11-15 | B120: NYKAA | C120: FSN E Commerce Ventures | D120: HERMES INVESTMENT FUNDS PUBLIC LIMITED COMPANY EMUM | E120: BUY | F120: 2,582,921 | G120: 198.48 | H120: NSE
A121: 2022-11-15 | B121: RAMASTEEL | C121: Rama Steel Tubes Limited | D121: SKSE SECURITIES LTD | E121: BUY | F121: 597,809 | G121: 171.54 | H121: NSE
A122: 2022-11-15 | B122: REFEX | C122: Refex Industries Limited | D122: MULTIPLIER SHARE & STOCK ADVISORS PRIVATE LIMITED | E122: BUY | F122: 95,420 | G122: 233.7 | H122: NSE
A123: 2022-11-15 | B123: SECURCRED | C123: SecUR Credentials Limited | D123: SAIRAM INFRATRADE LLP | E123: BUY | F123: 46,070 | G123: 93.93 | H123: NSE
A124: 2022-11-15 | B124: SECURCRED | C124: SecUR Credentials Limited | D124: NAKSHATRA GARMENTS PRIVATE LIMITED | E124: BUY | F124: 124,172 | G124: 94.26 | H124: NSE
A125: 2022-11-15 | B125: FUSION | C125: Fusion Micro Finance Ltd | D125: RAJ TRADING | E125: SELL | F125: 720,000 | G125: 344.02 | H125: NSE
A126: 2022-11-15 | B126: HITECH | C126: Hi-Tech Pipes Limited | D126: MAHESH DINKAR VAZE | E126: SELL | F126: 89,000 | G126: 630.48 | H126: NSE
A127: 2022-11-15 | B127: IPSL | C127: Integrated Perso Ser Ltd | D127: CINCO STOCK VISION LLP | E127: SELL | F127: 50,000 | G127: 69.6 | H127: NSE
A128: 2022-11-15 | B128: IPSL | C128: Integrated Perso Ser Ltd | D128: B.W.TRADERS | E128: SELL | F128: 48,000 | G128: 71.8 | H128: NSE
A129: 2022-11-15 | B129: NYKAA | C129: FSN E Commerce Ventures | D129: SEGANTII INDIA MAURITIUS | E129: SELL | F129: 3,373,243 | G129: 199.24 | H129: NSE
A130: 2022-11-15 | B130: PULZ | C130: Pulz Electronics Limited | D130: NIMISHA SARJU SHAH | E130: SELL | F130: 36,000 | G130: 43.55 | H130: NSE
A131: 2022-11-15 | B131: RAMASTEEL | C131: Rama Steel Tubes Limited | D131: SKSE SECURITIES LTD | E131: SELL | F131: 597,809 | G131: 173.14 | H131: NSE
A132: 2022-11-15 | B132: REFEX | C132: Refex Industries Limited | D132: MULTIPLIER SHARE & STOCK ADVISORS PRIVATE LIMITED | E132: SELL | F132: 120,420 | G132: 234 | H132: NSE
A133: 2022-11-15 | B133: SECURCRED | C133: SecUR Credentials Limited | D133: SAIRAM INFRATRADE LLP | E133: SELL | F133: 57,070 | G133: 93.56 | H133: NSE
A134: 2022-11-15 | B134: SECURCRED | C134: SecUR Credentials Limited | D134: NAKSHATRA GARMENTS PRIVATE LIMITED | E134: SELL | F134: 74,587 | G134: 93.32 | H134: NSE
A135: 2022-11-15 | B135: SUMIT | C135: Sumit Woods Limited | D135: ANISHA FINCAP CONSULTANTS LLP | E135: SELL | F135: 229,245 | G135: 23.7 | H135: NSE
A136: 2022-11-15 | B136: SUMIT | C136: Sumit Woods Limited | D136: ARCH FINANCE LIMITED | E136: SELL | F136: 188,268 | G136: 23.7 | H136: NSE

Sheet Call Tracker (Equity & F&O)
M5: Back To Main Page
A6: Retail Research Technical Calls & Fundamental Performance Report for the month of Nov-2022
M7: =Main!B10 -> 2022-11-16
B8: Positional Call
A9: Sr.no | B9: Date | D9: Company | E9: Rec | F9: Rec Price | G9: Stop Loss*** | H9: Call Closed At | I9: Target | J9: Remark | K9: Profit / Loss per Share | L9: All charges | M9: Net Gain / Loss % | N9: Status | O9: Closed Date | P9: Market Closing Price
A10: 1 | B10: 2022-09-06 | D10: COLPAL | E10: Buy | F10: 1625 | G10: 1535 | I10: 1750-1800 | J10: Open | R10: H
A11: 2 | B11: 2022-09-12 | D11: GMMPFAUDLR | E11: Buy | F11: 1915 | G11: 1800 | H11: 2035 | I11: 2050-2150 | J11: Profit of Rs.120/- | K11: =H11-F11 -> 120 | L11: =(F11*-0.7)/100 -> -13.41 | M11: =(K11+L11)/F11 -> 5.57% | N11: Successful | O11: 2022-11-04 | R11: N
A12: 3 | B12: 2022-09-19 | D12: BALKRISIND | E12: Buy | F12: 1900-1930 | G12: 1780 | I12: 2100-2200 | J12: Open | R12: H
A13: 4 | B13: 2022-10-06 | D13: ICICIGI | E13: Buy | F13: 1145-1165 | G13: 1075 | I13: 1250-1300 | J13: Open | R13: H
A14: 5 | B14: 2022-10-06 | D14: BATAINDIA | E14: Buy | F14: 1795-1815 | G14: 1690 | I14: 1920-2000 | J14: Open | R14: H
A15: 6 | B15: 2022-10-11 | D15: REDINGTON | E15: Buy | F15: 138 | G15: 127 | H15: 146.5 | I15: 150-160 | J15: Profit of Rs.8.5/- | K15: =H15-F15 -> 8.5 | L15: =(F15*-0.7)/100 -> -0.97 | M15: =(K15+L15)/F15 -> 5.46% | N15: Successful | O15: 2022-11-02 | R15: H
A16: 7 | B16: 2022-10-14 | D16: BALAMINES | E16: Buy | F16: 3055 | G16: 2795 | H16: 3090 | I16: 3400-3600 | J16: Profit of Rs.35/- | K16: 35 | L16: -21.39 | M16: 0.45% | N16: Neutral | O16: 2022-11-03 | R16: H
A17: 8 | B17: 2022-10-18 | D17: MINDTREE | E17: Buy | F17: 3360 | G17: 3180 | H17: 3605 | I17: 3600-3700 | J17: Profit of Rs.245/- | K17: =H17-F17 -> 245 | L17: =(F17*-0.7)/100 -> -23.52 | M17: =(K17+L17)/F17 -> 6.59% | N17: Successful | O17: 2022-11-11 | R17: H
A18: 9 | B18: 2022-10-21 | D18: KIMS | E18: Buy | F18: 1410 | G18: 1320 | H18: 1500 | I18: 1550-1600 | J18: Profit of Rs.90/- | K18: =H18-F18 -> 90 | L18: =(F18*-0.7)/100 -> -9.87 | M18: =(K18+L18)/F18 -> 5.68% | N18: Successful | O18: 2022-11-02 | R18: N
A19: 10 | B19: 2022-10-27 | D19: ASHOKLEY | E19: Buy | F19: 147 | G19: 137 | H19: 154 | I19: 160-170 | J19: Part profit of Rs.7/- | K19: 7 | L19: -1.03 | M19: 4.06% | N19: Successful | O19: 2022-11-01 | R19: N
A20: 11 | B20: 2022-10-27 | D20: VTL | E20: Buy | F20: 337 | G20: 310 | H20: 356.5 | I20: 360-390 | J20: Profit of Rs.19.5/- | K20: =H20-F20 -> 19.5 | L20: =(F20*-0.7)/100 -> -2.36 | M20: =(K20+L20)/F20 -> 5.09% | N20: Successful | O20: 2022-11-03 | R20: H
A21: 12 | B21: 2022-10-31 | D21: AFFLE | E21: Buy | F21: 1154 | G21: 1090 | H21: 1225 | I21: 1250-1300 | J21: Profit of Rs.71/- | K21: 71 | L21: -8.08 | M21: 5.45% | N21: Successful | O21: 2022-11-11 | R21: H
A22: 13 | B22: 2022-11-02 | D22: CARBORUNIV | E22: Buy | F22: 832-840 | G22: 790 | I22: 900-950 | J22: Open | R22: H
A23: 14 | B23: 2022-11-07 | D23: TRIDENT | E23: Buy | F23: 36.75 | G23: 34.75 | H23: 39.1 | I23: 40-42 | J23: Profit of Rs.2.35/- | K23: =H23-F23 -> 2.35 | L23: =(F23*-0.7)/100 -> -0.26 | M23: =(K23+L23)/F23 -> 5.69% | N23: Successful | O23: 2022-11-09
A24: 15 | B24: 2022-11-10 | D24: AXISBANK | E24: Buy | F24: 830-850 | G24: 780 | I24: 920-960 | J24: Open
A25: 16 | B25: 2022-11-10 | D25: GMMPFAUDLR | E25: Buy | F25: 1850-1870 | G25: 1740 | I25: 2000-2100 | J25: Open
A26: 17 | B26: 2022-11-11 | D26: ULTRACEMCO | E26: Buy | F26: 6750-6850 | G26: 6340 | I26: 7400-8000 | J26: Open
A27: 18 | B27: 2022-11-11 | D27: REDINGTON | E27: Buy | F27: 146 | G27: 135 | H27: 155.25 | I27: 160-170 | J27: Profit of Rs.2.35/- | K27: =H27-F27 -> 9.25 | L27: =(F27*-0.7)/100 -> -1.02 | M27: =(K27+L27)/F27 -> 5.64% | N27: Successful | O27: 2022-11-14
A28: 19 | B28: 2022-11-15 | D28: FLUOROCHEM | E28: Buy | F28: 3400-3450 | G28: 3170 | I28: 3800-4000 | J28: Open
A32: CLBS = Closing Basis ***
A33: Dividend adjusted <> | F33: Reinitiated $
A34: Part book {} | D34: s | F34: Revised stoploss #
B36: Momentum Call
A37: Sr.no | B37: Date | D37: Company | E37: Rec | F37: Rec Price | G37: Stop Loss | H37: Call Closed At | I37: Target | J37: Remark | K37: Profit / Loss per Share/Lot | L37: All charges | M37: Net Gain / Loss % | N37: Status | O37: Closed Date
A38: 1 | B38: 2022-10-19 | D38: TATACONSUM | E38: Buy | F38: 772 | G38: 750 | H38: 779 | I38: 800-820 | J38: Profit of Rs.7/- | K38: =H38-F38 -> 7 | L38: =(F38*-0.7)/100 -> -5.40 | M38: =(K38+L38)/F38 -> 0.21% | N38: Neutral | O38: 2022-11-09 | R38: H
A39: 2 | B39: 2022-11-02 | D39: ZEEL | E39: Buy | F39: 263.5-265.5 | G39: 255 | I39: 275-280 | J39: Open | R39: H
A40: 3 | B40: 2022-11-03 | D40: SBIN | E40: Buy | F40: 578 | G40: 559 | H40: 613 | I40: 600-615 | J40: Profit of Rs.35/- | K40: =H40-F40 -> 35 | L40: =(F40*-0.7)/100 -> -4.05 | M40: =(K40+L40)/F40 -> 5.36% | N40: Successful | O40: 2022-11-07 | R40: H
A41: 4 | B41: 2022-11-03 | D41: KANSAINER | E41: Buy | F41: 462 | G41: 447 | H41: 446 | I41: 485-495 | J41: Loss of Rs.16/- | K41: -16 | L41: -3.23 | M41: -4.16% | N41: Unsuccessful | O41: 2022-11-09 | R41: H
A42: 5 | B42: 2022-11-07 | D42: ADANIPORTS | E42: Buy | F42: 848.5 | G42: 822 | H42: 875 | I42: 880-900 | J42: Profit of Rs.26.50/- | K42: =H42-F42 -> 26.5 | L42: =(F42*-0.7)/100 -> -5.94 | M42: =(K42+L42)/F42 -> 2.42% | N42: Successful | O42: 2022-11-09
A43: 6 | B43: 2022-11-11 | D43: HDFCAMC | E43: Buy | F43: 2100-2120 | G43: 2040 | I43: 2200-2250 | J43: Open
A44: 7 | B44: 2022-11-14 | D44: FSL | E44: Buy | F44: 108.5-109.5 | G44: 105.5 | I44: 113-116 | J44: Open
A48: CLBS = Closing Basis *** | H48: *
A49: Dividend adjusted <> | F49: Reinitiated $
F50: Revised stoploss #
A52: Master Trade High Risk
A53: Sr.no | B53: Date | D53: Company | E53: Rec | F53: Rec Price | G53: Stop Loss | H53: Call Closed At | I53: Target | J53: Remark | K53: Profit / Loss per share | L53: All charges | M53: Gain / Loss per Lot | N53: Lot | O53: Status | P53: Closed Date
A54: 1 | B54: 2022-10-28 | D54: SBIN NOV FUT | E54: Buy | F54: 577 | G54: 568 | H54: 587 | I54: 590-600 | J54: Profit of Rs.10/- | K54: =H54-F54 -> 10 | L54: =(H54*N54)*0.07% -> 616.35 | M54: =(K54*N54)-L54 -> 14383.7 | N54: 1500 | O54: Successful | P54: 2022-11-01 | R54: H
A55: 2 | B55: 2022-10-31 | D55: NIFTY NOV FUT | E55: Sell | F55: 17985 | G55: 18155 | H55: 18155 | I55: 17700-17500 | J55: Loss of Rs.170/- | K55: =F55-H55 -> -170 | L55: 635.43 | M55: -9135.4 | N55: 50 | O55: Unsuccessful | P55: 2022-11-01 | R55: H
A56: 3 | B56: 2022-11-03 | D56: BANKBARODA NOV FUT | E56: Buy | F56: 149.75 | G56: 147.25 | H56: 147.75 | I56: 153-156 | J56: Loss of Rs.2/- | K56: =H56-F56 -> -2 | L56: =(H56*N56)*0.07% -> 605.04 | M56: =(K56*N56)-L56 -> -12305.0 | N56: 5850 | O56: Unsuccessful | P56: 2022-11-04 | R56: H
A57: 4 | B57: 2022-11-04 | D57: IRCTC NOV FUT | E57: Buy | F57: 763 | G57: 748 | H57: 771.5 | I57: 780-790 | J57: Profit of Rs.8.5/- | K57: 8.5 | L57: 513.05 | M57: 7562.0 | N57: 950 | O57: Successful | P57: 2022-11-07 | R57: H
A58: 5 | B58: 2022-11-07 | D58: GUJGASLTD NOV FUT | E58: Buy | F58: 517 | G58: 505 | H58: 505 | I58: 530-540 | J58: Loss of Rs.12/- | K58: -12 | L58: 441.88 | M58: -15441.9 | N58: 1250 | O58: Unsuccessful | P58: 2022-11-10
A59: 6 | B59: 2022-11-07 | D59: GODREJCP NOV FUT | E59: Buy | F59: 831 | G59: 817 | H59: 817 | I59: 850-860 | J59: Loss of Rs.14/- | K59: =H59-F59 -> -14 | L59: =(H59*N59)*0.07% -> 571.90 | M59: =(K59*N59)-L59 -> -14571.9 | N59: 1000 | O59: Unsuccessful | P59: 2022-11-09
A60: 7 | B60: 2022-11-14 | D60: COLPAL NOV FUT | E60: Buy | F60: 1600-1605 | G60: 1565 | I60: 1650-1670 | J60: Open
A61: 8 | B61: 2022-11-15 | D61: TATACONSUM NOV FUT | E61: Buy | F61: 774-776 | G61: 762 | I61: 790-800 | J61: Open
A66: Master Trade Medium Risk
A67: Sr.no | B67: Date | D67: Company | E67: Rec | F67: Rec Price | G67: Stop Loss | H67: Call Closed At | I67: Target | J67: Remark | K67: Profit/ Loss per lot | L67: All charges | M67: Gain / Loss per Lot | N67: Lot | O67: Status | P67: Closed Date
A68: 1 | B68: 2022-10-31 | D68: BANKNIFTY 41000 PE 03-NOV | E68: Buy | F68: 220 | G68: 90 | H68: 90 | I68: 400-500 | J68: Loss of Rs.130/- | K68: =H68-F68 -> -130 | L68: 100.00 | M68: =(K68*N68)-L68 -> -3350.0 | N68: 25 | O68: Unsuccessful | P68: 2022-11-01 | R68: H
A69: 2 | B69: 2022-11-01 | D69: BANKNIFTY 41500 CE 03-NOV | E69: Buy | F69: 240 | G69: 120 | H69: 120 | I69: 400-500 | J69: Loss of Rs.120/- | K69: =H69-F69 -> -120 | L69: 100.00 | M69: =(K69*N69)-L69 -> -3100.0 | N69: 25 | O69: Unsuccessful | P69: 2022-11-02 | R69: N
A70: 3 | B70: 2022-11-02 | D70: SBIN 590 CE NOV | E70: Buy | F70: 13.25 | G70: 9.1 | H70: 15.25 | I70: 18-22 | J70: Profit of Rs.2/- | K70: =H70-F70 -> 2 | L70: 100.00 | M70: =(K70*N70)-L70 -> 2900.0 | N70: 1500 | O70: Successful | P70: 2022-11-03 | R70: H
A71: 4 | B71: 2022-11-03 | D71: HINDUNILVR 2560 CE NOV | E71: Buy | F71: 36.5 | G71: 19 | H71: 42 | I71: 55-65 | J71: Profit of Rs.5.5/- | K71: =H71-F71 -> 5.5 | L71: 100.00 | M71: =(K71*N71)-L71 -> 1550.0 | N71: 300 | O71: Successful | P71: 2022-11-07 | R71: N
A72: 5 | B72: 2022-11-04 | D72: SBIN 600 CE NOV | E72: Buy | F72: 11.5 | G72: 9.5 | H72: 13.25 | I72: 15-18 | J72: Profit of Rs.1.75/- | K72: =H72-F72 -> 1.75 | L72: 100.00 | M72: =(K72*N72)-L72 -> 2525.0 | N72: 1500 | O72: Successful | P72: 2022-11-04 | R72: H
A73: 6 | B73: 2022-11-07 | D73: NIFTY 18200 CE 10 NOV | E73: Buy | F73: 65 | G73: 30 | H73: 89.5 | I73: 100-130 | J73: Profit of Rs.24.5/- | K73: 24.5 | L73: 100.00 | M73: 1125.0 | N73: 50 | O73: Successful | P73: 2022-11-07
A74: 7 | B74: 2022-11-07 | D74: BATAINDIA 1820 CE NOV | E74: Buy | F74: 48 | G74: 30 | H74: 58 | I74: 70-80 | J74: Profit of Rs.24.5/- | K74: =H74-F74 -> 10 | L74: 100.00 | M74: 2650.0 | N74: 275 | O74: Successful | P74: 2022-11-09
A75: 8 | B75: 2022-11-09 | D75: NIFTY 18200 CE 10 NOV | E75: Buy | F75: 65 | G75: 30 | H75: 86 | I75: 100-130 | J75: Profit of Rs.21/- | K75: 21 | L75: 100.00 | M75: =(K75*N75)-L75 -> 950.0 | N75: 50 | O75: Successful | P75: 2022-11-09
A76: 9 | B76: 2022-11-09 | D76: HINDUNILVR 2540 CE NOV | E76: Buy | F76: 35.5 | G76: 18 | H76: 18 | I76: 55-65 | J76: Loss of Rs.17.5/- | K76: -17.5 | L76: 100.00 | M76: -5350.0 | N76: 300 | O76: Unsuccessful | P76: 2022-11-14
A77: 10 | B77: 2022-11-09 | D77: NIFTY 18200 CE 10 NOV | E77: Buy | F77: 42 | G77: 9 | H77: 9 | I77: 80-100 | J77: Loss of Rs.33/- | K77: =H77-F77 -> -33 | L77: 100.00 | M77: =(K77*N77)-L77 -> -1750.0 | N77: 50 | O77: Unsuccessful | P77: 2022-11-10
A78: 11 | B78: 2022-11-10 | D78: AXISBANK 820 PE NOV | E78: Sell | F78: 6 | G78: 10.1 | H78: 4.25 | I78: 0.1 | J78: Profit of Rs.1.75/- | K78: =F78-H78 -> 1.75 | L78: 100.00 | M78: 2000.0 | N78: 1200 | O78: Successful | P78: 2022-11-11
A79: 12 | B79: 2022-11-11 | D79: BATAINDIA 1800 CE NOV | E79: Buy | F79: 33 | G79: 17 | H79: 17 | I79: 50-65 | J79: Loss of Rs.16/- | K79: =H79-F79 -> -16 | L79: 100.00 | M79: -4500.0 | N79: 275 | O79: Unsuccessful | P79: 2022-11-14
A80: 13 | B80: 2022-11-15 | D80: FSL 112.5 CE NOV | E80: Buy | F80: 1.55 | G80: 0.6 | H80: 2.2 | I80: 3-4.0 | J80: Profit of Rs.0.65/- | K80: 0.65 | L80: 100.00 | M80: 3280.0 | N80: 5200 | O80: Successful | P80: 2022-11-15
A86: Techno -Funda (positional)
A87: Sr.no | B87: Date | D87: Company | E87: Rec | F87: Rec Price | G87: Stop Loss*** | H87: Call Closed At | I87: Target | J87: Remark | K87: Profit / Loss per Share/Lot | L87: All charges | M87: Net Gain / Loss % | N87: Status | O87: Closed Date | P87: Market Closing Price
A88: 1 | B88: 2022-10-06 | D88: HDFCBANK | E88: Buy | F88: 1405 | G88: 1240 | H88: 1625 | I88: 1700-1800 | J88: Part profit of Rs.220/- | K88: =H88-F88 -> 220 | L88: =(F88*-0.7)/100 -> -9.84 | M88: =(K88+L88)/F88 -> 14.96% | N88: Successful | O88: 2022-11-14 | R88: H
A89: 2 | B89: 2022-10-06 | D89: AMBIKCO | E89: Buy | F89: 1420-1620 | G89: 1220 | I89: 2000-2300 | J89: Open | R89: H
A91: CLBS = Closing Basis *** | F91: Reinitiated $
A92: Dividend adjusted <> | F92: Revised stoploss # | H92: .................
B96: Investment Idea
A97: Sr.no | B97: Date | D97: Company | E97: Rec | F97: Rec Price | G97: Point of Review | H97: Close Rate | I97: Target | J97: Remark | K97: Profit / Loss per Share | L97: Gain / Loss % | M97: Status | N97: Closed Date
A98: 1 | B98: 2013-11-01 | D98: L&T Finance Holding | E98: Accu | F98: 82.00 | G98: - | H98: 100 | I98: 100.00 | J98: Target Achieved | K98: =H98-F98 -> 18.00 | L98: =K98/F98 -> 21.95% | M98: Successful | N98: 2016-10-14
A99: 2 | B99: 2014-06-04 | D99: Finolex Inds | E99: Buy | F99: 257.00 | G99: - | H99: 300 | I99: 300.00 | J99: Target Achieved | K99: 43.00 | L99: 16.73% | M99: Successful | N99: 2014-07-02
A100: 3 | B100: 2014-07-08 | D100: JK Cement | E100: Buy | F100: 393.00 | G100: - | H100: 468 | I100: 468.00 | J100: Target Achieved | K100: 75.00 | L100: 19.08% | M100: Successful | N100: 2014-08-12
A101: 4 | B101: 2014-08-06 | D101: Finolex Cables | E101: Buy | F101: 205.00 | G101: - | H101: 275 | I101: 250.00 | J101: Target Achieved | K101: 70.00 | L101: 34.15% | M101: Successful | N101: 2014-11-19
A102: 5 | B102: 2014-09-04 | D102: Exide Inds | E102: Buy | F102: 162.00 | G102: - | H102: 190 | I102: 190.00 | J102: Target Achieved | K102: 28.00 | L102: 17.28% | M102: Successful | N102: 2015-01-02
A103: 6 | B103: 2014-09-04 | D103: Deepak Nitrite | E103: Buy | F103: 75.00 | G103: - | H103: 91.5 | I103: 95-100 | J103: Profit of Rs.16.50/- | K103: 16.50 | L103: 22.00% | M103: Successful | N103: 2014-11-11
A104: 7 | B104: 2014-10-01 | D104: Mercks | E104: Buy | F104: 850.00 | G104: - | H104: 982.5 | I104: 1050.00 | J104: Profit of Rs.132.50/- | K104: 132.50 | L104: 15.59% | M104: Successful | N104: 2015-02-04
A105: 8 | B105: 2014-10-01 | D105: Grindwell Norton | E105: Buy | F105: 475.00 | G105: - | H105: 515 | I105: 600.00 | J105: Profit of Rs.40/- | K105: 40.00 | L105: 8.42% | M105: Successful | N105: 2014-10-27
A106: 9 | B106: 2014-10-01 | D106: Snowman Logistics | E106: Buy | F106: 86.00 | G106: - | H106: 99 | I106: 140.00 | J106: Profit of Rs.13.00/- | K106: 13.00 | L106: 15.12% | M106: Successful | N106: 2014-10-27
A107: 10 | B107: 2014-10-14 | D107: Birla Corp | E107: Buy | F107: 496.60 | G107: - | H107: 621 | I107: 580.00 | J107: Target Achieved | K107: 124.40 | L107: 25.05% | M107: Successful | N107: 2016-08-23
A108: 11 | B108: 2014-10-14 | D108: Ultratech Cem | E108: Buy | F108: 2481.90 | G108: - | H108: 2840 | I108: 2870.00 | J108: Profit of Rs.358.10/- | K108: 358.10 | L108: 14.43% | M108: Successful | N108: 2015-01-13
A109: 12 | B109: 2014-10-16 | D109: Sintex Inds | E109: Buy | F109: 84.50 | G109: - | H109: 93 | I109: 110.00 | J109: Profit of Rs.8.50/- | K109: 8.50 | L109: 10.06% | M109: Successful | N109: 2014-10-27
A110: 13 | B110: 2014-10-16 | D110: HSIL | E110: Buy | F110: 401.00 | G110: - | H110: 428 | I110: 450.00 | J110: Profit of Rs.27.00/- | K110: 27.00 | L110: 6.73% | M110: Successful | N110: 2015-01-16
A111: 14 | B111: 2014-10-16 | D111: Eveready Inds | E111: Buy | F111: 101.00 | G111: - | H111: 112 | I111: 120.00 | J111: Profit of Rs.11.00/- | K111: 11.00 | L111: 10.89% | M111: Successful | N111: 2014-10-27
A112: 15 | B112: 2014-11-11 | D112: Pennar Inds | E112: Buy | F112: 59.00 | G112: - | H112: 76 | I112: 76.00 | J112: Target Achieved | K112: 17.00 | L112: 28.81% | M112: Successful | N112: 2017-10-24
A113: 16 | B113: 2014-11-11 | D113: Snowman Logistics | E113: Buy | F113: 99.00 | G113: - | H113: 120 | I113: 120.00 | J113: Profit of Rs.21/- | K113: 21.00 | L113: 21.21% | M113: Successful | N113: 2014-11-17
A114: 17 | B114: 2014-11-13 | D114: Dharamsi Morarji Chem | E114: Buy | F114: 22.00 | G114: - | H114: 33.55 | I114: 32.00 | J114: Profit of Rs 11.55/- | K114: 11.55 | L114: 52.50% | M114: Successful | N114: 2015-07-03
A115: 18 | B115: 2014-12-03 | D115: Tatachem | E115: Buy | F115: 440.00 | G115: - | H115: 520 | I115: 520.00 | J115: Profit of Rs 80.00/- | K115: 80.00 | L115: 18.18% | M115: Successful | N115: 2015-07-23
A116: 19 | B116: 2014-12-03 | D116: Advanta | E116: Buy | F116: 360.00 | G116: - | H116: 427 | I116: 425.00 | J116: Profit of Rs.67.00/- | K116: 67.00 | L116: 18.61% | M116: Successful | N116: 2015-02-23
A117: 20 | B117: 2015-01-08 | D117: GDL | E117: Buy | F117: 360.00 | G117: - | H117: 455 | I117: 420.00 | J117: Profit of Rs.95.00/- | K117: 95.00 | L117: 26.39% | M117: Successful | N117: 2015-01-20
A118: 21 | B118: 2015-01-08 | D118: NRB Bearing | E118: Buy | F118: 130.00 | H118: 175.5 | I118: 165.00 | J118: Profit of Rs 45.50/- | K118: 45.50 | L118: 35.00% | M118: Successful | N118: 2017-12-19
A119: 22 | B119: 2015-02-05 | D119: GSFC | E119: Accu | F119: 98.00 | H119: 120 | I119: 120.00 | J119: Target Achieved | K119: 22.00 | L119: 22.45% | M119: Successful | N119: 2017-01-18
A120: 23 | B120: 2015-02-05 | D120: Sundrmfast | E120: Accu | F120: 196.00 | H120: 262 | I120: 255.00 | J120: Target Achieved | K120: 66.00 | L120: 33.67% | M120: Successful | N120: 2016-08-17
A121: 24 | B121: 2015-03-04 | D121: GPPL | E121: Accu | F121: 235 | H121: 77.00 | I121: 280-285 | J121: Loss of Rs.158/- | K121: -158.00 | L121: -67.23% | M121: Unsuccessful | N121: 2019-02-26
A122: 25 | B122: 2015-03-04 | D122: ORIENTCEM | E122: Accu | F122: 185.00 | H122: 224 | I122: 220-225 | J122: Target Achieved | K122: 39.00 | L122: 21.08% | M122: Successful | N122: 2016-10-04
A123: 26 | B123: 2015-03-27 | D123: PFS | E123: Accu | F123: 49.5 | H123: 15.85 | I123: 67.00 | J123: Loss of Rs.33.65/- | K123: -33.65 | L123: -68% | M123: Unsuccessful | N123: 2019-06-11
A124: 27 | B124: 2015-03-30 | D124: Walchandnagar Ind Ltd | E124: Accu | F124: 183.50 | H124: 219 | I124: 218.00 | J124: Profit of Rs.35.50/- | K124: 35.50 | L124: 19.35% | M124: Successful | N124: 2015-04-09
A125: 28 | B125: 2015-04-20 | D125: Kalpataru Power Transmission Ltd | E125: Accu | F125: =(227+237)/2 -> 232.00 | H125: 298 | I125: 298.00 | J125: Target Achieved | K125: 66.00 | L125: 28.45% | M125: Successful | N125: 2017-03-29
A126: 29 | B126: 2015-05-04 | D126: Mastek Ltd | E126: Buy | F126: 385.00 | H126: =212.5+331 -> 543.5 | I126: 510.00 | J126: Profit of Rs 158.50/- | K126: 158.50 | L126: 41.17% | M126: Successful | N126: 2015-08-19
A127: 30 | B127: 2015-05-04 | D127: Suprajit Eng | E127: Buy | F127: 115.50 | H127: 146 | I127: 142.00 | J127: Profit of Rs 30.50/- | K127: 30.50 | L127: 26.41% | M127: Successful | N127: 2015-07-17
A128: 31 | B128: 2015-05-27 | D128: TCI | E128: Buy | F128: 237.50 | H128: 279.5 | I128: 278.00 | J128: Target Achieved | K128: 42.00 | L128: 17.68% | M128: Successful | N128: 2015-08-06
A129: 32 | B129: 2015-06-19 | D129: HSIL | E129: Accu | F129: 340.00 | H129: 448 | I129: 448.00 | J129: Target Achieved | K129: 108.00 | L129: 31.76% | M129: Successful | N129: 2017-10-10
A130: 33 | B130: 2015-07-06 | D130: Capital First | E130: Accu | F130: 390.00 | H130: 460 | I130: 460.00 | J130: Target Achieved | K130: 70.00 | L130: 17.95% | M130: Successful | N130: 2016-04-18
A131: 34 | B131: 2015-07-10 | D131: Dolphin OffShore | E131: Accu | F131: 122.5 | H131: 61.00 | I131: 172.00 | J131: Loss of Rs.61.50/- | K131: -61.50 | L131: -50.20% | M131: Unsuccessful | N131: 2018-08-21
A132: 35 | B132: 2015-08-03 | D132: Allcargo logistics | E132: Accu | F132: 297.50 | H132: 350 | I132: 360.00 | J132: Profit of Rs 52.50/- | K132: 52.50 | L132: 17.65% | M132: Successful | N132: 2015-08-16
A133: 36 | B133: 2015-08-03 | D133: Camline Fine | E133: Accu | F133: 115.50 | H133: 149 | I133: 140.00 | J133: Profit of Rs 33.50/- | K133: 33.50 | L133: 29.00% | M133: Successful | N133: 2017-01-05
A134: 37 | B134: 2015-09-04 | D134: TCI | E134: Accu | F134: 226.00 | H134: 292 | I134: 292.00 | J134: Target Achieved | K134: 66.00 | L134: 29.20% | M134: Successful | N134: 2015-10-09
A135: 38 | B135: 2015-09-07 | D135: Kalpataru Power Transmission Ltd | E135: Accu | F135: 232.50 | H135: 312.5 | I135: 310.00 | J135: Target Achieved | K135: 80.00 | L135: 34.41% | M135: Successful | N135: 2017-03-29
A136: 39 | B136: 2015-09-21 | D136: LLOYD ELECTRIC & ENG LTD | E136: Accu | F136: 196.50 | H136: 238 | I136: 238.00 | J136: Target Achieved | K136: 41.50 | L136: 21.12% | M136: Successful | N136: 2015-10-14
A137: 40 | B137: 2015-09-24 | D137: L&T Finance Holding | E137: Accu | F137: 65.00 | H137: 82 | I137: 82.00 | J137: Target Achieved | K137: 17.00 | L137: 26.15% | M137: Successful | N137: 2016-07-27
A138: 41 | B138: 2015-10-14 | D138: KEC International ltd | E138: Accu | F138: 144.00 | H138: 182.5 | I138: 181.00 | J138: Target Achieved | K138: 38.50 | L138: 26.74% | M138: Successful | N138: 2017-03-23
A139: 42 | B139: 2015-10-14 | D139: Gruh Finance | E139: Accu | F139: 264.00 | H139: 311 | I139: 311.00 | J139: Target Achieved | K139: 47.00 | L139: 17.80% | M139: Successful | N139: 2016-08-22
A140: 43 | B140: 2015-11-10 | D140: Pidilitind | E140: Buy | F140: 549.50 | H140: 630 | I140: 630.00 | J140: Target Achieved | K140: 80.50 | L140: 14.65% | M140: Successful | N140: 2016-02-19
A141: 44 | B141: 2015-12-04 | D141: Zensar Technology | E141: Accu | F141: 1027.50 | H141: 1315 | I141: 1250.00 | J141: Target Achieved | K141: 287.50 | L141: 27.98% | M141: Successful | N141: 2018-05-24
A142: 45 | B142: 2015-12-29 | D142: Vinati Organics Ltd | E142: Accu | F142: 465.00 | H142: 540 | I142: 540.00 | J142: Target Achieved | K142: 75.00 | L142: 16.13% | M142: Successful | N142: 2016-06-09
A143: 46 | B143: 2016-01-11 | D143: GSFC | E143: Buy | F143: 81.00 | H143: 110 | I143: 110.00 | J143: Target Achieved | K143: 29.00 | L143: 35.80% | M143: Successful | N143: 2017-01-10
A144: 47 | B144: 2016-01-13 | D144: SSWL | E144: Buy | F144: 417.50 | H144: 547 | I144: 535.00 | J144: Target Achieved | K144: 129.50 | L144: 31.02% | M144: Successful | N144: 2016-07-27
A145: 48 | B145: 2016-02-08 | D145: Persistent System Ltd | E145: Accu | F145: 650.00 | H145: 800 | I145: 800.00 | J145: Target Achieved | K145: 150.00 | L145: 23.08% | M145: Successful | N145: 2018-02-23
A146: 49 | B146: 2016-03-04 | D146: UPL | E146: Accu | F146: 437.50 | H146: 504.5 | I146: 522.00 | J146: Profit of Rs.67/- | K146: 67.00 | L146: 15.31% | M146: Successful | N146: 2016-04-20
A147: 50 | B147: 2016-03-09 | D147: Ashoka Buildcon Ltd | E147: Accu | F147: 189.50 | H147: 218 | I147: 218.00 | J147: Target Achieved | K147: 28.50 | L147: 15.04% | M147: Successful | N147: 2017-10-26
A148: 51 | B148: 2016-04-11 | D148: PTC INDIA FIN SERV LTD | E148: Accu | F148: 36.5 | H148: 15.85 | I148: 60.00 | J148: Loss of Rs.20.65/- | K148: -20.65 | L148: -56.58% | M148: Unsuccessful | N148: 2019-06-11
A149: 52 | B149: 2016-04-12 | D149: CAMLINFINE $ | E149: Accu | F149: 93.00 | H149: 149 | I149: 140.00 | J149: Profit of Rs 56/- | K149: 56.00 | L149: 60.22% | M149: Successful | N149: 2017-01-05
A150: 53 | B150: 2016-04-12 | D150: Greaves Cotton Ltd. | E150: Accu | F150: 130.00 | H150: 150 | I150: 150-155 | J150: Target Achieved | K150: 20.00 | L150: 15.38% | M150: Successful | N150: 2016-07-13
A151: 54 | B151: 2016-04-13 | D151: DHFL | E151: Accu | F151: 196.00 | H151: 299 | I151: 299.00 | J151: Target Achieved | K151: 103.00 | L151: 52.55% | M151: Successful | N151: 2016-09-07
A152: 55 | B152: 2016-04-13 | D152: Magma | E152: Accu | F152: 88.00 | H152: 103 | I152: 103.00 | J152: Target Achieved | K152: 15.00 | L152: 17.05% | M152: Successful | N152: 2016-06-09
A153: 56 | B153: 2016-05-02 | D153: KEC International ltd $ | E153: Accu | F153: 127.50 | H153: 148 | I153: 148-150 | J153: Target Achieved | K153: =H153-F153 -> 20.50 | L153: =K153/F153 -> 16.08% | M153: Successful | N153: 2016-07-13
A154: 57 | B154: 2016-05-03 | D154: Mindtree | E154: Accu | F154: 675.00 | H154: 815 | I154: 790-800 | J154: Target Achieved | K154: =H154-F154 -> 140.00 | L154: =K154/F154 -> 20.74% | M154: Successful | N154: 2018-02-23
A155: 58 | B155: 2016-06-01 | D155: Atulauto | E155: Accu | F155: 500 | H155: 232.50 | I155: 565-570 | J155: Loss of Rs.267.50 /- | K155: =H155-F155 -> -267.50 | L155: =K155/F155 -> -53.50% | M155: Unsuccessful | N155: 2019-09-27
A156: 59 | B156: 2016-06-06 | D156: TRITURBINE | E156: Accu | F156: 110.00 | H156: 126.5 | I156: 125.00 | J156: Profit of Rs.16.50/- | K156: =H156-F156 -> 16.50 | L156: =K156/F156 -> 15.00% | M156: Successful | N156: 2016-07-01
A157: 60 | B157: 2016-06-17 | D157: Pennar Industries Ltd | E157: Accu | F157: 44.00 | H157: 69.5 | I157: 69.50 | J157: Profit of Rs.25.50/- | K157: =H157-F157 -> 25.50 | L157: =K157/F157 -> 57.95% | M157: Successful | N157: 2017-08-30
A158: 61 | B158: 2016-06-28 | D158: EVEREADY | E158: Accu | F158: 262.50 | H158: 340 | I158: 333.00 | J158: Profit of Rs.77.50/- | K158: 77.50 | L158: 29.52% | M158: Successful | N158: 2017-10-09
A159: 62 | B159: 2016-06-28 | D159: FIEMIND | E159: Accu | F159: 840.00 | H159: 1230 | I159: 1230.00 | J159: Target Achieved | K159: 390.00 | L159: 46.43% | M159: Successful | N159: 2016-10-06
A160: 63 | B160: 2016-07-05 | D160: Bajaj Corp Ltd | E160: Accu | F160: 395 | H160: =(468.5+342.5)/2 -> 405.50 | I160: 510.00 | J160: Profit of Rs.10.50/- | K160: =H160-F160 -> 10.50 | L160: =K160/F160 -> 3% | M160: Neutral | N160: 2019-05-21
A161: 64 | B161: 2016-08-02 | D161: GPPL $ | E161: Buy | F161: =169.5-12.8 -> 156.7 | H161: 77.00 | I161: 198-200 | J161: Loss of Rs.79.7/- | K161: -79.70 | L161: -50.86% | M161: Unsuccessful | N161: 2019-02-26
A162: 65 | B162: 2016-08-04 | D162: WONDERLA HOLIDAYS LTD | E162: Accu | F162: 400 | H162: 305.00 | I162: 475.00 | J162: Loss of Rs.95/- | K162: -95.00 | L162: -23.75% | M162: Unsuccessful | N162: 2019-05-21
A163: 66 | B163: 2016-08-11 | D163: CAMLINFINE | E163: Accu | F163: 86.50 | H163: 130 | I163: 130.00 | J163: Profit of Rs.43.50/- | K163: 43.50 | L163: 50.29% | M163: Successful | N163: 2017-12-22
A164: 67 | B164: 2016-08-18 | D164: GRANULES | E164: Accu | F164: 133.5 | H164: 126.50 | I164: 178.00 | J164: Exit | K164: -7.00 | L164: -5.24% | M164: Unsuccessful | N164: 2016-09-02
A165: 68 | B165: 2016-08-31 | D165: VA TECH WABAG | E165: Accu | F165: 560.00 | H165: 725 | I165: 725.00 | J165: Target Achieved | K165: 165.00 | L165: 29.46% | M165: Successful | N165: 2016-03-27
A166: 69 | B166: 2016-09-01 | D166: SKIPPER LIMITED | E166: Accu | F166: 160.50 | H166: 210 | I166: 210.00 | J166: Target Achieved | K166: 49.50 | L166: 30.84% | M166: Successful | N166: 2017-05-16
A167: 70 | B167: 2016-10-03 | D167: IFBIND | E167: Accu | F167: 430.00 | H167: 596 | I167: 575.00 | J167: Profit of Rs.166/- | K167: 166.00 | L167: 38.60% | M167: Successful | N167: 2017-02-03
A168: 71 | B168: 2016-10-14 | D168: ASIANTILES | E168: Accu | F168: 280.00 | H168: 345 | I168: 345.00 | J168: Target Achieved | K168: =H168-F168 -> 65.00 | L168: =K168/F168 -> 23.21% | M168: Successful | N168: 2017-03-20
A169: 72 | B169: 2016-10-14 | D169: DEEPIND | E169: Accu | F169: 245.00 | H169: 325.5 | I169: 330.00 | J169: Profit of Rs.80.5/- | K169: 80.50 | L169: =K169/F169 -> 32.86% | M169: Successful | N169: 2017-02-03
A170: 73 | B170: 2016-10-17 | D170: DCBBANK | E170: Accu | F170: 125.00 | H170: 160 | I170: 160.00 | J170: Target Achieved | K170: 35.00 | L170: 28.00% | M170: Successful | N170: 2017-03-09
A171: 74 | B171: 2016-10-17 | D171: ORIENTREF | E171: Accu | F171: 114.00 | H171: 145 | I171: 145.00 | J171: Target Achieved | K171: 31.00 | L171: =K171/F171 -> 27.19% | M171: Successful | N171: 2017-05-04
A172: 75 | B172: 2016-10-17 | D172: GANECOS | E172: Accu | F172: 212.00 | H172: 280 | I172: 276.00 | J172: Profit of Rs.68/- | K172: 68.00 | L172: =K172/F172 -> 32.08% | M172: Successful | N172: 2017-05-03
A173: 76 | B173: 2016-11-04 | D173: NBCC | E173: Accu | F173: 155.00 | H173: 210 | I173: 210.00 | J173: Profit of Rs.55/- | K173: 55.00 | L173: =K173/F173 -> 35.48% | M173: Successful | N173: 2017-07-28
A174: 77 | B174: 2016-12-06 | D174: PRECAM | E174: Accu | F174: 150.5 | H174: 72.50 | I174: 174.00 | J174: Loss of Rs.78/- | K174: -78.00 | L174: -51.83% | M174: Unsuccessful | N174: 2018-08-21
A175: 78 | B175: 2016-12-08 | D175: INFRATEL | E175: Accu | F175: 380.00 | H175: 478 | I175: 468.00 | J175: Target Achieved | K175: =H175-F175 -> 98.00 | L175: =K175/F175 -> 25.79% | M175: Successful | N175: 2017-10-17
A176: 79 | B176: 2016-12-30 | D176: GODREJPROP | E176: Accu | F176: 305.00 | H176: 375 | I176: 375.00 | J176: Target Achieved | K176: =H176-F176 -> 70.00 | L176: =K176/F176 -> 22.95% | M176: Successful | N176: 2017-02-02
A177: 80 | B177: 2017-01-04 | D177: DEEPAKNTR | E177: Accu | F177: 99.50 | H177: 158 | I177: 158.00 | J177: Target Achieved | K177: =H177-F177 -> 58.50 | L177: =K177/F177 -> 58.79% | M177: Successful | N177: 2017-06-12
A178: 81 | B178: 2017-01-04 | D178: DEEPAKNTR | E178: Accu | F178: 99.50 | H178: 158 | I178: 158.00 | J178: Target Achieved | K178: 58.50 | L178: 58.79% | M178: Successful | N178: 2017-06-12
A179: 82 | B179: 2017-02-20 | D179: RECLTD | E179: Accu | F179: 140.50 | H179: 220 | I179: 220.00 | J179: Target Achieved | K179: =H179-F179 -> 79.50 | L179: =K179/F179 -> 56.58% | M179: Successful | N179: 2017-05-09
A180: 83 | B180: 2017-02-20 | D180: SUBROS | E180: Accu | F180: 202.50 | H180: 234 | I180: 234.00 | J180: Target Achieved | K180: 31.50 | L180: 15.56% | M180: Successful | N180: 2017-04-11
A181: 84 | B181: 2017-03-24 | D181: VRLLOG | E181: Accu | F181: 300.50 | H181: 417.5 | I181: 420.00 | J181: Profit of Rs.117/- | K181: =H181-F181 -> 117.00 | L181: =K181/F181 -> 38.94% | M181: Successful | N181: 2017-12-01
A182: 85 | B182: 2017-03-24 | D182: FIEMIND | E182: Accu | F182: 850.00 | H182: 1042.5 | I182: 1023.00 | J182: Profit of Rs 192.50/- | K182: 192.50 | L182: 22.65% | M182: Successful | N182: 2017-04-05
A183: 86 | B183: 2017-04-05 | D183: RATNAMANI | E183: Accu | F183: 785.00 | H183: 930 | I183: 920.00 | J183: Profit of Rs.145/- | K183: =H183-F183 -> 145.00 | L183: =K183/F183 -> 18.47% | M183: Successful | N183: 2017-08-29
A184: 87 | B184: 2017-04-06 | D184: ZEEMEDIA | E184: Accu | F184: 40 | H184: 13.10 | I184: 60.00 | J184: Loss of Rs.26.9/- | K184: -26.90 | L184: -67.25% | M184: Unsuccessful | N184: 2018-02-07
A185: 88 | B185: 2017-04-12 | D185: DABUR | E185: Accu | F185: 289.50 | H185: 354 | I185: 360.00 | J185: Profit of Rs.64.5/- | K185: =H185-F185 -> 64.50 | L185: =K185/F185 -> 22.28% | M185: Successful | N185: 2017-11-01
A186: 89 | B186: 2017-04-20 | D186: KPRMILL | E186: Accu | F186: 700.00 | H186: 840 | I186: 840.00 | J186: Profit of Rs.140/- | K186: 140.00 | L186: 20.00% | M186: Successful | N186: 2017-06-07
A187: 90 | B187: 2017-06-01 | D187: ESSELPACK | E187: Accu | F187: 130.00 | H187: 144.25 | I187: 170.00 | J187: Profit of Rs.14.25/- | K187: 14.25 | L187: 10.96% | M187: Successful | N187: 2019-07-29
A188: 91 | B188: 2017-06-15 | D188: KEI | E188: Accu | F188: 214.50 | H188: 262 | I188: 262.00 | J188: Profit of Rs.47.5/- | K188: 47.50 | L188: 22.14% | M188: Successful | N188: 2017-08-30
A189: 92 | B189: 2017-07-17 | D189: MAYURUNIQ | E189: Accu | F189: 370.00 | H189: 447.5 | I189: 450.00 | J189: Target Achieved | K189: 77.50 | L189: 20.95% | M189: Successful | N189: 2017-10-27
A190: 93 | B190: 2017-07-27 | D190: RAMCOCEM | E190: Accu | F190: 657.50 | H190: 825 | I190: 820.00 | J190: Target Achieved | K190: 167.50 | L190: 25.48% | M190: Successful | N190: 2017-12-21
A191: 94 | B191: 2017-08-17 | D191: FINPIPE | E191: Accu | F191: 605.00 | H191: 750 | I191: 750.00 | J191: Profit of Rs.145/- | K191: 145.00 | L191: 23.97% | M191: Successful | N191: 2017-10-19
A192: 95 | B192: 2017-09-01 | D192: SHK | E192: Accu | F192: 255 | H192: 217.25 | I192: 320.00 | J192: Loss of Rs.37.75/- | K192: -37.75 | L192: -15% | M192: Unsuccessful | N192: 2019-07-15
A193: 96 | B193: 2017-09-19 | D193: SKIPPER | E193: Accu | F193: 215.00 | H193: 258 | I193: 258.00 | J193: Target Achieved | K193: 43.00 | L193: 20.00% | M193: Successful | N193: 2017-11-01
A194: 97 | B194: 2017-09-19 | D194: SKIPPER | E194: Accu | F194: 215.00 | H194: 258 | I194: 258.00 | J194: Target Achieved | K194: 43.00 | L194: 20.00% | M194: Successful | N194: 2017-11-01
A195: 98 | B195: 2017-09-20 | D195: CAMLINFINE$ | E195: Accu | F195: 75.00 | H195: 90 | I195: 90.00 | J195: Profit of Rs.15.00/- | K195: =H195-F195 -> 15.00 | L195: =K195/F195 -> 20.00% | M195: Successful | N195: 2017-10-11
A196: 99 | B196: 2017-10-03 | D196: GNA | E196: Accu | F196: 315.00 | H196: 392 | I196: 384.00 | J196: Profit of Rs.77/- | K196: 77.00 | L196: 24.44% | M196: Successful | N196: 2017-10-09
A197: 100 | B197: 2017-10-05 | D197: NOCIL | E197: Accu | F197: 145.00 | H197: 179 | I197: 180.00 | J197: Profit of Rs.34/- | K197: 34.00 | L197: 23.45% | M197: Successful | N197: 2017-10-17
A198: 101 | B198: 2017-10-06 | D198: CENTURYPLY | E198: Accu | F198: 256.00 | H198: 323 | I198: 320.00 | J198: Target Achieved | K198: 67.00 | L198: 26.17% | M198: Successful | N198: 2017-11-28
A199: 102 | B199: 2017-10-09 | D199: EIHOTEL | E199: Accu | F199: 137.50 | H199: 184 | I199: 183.00 | J199: Profit of Rs.46.5/- | K199: 46.50 | L199: 33.82% | M199: Successful | N199: 2018-01-08
A200: 103 | B200: 2017-10-10 | D200: NRBBEARING | E200: Accu | F200: 125.50 | H200: 158 | I200: 155.00 | J200: Profit of Rs.32.5/- | K200: 32.50 | L200: 25.90% | M200: Successful | N200: 2017-11-28
A201: 104 | B201: 2017-10-10 | D201: BOROSIL | E201: Accu | F201: 895.00 | H201: 1122.5 | I201: 1078.00 | J201: Profit of Rs.227.5/- | K201: 227.50 | L201: 25.42% | M201: Successful | N201: 2018-01-17
A202: 105 | B202: 2017-10-12 | D202: CYIENT | E202: Accu | F202: 525.00 | H202: 629 | I202: 629.00 | J202: Target Achieved | K202: 104.00 | L202: 19.81% | M202: Successful | N202: 2018-01-19
A203: 106 | B203: 2017-11-07 | D203: HATSUN | E203: Accu | F203: 740.00 | H203: 892.5 | I203: 900.00 | J203: Profit of Rs.152.5/- | K203: =H203-F203 -> 152.50 | L203: =K203/F203 -> 20.61% | M203: Successful | N203: 2017-11-13
A204: 107 | B204: 2017-12-04 | D204: SANGHIIND | E204: Accu | F204: 118.50 | H204: 143.5 | I204: 145.00 | J204: Profit of Rs.25/- | K204: =H204-F204 -> 25.00 | L204: =K204/F204 -> 21.10% | M204: Successful | N204: 2017-12-28
A205: 108 | B205: 2017-12-21 | D205: KAJARIACER | E205: Accu | F205: 715 | H205: 500.00 | I205: 872.00 | J205: Loss of Rs.215/- | K205: =H205-F205 -> -215.00 | L205: =K205/F205 -> -30.07% | M205: Unsuccessful | N205: 2019-07-24
A206: 109 | B206: 2017-12-29 | D206: GNA | E206: Accu | F206: 435.00 | H206: 542.5 | I206: 539.00 | J206: Target Achieved | K206: 107.50 | L206: 24.71% | M206: Successful | N206: 2018-04-16
A207: 110 | B207: 2017-12-29 | D207: ZENSARTECH | E207: Accu | F207: 885.00 | H207: 1090 | I207: 1084.00 | J207: Target Achieved | K207: 205.00 | L207: 23.16% | M207: Successful | N207: 2018-04-23
A208: 111 | B208: 2018-04-02 | D208: EVERESTIND | E208: Accu | F208: 478.50 | H208: 442 | I208: 613.00 | J208: Loss of Rs.36.50 /- | K208: =H208-F208 -> -36.50 | L208: =K208/F208 -> -7.63% | M208: Unsuccessful | N208: 2019-10-24
A209: 112 | B209: 2018-04-04 | D209: GPPL$ | E209: Accu | F209: =141.5-7.3 -> 134.2 | H209: 77.00 | I209: 180.00 | J209: Loss of Rs.57.2/- | K209: =H209-F209 -> -57.20 | L209: =K209/F209 -> -42.62% | M209: Unsuccessful | N209: 2019-02-26
A210: 113 | B210: 2018-04-19 | D210: MANPASAND | E210: Accu | F210: 430 | H210: 220.00 | I210: 537.00 | J210: Loss of Rs.210/- | K210: =H210-F210 -> -210.00 | L210: =K210/F210 -> -48.84% | M210: Unsuccessful | N210: 2018-06-01
A211: 114 | B211: 2018-04-30 | D211: HEIDELBERG | E211: Accu | F211: 153.5 | H211: 196 | I211: 196.00 | J211: Profit of Rs.42.50/- | K211: =H211-F211 -> 42.50 | L211: =K211/F211 -> 27.69% | M211: Successful | N211: 2019-05-20
A212: 115 | B212: 2018-07-25 | D212: ZEEMEDIA | E212: Accu | F212: 27.5 | H212: 13.10 | I212: 60.00 | J212: Loss of Rs.14.40/- | K212: -14.40 | L212: -52.36% | M212: Unsuccessful | N212: 2018-02-07
A213: 116 | B213: 2018-08-06 | D213: GABRIEL | E213: Accu | F213: 148.5 | H213: 102 | I213: 182.00 | J213: Loss of Rs.46.50/- | K213: =H213-F213 -> -46.50 | L213: =K213/F213 -> -31.31% | M213: Unsuccessful | N213: 2019-07-15
A214: 117 | B214: 2018-08-23 | D214: INDIANHUME | E214: Accu | F214: 285 | H214: 355 | I214: 364.00 | J214: Profit of Rs.70/- | K214: 70.00 | L214: 24.56% | M214: Successful | N214: 2018-12-21
A215: 118 | B215: 2018-08-29 | D215: GRINDWELL | E215: Accu | F215: 525 | H215: 585 | I215: 635.00 | J215: Profit of Rs.60- | K215: =H215-F215 -> 60.00 | L215: =K215/F215 -> 11.43% | M215: Successful | N215: 2019-07-16
A216: 119 | B216: 2018-10-22 | D216: FINPIPE | E216: Accu | F216: 475 | H216: 574 | I216: 570.00 | J216: Target Achieved | K216: 99.00 | L216: 20.84% | M216: Successful | N216: 2018-10-30
A217: 120 | B217: 2018-10-24 | D217: GULFOILLUB | E217: Accu | F217: 707.5 | H217: 872 | I217: 872.00 | J217: Target Achieved | K217: 164.50 | L217: 23.25% | M217: Successful | N217: 2019-01-17
A218: 121 | B218: 2018-10-25 | D218: DBCORP | E218: Accu | F218: 162 | H218: 204 | I218: 209.00 | J218: Profit of Rs.42/- | K218: 42.00 | L218: 25.93% | M218: Successful | N218: 2019-03-15
A219: 122 | B219: 2018-10-26 | D219: RITES | E219: Accu | F219: 240 | H219: 297 | I219: 297.00 | J219: Target Achieved | K219: 57.00 | L219: 23.75% | M219: Successful | N219: 2018-11-13
A220: 123 | B220: 2018-12-05 | D220: BRIGADE | E220: Accu | F220: 202.5 | H220: 255 | I220: 252.00 | J220: Target Achieved | K220: 52.50 | L220: 25.93% | M220: Successful | N220: 2019-03-18 | R220: V
A221: 124 | B221: 2018-12-31 | D221: JKCEMENT | E221: Accu | F221: 710 | H221: 866 | I221: 866.00 | J221: Target Achieved | K221: 156.00 | L221: 21.97% | M221: Successful | N221: 2019-03-29 | R221: V
A222: 125 | B222: 2019-02-26 | D222: MARICO | E222: Accu | F222: 337.25 | H222: 398.5 | I222: 411.00 | J222: Profit of Rs.61.25/- | K222: 61.25 | L222: 18.16% | M222: Successful | N222: 2019-10-22 | R222: V
A223: 126 | B223: 2019-04-04 | D223: ITDCEM | E223: Accu | F223: 130 | H223: 65 | I223: 158.00 | J223: Loss of Rs.65 /- | K223: -65.00 | L223: -50.00% | M223: Unsuccessful | N223: 2019-09-18 | R223: K
A224: 127 | B224: 2017-10-09 | D224: RECLTD | E224: Accu | F224: 141.5 | H224: 183.5 | I224: 210.00 | J224: Profit of Rs.42/- | K224: 42.00 | L224: 29.68% | M224: Successful | N224: 2017-11-03 | R224: K
A225: 128 | B225: 2017-12-05 | D225: ALLCARGO | E225: Accu | F225: 172.00 | H225: 155.25 | I225: 230.00 | J225: Loss of Rs.16.75/- | K225: -16.75 | L225: -9.74% | M225: Unsuccessful | N225: 2019-11-18 | R225: K
... 54 more rows
